Ref No,Fund Type,Dept,Cost Centre Description    ,Description    ,Creditor Name    ,GL Code Net Amount,Payment date        
2,Revenue,CCHD,Supporting People Programme,Grants to Voluntary Bodies,1625 Independent People,17380, 01-Nov-2013
3,Revenue,CCHD,Supporting People Programme,Grants to Voluntary Bodies,1625 Independent People,17380, 29-Nov-2013
4,Revenue,CCHD,Home Care - Elderly - South,Other Small Contracts,3 Trees Community Support Ltd,95.52, 08-Nov-2013
5,Revenue,CCHD,Home Care - Elderly - North,Other Small Contracts,3 Trees Community Support Ltd,1910.4, 08-Nov-2013
6,Revenue,CCHD,Day Care - North,Private & Voluntary Day Care,3 Trees Community Support Ltd,47.76, 08-Nov-2013
7,Revenue,CCHD,Home Care - Elderly - South,Other Small Contracts,3 Trees Community Support Ltd,95.52, 08-Nov-2013
8,Revenue,CCHD,Home Care - Elderly - North,Other Small Contracts,3 Trees Community Support Ltd,1910.4, 08-Nov-2013
9,Revenue,CCHD,Day Care - North,Private & Voluntary Day Care,3 Trees Community Support Ltd,47.76, 08-Nov-2013
10,Revenue,CCHD,Home Care - Elderly - South,Other Small Contracts,3 Trees Community Support Ltd,95.52, 08-Nov-2013
11,Revenue,CCHD,Home Care - Elderly - North,Other Small Contracts,3 Trees Community Support Ltd,1910.4, 08-Nov-2013
12,Revenue,CCHD,Day Care - North,Private & Voluntary Day Care,3 Trees Community Support Ltd,47.76, 08-Nov-2013
13,Revenue,CCHD,Home Care - Elderly - South,Other Small Contracts,3 Trees Community Support Ltd,95.52, 08-Nov-2013
14,Revenue,CCHD,Home Care - Elderly - North,Other Small Contracts,3 Trees Community Support Ltd,1910.4, 08-Nov-2013
15,Revenue,CCHD,Day Care - North,Private & Voluntary Day Care,3 Trees Community Support Ltd,47.76, 08-Nov-2013
16,Revenue,CCHD,Home Care - Elderly - South,Other Small Contracts,3 Trees Community Support Ltd,95.52, 20-Nov-2013
17,Revenue,CCHD,Home Care - Elderly - North,Other Small Contracts,3 Trees Community Support Ltd,1902.44, 20-Nov-2013
18,Revenue,CCHD,Day Care - North,Private & Voluntary Day Care,3 Trees Community Support Ltd,47.76, 20-Nov-2013
19,Revenue,CCHD,Supported Living - South,Private & Voluntary Home Care,3 Trees Community Support Ltd,594.88, 20-Nov-2013
20,Revenue,CCHD,Supported Living - South,Private & Voluntary Home Care,3 Trees Community Support Ltd,1428.29, 20-Nov-2013
21,Revenue,CCHD,Purchase of Non-Res Care - North,Private & Voluntary Day Care,3 Trees Community Support Ltd,4310.75, 11-Nov-2013
22,Revenue,CCHD,Supported Living - South,Private & Voluntary Home Care,3 Trees Community Support Ltd,7598.48, 19-Nov-2013
23,Revenue,CCHD,Purchase of Non-Res Care - North,Private & Voluntary Day Care,3 Trees Community Support Ltd,1718.4, 07-Nov-2013
24,Revenue,CCHD,Purchase of Non-Res Care - North,Private & Voluntary Day Care,3 Trees Community Support Ltd,1706.36, 12-Nov-2013
25,Revenue,CCHD,Supported Living - North,Private & Voluntary Home Care,3 Trees Community Support Ltd,7632.8, 07-Nov-2013
26,Revenue,CCHD,Purchase of Non-Res Care - North,Private & Voluntary Day Care,3 Trees Community Support Ltd,1355.36, 11-Nov-2013
27,Revenue,CCHD,Purchase of Non-Res Care - South,Private & Voluntary Day Care,3 Trees Community Support Ltd,3084.2, 19-Nov-2013
28,Revenue,CCHD,Supported Living - North,Private & Voluntary Home Care,3 Trees Community Support Ltd,8102.22, 11-Nov-2013
29,Revenue,CCHD,Purchase of Non-Res Care - North,Private & Voluntary Day Care,3 Trees Community Support Ltd,4623.26, 12-Nov-2013
30,Revenue,CCHD,Bed Purchasing - Under 65s PWLD - South,Residential Permanent,5Th Floor Harlech Court,31656.72, 26-Nov-2013
31,Revenue,CCHD,Bed purchasing - Elderly PWLD - North,Residential Permanent,5Th Floor Harlech Court,54500.96, 26-Nov-2013
32,Revenue,CCHD,Bed purchasing - Elderly PWLD - North,Residential Permanent,5Th Floor Harlech Court,13625.24, 26-Nov-2013
33,Revenue,CCHD,Bed purchasing - Under 65s PWLD - North,Residential Permanent,5Th Floor Harlech Court,27516.96, 26-Nov-2013
34,Revenue,CCHD,Bed purchasing - Under 65s PWLD - North,Residential Permanent,5Th Floor Harlech Court,32705.36, 26-Nov-2013
35,Revenue,CCHD,Bed purchasing - Under 65s PWLD - North,Residential Permanent,5Th Floor Harlech Court,34711.34, 26-Nov-2013
36,Revenue,CCHD,Direct Payments - Phys Dis - North,Grants to Voluntary Bodies,A4E Management Limited,23434.92, 29-Nov-2013
37,Revenue,CCHD,Bed purchasing - Phys Dis - North,Nursing Permanent,ABI Development Limited,6874.36, 26-Nov-2013
38,Revenue,CCHD,Bed and Breakfast,Storage & Removal,Ablemove-Wottons,520, 06-Nov-2013
39,Revenue,CCHD,Day Care - North,Private & Voluntary Day Care,About Me Care and Support Limited,1274.72, 08-Nov-2013
40,Revenue,CCHD,Day Care - South,Private & Voluntary Day Care,About Me Care and Support Limited,1432.12, 05-Nov-2013
41,Revenue,CCHD,Day Care - South,Private & Voluntary Day Care,About Me Care and Support Limited,780.16, 05-Nov-2013
42,Revenue,CCHD,Day Care - South,Private & Voluntary Day Care,About Me Care and Support Limited,780.16, 21-Nov-2013
43,Revenue,CCHD,Day Care - North,Private & Voluntary Day Care,About Me Care and Support Limited,524.4, 22-Nov-2013
44,Revenue,CCHD,Day Care - South,Private & Voluntary Day Care,About Me Care and Support Limited,1245, 21-Nov-2013
45,Revenue,CCHD,Day Care - North,Private & Voluntary Day Care,About Me Care and Support Limited,1408.36, 22-Nov-2013
46,Revenue,CCHD,Bed purchasing - Under 65s PWLD - North,Residential Permanent,Acorn Care Providers,5744.4, 26-Nov-2013
47,Revenue,CCHD,Public Health - Admin,Grants to Voluntary Bodies,Age UK South Gloucestershire,750, 29-Nov-2013
48,Revenue,CCHD,Elderly MH Day Care South,Private & Voluntary Day Care,Age UK South Gloucestershire,851.8, 14-Nov-2013
49,Revenue,CCHD,Home Care - Elderly - South,Other Small Contracts,Agincare Chippenham,1407.6, 07-Nov-2013
50,Revenue,CCHD,Home Care - Elderly - South,Other Small Contracts,Agincare Chippenham,1403.69, 07-Nov-2013
51,Revenue,CCHD,Home Care - Elderly - South,Other Small Contracts,Agincare Chippenham,1341.13, 07-Nov-2013
52,Revenue,CCHD,Home Care - Elderly - South,Other Small Contracts,Agincare UK Limited,492.66, 19-Nov-2013
53,Revenue,CCHD,Home Care - Elderly - North,Other Small Contracts,Agincare UK Limited,86.02, 19-Nov-2013
54,Revenue,CCHD,Day Care - South,Private & Voluntary Day Care,Agincare UK Limited,101.66, 19-Nov-2013
55,Revenue,CCHD,Elderly MH Day Care North,Private & Voluntary Day Care,Agincare UK Limited,109.48, 19-Nov-2013
56,Revenue,CCHD,Home Care - Elderly - South,Other Small Contracts,Agincare UK Limited,566.95, 19-Nov-2013
57,Revenue,CCHD,Home Care - Elderly - North,Other Small Contracts,Agincare UK Limited,82.11, 19-Nov-2013
58,Revenue,CCHD,Day Care - South,Private & Voluntary Day Care,Agincare UK Limited,101.66, 19-Nov-2013
59,Revenue,CCHD,Elderly MH Day Care North,Private & Voluntary Day Care,Agincare UK Limited,117.3, 19-Nov-2013
60,Revenue,CCHD,Home Care - Elderly - South,Other Small Contracts,Agincare UK Limited,547.4, 07-Nov-2013
61,Revenue,CCHD,Home Care - Elderly - North,Other Small Contracts,Agincare UK Limited,89.93, 07-Nov-2013
62,Revenue,CCHD,Day Care - South,Private & Voluntary Day Care,Agincare UK Limited,23.46, 07-Nov-2013
63,Revenue,CCHD,Elderly MH Day Care North,Private & Voluntary Day Care,Agincare UK Limited,109.48, 07-Nov-2013
64,Revenue,CCHD,Home Care - Elderly - South,Other Small Contracts,Agincare UK Limited,539.58, 19-Nov-2013
65,Revenue,CCHD,Home Care - Elderly - North,Other Small Contracts,Agincare UK Limited,82.11, 19-Nov-2013
66,Revenue,CCHD,Day Care - South,Private & Voluntary Day Care,Agincare UK Limited,23.46, 19-Nov-2013
67,Revenue,CCHD,Elderly MH Day Care North,Private & Voluntary Day Care,Agincare UK Limited,113.39, 19-Nov-2013
68,Revenue,CCHD,Public Health - Admin,Grants to Voluntary Bodies,Agincare UK Nutfield,500, 29-Nov-2013
69,Revenue,CCHD,S117 Placements PCT,Residential Permanent,Alexandra House,6875.64, 26-Nov-2013
70,Revenue,CCHD,Bed Purchasing - Under 65s PWLD - South,Residential Permanent,Alexandra House,6069, 26-Nov-2013
71,Revenue,CCHD,Section 117 Placements MH Younger,Residential Permanent,Alexandra House,6400.88, 26-Nov-2013
72,Revenue,CCHD,Home Care - Elderly - South,Other Small Contracts,AliMo Care Ltd,1168.79, 06-Nov-2013
73,Revenue,CCHD,Home Care - Elderly - North,Other Small Contracts,AliMo Care Ltd,995.25, 06-Nov-2013
74,Revenue,CCHD,Home Care - Elderly - South,Other Small Contracts,AliMo Care Ltd,1090.32, 06-Nov-2013
75,Revenue,CCHD,Home Care - Elderly - North,Other Small Contracts,AliMo Care Ltd,995.25, 06-Nov-2013
76,Revenue,CCHD,Home Care - Elderly - South,Other Small Contracts,AliMo Care Ltd,1181.18, 06-Nov-2013
77,Revenue,CCHD,Home Care - Elderly - North,Other Small Contracts,AliMo Care Ltd,995.25, 06-Nov-2013
78,Revenue,CCHD,Home Care - Elderly - South,Other Small Contracts,AliMo Care Ltd,1036.63, 06-Nov-2013
79,Revenue,CCHD,Home Care - Elderly - North,Other Small Contracts,AliMo Care Ltd,995.25, 06-Nov-2013
80,Revenue,CCHD,Elderly MH Day Care North,Private & Voluntary Day Care,Alzheimers Society,794.31, 08-Nov-2013
81,Revenue,CCHD,Day Care - South,Private & Voluntary Day Care,Alzheimers Society,577.68, 08-Nov-2013
82,Revenue,CCHD,Bed Purchasing - Elderly S117- North,Private & Voluntary Day Care,Alzheimers Society,577.68, 08-Nov-2013
83,Revenue,CCHD,Elderly MH Day Care South,Private & Voluntary Day Care,Alzheimers Society,577.68, 08-Nov-2013
84,Revenue,CCHD,Day Care - South,Private & Voluntary Day Care,Alzheimers Society,577.68, 08-Nov-2013
85,Revenue,CCHD,Bed Purchasing - Southmead Hospital,Nursing Permanent,Ambleside Nusing Ho!,1425.36, 26-Nov-2013
86,Revenue,CCHD,Alexandra Way,Prop.Serv. General Repairs,Apre Surfacing Limited,420, 19-Nov-2013
87,Revenue,CCHD,Bed purchasing - Under 65s PWLD - North,Residential Permanent,Ark Care Homes Ltd,10163.76, 26-Nov-2013
88,Revenue,CCHD,Bed Purchasing - Elderly - South,Residential Permanent,Ashbourne House Care Home Limited,1107.96, 26-Nov-2013
89,Revenue,CCHD,Home Care - Elderly - South,Other Small Contracts,Ashley Commercial Finance Ltd,808.98, 08-Nov-2013
90,Revenue,CCHD,Home Care - Elderly - North,Other Small Contracts,Ashley Commercial Finance Ltd,3994.86, 08-Nov-2013
91,Revenue,CCHD,Bed and Breakfast,Bed & Breakfast,Ashley Guest Houses Limited,938, 06-Nov-2013
92,Revenue,CCHD,Bed and Breakfast,Bed & Breakfast,Ashley Guest Houses Limited,788, 13-Nov-2013
93,Revenue,CCHD,Bed and Breakfast,Bed & Breakfast,Ashley Guest Houses Limited,588, 20-Nov-2013
94,Revenue,CCHD,Bed and Breakfast,Bed & Breakfast,Ashley Guest Houses Limited,420, 27-Nov-2013
95,Revenue,CCHD,Bed purchasing - Under 65s PWLD - North,Residential Permanent,Aspects 2 Limited,6265.24, 26-Nov-2013
96,Revenue,CCHD,Supporting People Programme,Grants to Voluntary Bodies,Aspects and Milestones Trust,3172.58, 01-Nov-2013
97,Revenue,CCHD,Supporting People Programme,Grants to Voluntary Bodies,Aspects and Milestones Trust,1590.58, 01-Nov-2013
98,Revenue,CCHD,Supporting People Programme,Grants to Voluntary Bodies,Aspects and Milestones Trust,2414.33, 01-Nov-2013
99,Revenue,CCHD,Supporting People Programme,Grants to Voluntary Bodies,Aspects and Milestones Trust,3172.58, 29-Nov-2013
100,Revenue,CCHD,Supporting People Programme,Grants to Voluntary Bodies,Aspects and Milestones Trust,1590.58, 29-Nov-2013
101,Revenue,CCHD,Supporting People Programme,Grants to Voluntary Bodies,Aspects and Milestones Trust,2414.33, 29-Nov-2013
102,Revenue,CCHD,Supported Living - South,Private & Voluntary Home Care,Aspirations Support Bristol Limited,743.9, 18-Nov-2013
103,Revenue,CCHD,Supported Living - South,Private & Voluntary Home Care,Aspirations Support Bristol Limited,676.5, 18-Nov-2013
104,Revenue,CCHD,Supported Living - South,Private & Voluntary Home Care,Aspirations Support Bristol Limited,523.9, 18-Nov-2013
105,Revenue,CCHD,Supported Living - South,Private & Voluntary Home Care,Aspirations Support Bristol Limited,4024.86, 18-Nov-2013
106,Revenue,CCHD,Supported Living - South,Private & Voluntary Home Care,Aspirations Support Bristol Limited,4094.93, 18-Nov-2013
107,Revenue,CCHD,Purchase of Non-Res Care - South,Private & Voluntary Day Care,Aspirations Support Bristol Limited,2499.48, 19-Nov-2013
108,Revenue,CCHD,Supported Living - South,Private & Voluntary Home Care,Aspirations Support Bristol Limited,644.8, 19-Nov-2013
109,Revenue,CCHD,Day Care - South,Private & Voluntary Day Care,Aspirations Support Bristol Limited,847.47, 21-Nov-2013
110,Revenue,CCHD,Day Care - South,Private & Voluntary Day Care,Aspirations Support Bristol Limited,2726.3, 21-Nov-2013
111,Revenue,CCHD,Bed Purchasing - Under 65s PWLD - South,Residential Permanent,Autism Specialised Care Homes,5584.12, 26-Nov-2013
112,Revenue,CCHD,Purchase of Non-Res Care - North,Private & Voluntary Day Care,Avon Autistic Foundation Limited,2877, 04-Nov-2013
113,Revenue,CCHD,Purchase of Non-Res Care - North,Private & Voluntary Day Care,Avon Autistic Foundation Limited,4222.55, 04-Nov-2013
114,Revenue,CCHD,Purchase of Non-Res Care - North,Private & Voluntary Day Care,Avon Autistic Foundation Limited,2301.6, 21-Nov-2013
115,Revenue,CCHD,Purchase of Non-Res Care - North,Private & Voluntary Day Care,Avon Autistic Foundation Limited,3378.04, 21-Nov-2013
116,Revenue,CCHD,Public Health - Admin,Other Supplies & Services,Barnardos,15000, 01-Nov-2013
117,Revenue,CCHD,Purchase of RAC places,Other L.A.'s - General,Bath & North East Somerset Dist Council,3436.63, 22-Nov-2013
118,Revenue,CCHD,Bed Purchasing - Frenchay Hospital,Nursing Permanent,Bayview Nursing & Residential Home,1463.36, 26-Nov-2013
119,Revenue,CCHD,Bed Purchasing - Elderly - South,Residential Respite,Beaufort Grange Care Home,1764.29, 26-Nov-2013
120,Revenue,CCHD,South Glos Users in South Glos Homes,Nursing Permanent,Beaufort Grange Care Home,1584.11, 26-Nov-2013
121,Revenue,CCHD,South Glos Users in South Glos Homes,Nursing Permanent,Beaufort Grange Care Home,1584.11, 26-Nov-2013
122,Revenue,CCHD,Bed Purchasing - Elderly - North,Nursing Permanent,Beaufort Grange Care Home,6997.41, 26-Nov-2013
123,Revenue,CCHD,Bed Purchasing - Elderly - South,Residential Permanent,Beaufort Grange Care Home,1709.73, 26-Nov-2013
124,Revenue,CCHD,Bed Purchasing - Elderly - North,Residential Permanent,Beaufort House,1801.76, 26-Nov-2013
125,Revenue,CCHD,Bed purchasing - Elderly MH - North,Residential Permanent,Beaufort House,1514.84, 26-Nov-2013
126,Revenue,CCHD,Bed Purchasing - Elderly S117- North,Residential Permanent,Beaufort House,2322.08, 26-Nov-2013
127,Revenue,CCHD,Bed purchasing - Elderly MH - North,Residential Permanent,Beaufort House,1383.68, 26-Nov-2013
128,Revenue,CCHD,Bed purchasing - Elderly MH - North,Residential Respite,Beaufort House,1150, 26-Nov-2013
129,Revenue,CCHD,Bed Purchasing - Elderly - North,Residential Permanent,Beaufort House,1836.08, 26-Nov-2013
130,Revenue,CCHD,Bed Purchasing - Frenchay Hospital,Residential Permanent,Beaufort House,1285.32, 26-Nov-2013
131,Revenue,CCHD,Bed Purchasing - Elderly - South,Residential Permanent,Beaufort House,8388.48, 26-Nov-2013
132,Revenue,CCHD,Swift Dump Code,Residential Permanent,Beaufort House,1517.19, 26-Nov-2013
133,Revenue,CCHD,Bed Purchasing - Elderly - South,Residential Permanent,Beaufort House,1210.16, 26-Nov-2013
134,Revenue,CCHD,Bed Purchasing - Elderly - North,Residential Permanent,Beaufort House,1726.68, 26-Nov-2013
135,Revenue,CCHD,Bed purchasing - Elderly MH - North,Residential Permanent,Beaufort House,1684.12, 26-Nov-2013
136,Revenue,CCHD,Bed Purchasing - Elderly - North,Residential Permanent,Beaufort House,1519.32, 26-Nov-2013
137,Revenue,CCHD,Bed purchasing - Elderly PWLD - South,Residential Permanent,Bedrock Lodge,2909.4, 26-Nov-2013
138,Revenue,CCHD,Section 117 Placements MH Younger,Residential Permanent,Bedrock Lodge,1837.68, 26-Nov-2013
139,Revenue,CCHD,Bed Purchasing - Elderly - North,Residential Permanent,Beech House,2020.04, 26-Nov-2013
140,Revenue,CCHD,Bed Purchasing - Elderly - North,Residential Permanent,Beech House,1885.64, 26-Nov-2013
141,Revenue,CCHD,Bed Purchasing - Elderly - North,Nursing Permanent,Beech House,2095.68, 26-Nov-2013
142,Revenue,CCHD,Bed Purchasing - Elderly - North,Nursing Permanent,Beech House,725.16, 26-Nov-2013
143,Revenue,CCHD,Bed Purchasing - Elderly - North,Nursing Permanent,Beech House,2220.52, 26-Nov-2013
144,Revenue,CCHD,Bed Purchasing - Frenchay Hospital,Residential Permanent,Belmont View,1352.08, 26-Nov-2013
145,Revenue,CCHD,Tenancy Start Up Scheme,Other Supplies & Services,Bennett Jones Partnership,1375, 25-Nov-2013
146,Revenue,CCHD,Bed purchasing - Elderly MH - North,Nursing Permanent,Blossom Field,1042.16, 26-Nov-2013
147,Revenue,CCHD,Bed Purchasing - Elderly - North,Nursing Permanent,Blossom Field,1911, 26-Nov-2013
148,Revenue,CCHD,Bed Purchasing - Elderly - North,Nursing Permanent,Blossom Field,1096.6, 26-Nov-2013
149,Revenue,CCHD,Bed Purchasing - Elderly - North,Nursing Permanent,Blossom Field,6731.89, 26-Nov-2013
150,Revenue,CCHD,Bed purchasing - Elderly MH - North,Nursing Permanent,Blossom Field,1400.04, 26-Nov-2013
151,Revenue,CCHD,Bed Purchasing - Elderly - South,Nursing Permanent,Blossom Field,1884.56, 26-Nov-2013
152,Revenue,CCHD,Training - Adult Services,Training Expenses,Bob Dawson,650, 26-Nov-2013
153,Revenue,CCHD,Training - Adult Services,Training Expenses,Bob Dawson,1775, 04-Nov-2013
154,Revenue,CCHD,Bed purchasing - Under 65s PWLD - North,Residential Permanent,Bradbury House,8632.8, 26-Nov-2013
155,Revenue,CCHD,Home Care - Elderly - North,Other Small Contracts,Bradley House Home Care Services,1755.57, 20-Nov-2013
156,Revenue,CCHD,Day Care - North,Private & Voluntary Day Care,Bradley House Home Care Services,101.04, 20-Nov-2013
157,Revenue,CCHD,Home Care - Elderly - North,Other Small Contracts,Bradley House Home Care Services,1873.45, 20-Nov-2013
158,Revenue,CCHD,Day Care - North,Private & Voluntary Day Care,Bradley House Home Care Services,101.04, 20-Nov-2013
159,Revenue,CCHD,Home Care - Elderly - North,Other Small Contracts,Bradley House Home Care Services,1987.12, 20-Nov-2013
160,Revenue,CCHD,Day Care - North,Private & Voluntary Day Care,Bradley House Home Care Services,101.04, 20-Nov-2013
161,Revenue,CCHD,Alexandra Way,"Provisions (Food, etc)",Brake Bros,524.56, 29-Nov-2013
162,Revenue,CCHD,Woodleaze,"Provisions (Food, etc)",Brake Bros,610.18, 13-Nov-2013
163,Revenue,CCHD,Alexandra Way,"Provisions (Food, etc)",Brake Bros,550.3, 29-Nov-2013
164,Revenue,CCHD,Woodleaze,"Provisions (Food, etc)",Brake Bros,533.6, 20-Nov-2013
165,Revenue,CCHD,Woodleaze,"Provisions (Food, etc)",Brake Bros,634.54, 29-Nov-2013
166,Revenue,CCHD,Alexandra Way,"Provisions (Food, etc)",Brake Bros,524.46, 08-Nov-2013
167,Revenue,CCHD,Bed Purchasing - S28A - Over 65- North,Residential Permanent,Brandon Trust,3054.48, 26-Nov-2013
168,Revenue,CCHD,Bed Purchasing - Under 65s PWLD - South,Residential Permanent,Brandon Trust,10118.24, 26-Nov-2013
169,Revenue,CCHD,Bed purchasing - Elderly PWLD - South,Residential Permanent,Brandon Trust,3412.04, 26-Nov-2013
170,Revenue,CCHD,Bed Purchasing - LD S28A- Over 65- South,Nursing Permanent,Brandon Trust,4792.12, 26-Nov-2013
171,Revenue,CCHD,Bed Purchasing - Under 65s PWLD - South,Nursing Permanent,Brandon Trust,4962.92, 26-Nov-2013
172,Revenue,CCHD,Bed purchasing - S28A Under 65 - South,Nursing Permanent,Brandon Trust,5280.52, 26-Nov-2013
173,Revenue,CCHD,Bed purchasing - S28A Under 65 - South,Residential Permanent,Brandon Trust,4832.6, 26-Nov-2013
174,Revenue,CCHD,Bed purchasing - S28A Under 65 - South,Nursing Permanent,Brandon Trust,5280.52, 26-Nov-2013
175,Revenue,CCHD,Bed Purchasing - LD S28A- Over 65- South,Nursing Permanent,Brandon Trust,5109.72, 26-Nov-2013
176,Revenue,CCHD,Bed Purchasing - LD S28A- Over 65- South,Nursing Permanent,Brandon Trust,4777.8, 26-Nov-2013
177,Revenue,CCHD,Bed Purchasing - Under 65s PWLD - South,Residential Permanent,Brandon Trust,3225.28, 26-Nov-2013
178,Revenue,CCHD,Bed Purchasing - S28A - Over 65- North,Nursing Permanent,Brandon Trust,4742.68, 26-Nov-2013
179,Revenue,CCHD,Bed purchasing - S28A Under 65 - South,Residential Permanent,Brandon Trust,5126.44, 26-Nov-2013
180,Revenue,CCHD,Bed purchasing - S28A Under 65 - South,Residential Permanent,Brandon Trust,5181.28, 26-Nov-2013
181,Revenue,CCHD,Bed Purchasing - S28A - Over 65- North,Residential Permanent,Brandon Trust,10838.48, 26-Nov-2013
182,Revenue,CCHD,Bed purchasing - S28A Under 65 - South,Nursing Permanent,Brandon Trust,5280.52, 26-Nov-2013
183,Revenue,CCHD,Bed purchasing - S28A Under 65 - South,Nursing Permanent,Brandon Trust,5280.52, 26-Nov-2013
184,Revenue,CCHD,Bed purchasing -S28A  Under 65 - North,Nursing Permanent,Brandon Trust,4712.96, 26-Nov-2013
185,Revenue,CCHD,Bed purchasing - S28A Under 65 - South,Residential Permanent,Brandon Trust,5181.28, 26-Nov-2013
186,Revenue,CCHD,Bed Purchasing - LD S28A- Over 65- South,Residential Permanent,Brandon Trust,4681.52, 26-Nov-2013
187,Revenue,CCHD,Bed Purchasing - Under 65s PWLD - South,Residential Respite,Brandon Trust,6971.43, 26-Nov-2013
188,Revenue,CCHD,Bed Purchasing - Elderly - North,Residential Permanent,Bridge House Care Home,1818, 26-Nov-2013
189,Revenue,CCHD,Bed Purchasing - Elderly - North,Residential Permanent,Bridge House Care Home,623.56, 26-Nov-2013
190,Revenue,CCHD,Bed Purchasing - Elderly - North,Residential Permanent,Bridge House Care Home,1150.56, 26-Nov-2013
191,Revenue,CCHD,Bed Purchasing - Elderly MH - South,Residential Permanent,Brightbow,2067.28, 26-Nov-2013
192,Revenue,CCHD,MH Purchasing - Younger,Residential Permanent,Brightbow,4216.63, 26-Nov-2013
193,Revenue,CCHD,MH Purchasing - Younger,Residential Permanent,Brightbow,1467.4, 26-Nov-2013
194,Revenue,CCHD,Public Health - Admin,Grants to Voluntary Bodies,Brimsham Green Youth Wing,515, 29-Nov-2013
195,Revenue,CCHD,Supported Living - North,Private & Voluntary Home Care,Bristol Houses UK Limited,1382.39, 08-Nov-2013
196,Revenue,CCHD,Supported Living - North,Private & Voluntary Home Care,Bristol Houses UK Limited,1056.6, 08-Nov-2013
197,Revenue,CCHD,Day Care - North,Private & Voluntary Day Care,Bristol Houses UK Limited,1540.88, 08-Nov-2013
198,Revenue,CCHD,Supported Living - North,Private & Voluntary Home Care,Bristol Houses UK Limited,1021.38, 08-Nov-2013
199,Revenue,CCHD,Day Care - North,Private & Voluntary Day Care,Bristol Houses UK Limited,2394.96, 08-Nov-2013
200,Revenue,CCHD,Supported Living - North,Private & Voluntary Home Care,Bristol Houses UK Limited,605.6, 14-Nov-2013
201,Revenue,CCHD,Supported Living - North,Private & Voluntary Home Care,Bristol Houses UK Limited,605.6, 08-Nov-2013
202,Revenue,CCHD,Supported Living - North,Private & Voluntary Home Care,Bristol Houses UK Limited,953.82, 08-Nov-2013
203,Revenue,CCHD,Day Care - North,Private & Voluntary Day Care,Bristol Houses UK Limited,726.72, 08-Nov-2013
204,Revenue,CCHD,Day Care - North,Private & Voluntary Day Care,Bristol Houses UK Limited,677.52, 08-Nov-2013
205,Revenue,CCHD,Supported Living - North,Private & Voluntary Home Care,Bristol Houses UK Limited,681.3, 19-Nov-2013
206,Revenue,CCHD,Bed and Breakfast,Bed & Breakfast,Bristol Housing & Support Limited,1550, 04-Nov-2013
207,Revenue,CCHD,Bed and Breakfast,Bed & Breakfast,Bristol Housing & Support Limited,1490, 11-Nov-2013
208,Revenue,CCHD,Bed and Breakfast,Bed & Breakfast,Bristol Housing & Support Limited,1540, 18-Nov-2013
209,Revenue,CCHD,Bed and Breakfast,Bed & Breakfast,Bristol Housing & Support Limited,1280, 25-Nov-2013
210,Revenue,CCHD,Alexandra Way,Water Charges,Bristol Wessex Billing Services Limited,4897.14, 07-Nov-2013
211,Revenue,CCHD,Day Care - South,Private & Voluntary Day Care,Britannia House,901.6, 26-Nov-2013
212,Revenue,CCHD,Day Care - South,Private & Voluntary Day Care,Britannia House,676.2, 26-Nov-2013
213,Revenue,CCHD,Day Care - North,Private & Voluntary Day Care,Britannia House,901.6, 26-Nov-2013
214,Revenue,CCHD,Day Care - South,Private & Voluntary Day Care,Britannia House,676.2, 26-Nov-2013
215,Revenue,CCHD,Day Care - North,Private & Voluntary Day Care,Britannia House,901.6, 26-Nov-2013
216,Revenue,CCHD,Day Care - South,Private & Voluntary Day Care,Britannia House,563.5, 26-Nov-2013
217,Revenue,CCHD,Day Care - South,Private & Voluntary Day Care,Britannia House,1127, 26-Nov-2013
218,Revenue,CCHD,Home Care - Elderly - South,Other Small Contracts,Britannia House,676.2, 26-Nov-2013
219,Revenue,CCHD,Day Care - South,Private & Voluntary Day Care,Britannia House,676.2, 26-Nov-2013
220,Revenue,CCHD,Day Care - South,Private & Voluntary Day Care,Britannia House,676.2, 26-Nov-2013
221,Revenue,CCHD,Supporting People Programme,Grants to Voluntary Bodies,Bromford Housing Group,14050.25, 01-Nov-2013
222,Revenue,CCHD,Supporting People Programme,Grants to Voluntary Bodies,Bromford Housing Group,14050.25, 29-Nov-2013
223,Revenue,CCHD,Bed Purchasing - Elderly - North,Residential Permanent,Brook Lane Residential Home,910.08, 26-Nov-2013
224,Revenue,CCHD,Minor Adaptations Service,Operational Equipment,Brown and Partners Ltd,460.75, 25-Nov-2013
225,Revenue,CCHD,Home Care - Elderly - North,Private & Voluntary Home Care,Brunelcare,15809.01, 04-Nov-2013
226,Revenue,CCHD,Home Care - Elderly - North,Private & Voluntary Home Care,Brunelcare,15809.01, 11-Nov-2013
227,Revenue,CCHD,Home Care - Elderly - North,Private & Voluntary Home Care,Brunelcare,15809.01, 18-Nov-2013
228,Revenue,CCHD,Home Care - Elderly - North,Private & Voluntary Home Care,Brunelcare,15809.01, 25-Nov-2013
229,Revenue,CCHD,Bed Purchasing - Elderly - South,Nursing Permanent,Brunelcare,17256.33, 01-Nov-2013
230,Revenue,CCHD,Bed Purchasing - Elderly - North,Nursing Permanent,Brunelcare,9727.35, 01-Nov-2013
231,Revenue,CCHD,Bed Purchasing - Frenchay Hospital,Nursing Permanent,Brunelcare,9026.63, 01-Nov-2013
232,Revenue,CCHD,Bed Purchasing - Southmead Hospital,Nursing Permanent,Brunelcare,7354.68, 01-Nov-2013
233,Revenue,CCHD,South Glos Users in South Glos Homes,Nursing Permanent,Brunelcare,13864.91, 01-Nov-2013
234,Revenue,CCHD,Bed purchasing - Phys Dis - North,Nursing Permanent,Brunelcare,468.43, 01-Nov-2013
235,Revenue,CCHD,Bed Purchasing - Elderly MH - South,Nursing Permanent,Brunelcare,2712.1, 01-Nov-2013
236,Revenue,CCHD,Bed purchasing - Elderly S117 - South,Nursing Permanent,Brunelcare,11971.47, 01-Nov-2013
237,Revenue,CCHD,Bed purchasing - Elderly MH - North,Nursing Permanent,Brunelcare,2797.8, 01-Nov-2013
238,Revenue,CCHD,Bed Purchasing - Elderly - South,Nursing Permanent,Brunelcare,16308.33, 07-Nov-2013
239,Revenue,CCHD,Bed Purchasing - Elderly - North,Nursing Permanent,Brunelcare,3244.03, 07-Nov-2013
240,Revenue,CCHD,Bed Purchasing - Frenchay Hospital,Nursing Permanent,Brunelcare,6929.92, 07-Nov-2013
241,Revenue,CCHD,Bed Purchasing - Southmead Hospital,Nursing Permanent,Brunelcare,6509.26, 07-Nov-2013
242,Revenue,CCHD,South Glos Users in South Glos Homes,Nursing Permanent,Brunelcare,8924.36, 07-Nov-2013
243,Revenue,CCHD,Bed purchasing - Phys Dis - North,Nursing Permanent,Brunelcare,1190.48, 07-Nov-2013
244,Revenue,CCHD,Bed Purchasing - Elderly MH - South,Nursing Permanent,Brunelcare,6147.44, 07-Nov-2013
245,Revenue,CCHD,Bed purchasing - Elderly S117 - South,Nursing Permanent,Brunelcare,4575.09, 07-Nov-2013
246,Revenue,CCHD,Bed purchasing - Elderly MH - North,Nursing Permanent,Brunelcare,1560.81, 07-Nov-2013
247,Revenue,CCHD,Home Care - Elderly - South,Other Small Contracts,Brunelcare,3019.2, 22-Nov-2013
248,Revenue,CCHD,Home Care - Elderly - North,Other Small Contracts,Brunelcare,4661.2, 22-Nov-2013
249,Revenue,CCHD,Day Care - South,Private & Voluntary Day Care,Brunelcare,77.52, 22-Nov-2013
250,Revenue,CCHD,Day Care - North,Private & Voluntary Day Care,Brunelcare,81.6, 22-Nov-2013
251,Revenue,CCHD,Home Care - Elderly - South,Other Small Contracts,Brunelcare,3223.2, 27-Nov-2013
252,Revenue,CCHD,Home Care - Elderly - North,Other Small Contracts,Brunelcare,5512.53, 27-Nov-2013
253,Revenue,CCHD,Day Care - South,Private & Voluntary Day Care,Brunelcare,73.44, 27-Nov-2013
254,Revenue,CCHD,Day Care - North,Private & Voluntary Day Care,Brunelcare,81.6, 27-Nov-2013
255,Revenue,CCHD,Home Care - Elderly - South,Other Small Contracts,Brunelcare,2909.04, 22-Nov-2013
256,Revenue,CCHD,Home Care - Elderly - North,Other Small Contracts,Brunelcare,5565.76, 22-Nov-2013
257,Revenue,CCHD,Day Care - South,Private & Voluntary Day Care,Brunelcare,77.52, 22-Nov-2013
258,Revenue,CCHD,Day Care - North,Private & Voluntary Day Care,Brunelcare,77.52, 22-Nov-2013
259,Revenue,CCHD,Home Care - Elderly - South,Other Small Contracts,Brunelcare,2955.11, 27-Nov-2013
260,Revenue,CCHD,Home Care - Elderly - North,Other Small Contracts,Brunelcare,4665.56, 27-Nov-2013
261,Revenue,CCHD,Day Care - South,Private & Voluntary Day Care,Brunelcare,73.44, 27-Nov-2013
262,Revenue,CCHD,Day Care - North,Private & Voluntary Day Care,Brunelcare,77.52, 27-Nov-2013
263,Revenue,CCHD,Home Care - Elderly - South,Other Small Contracts,Brunelcare,2868.24, 27-Nov-2013
264,Revenue,CCHD,Home Care - Elderly - North,Other Small Contracts,Brunelcare,4645.2, 27-Nov-2013
265,Revenue,CCHD,Day Care - South,Private & Voluntary Day Care,Brunelcare,81.6, 27-Nov-2013
266,Revenue,CCHD,Day Care - North,Private & Voluntary Day Care,Brunelcare,81.6, 27-Nov-2013
267,Revenue,CCHD,Downend Day Centre,Other Consumable Materials,BS Project Services Limited,422.7, 18-Nov-2013
268,Revenue,CCHD,Information Systems - Software,Computer Equipment - Purchase,BT Global Services Solutions,978.04, 11-Nov-2013
269,Revenue,CCHD,Bed Purchasing - Frenchay Hospital,Nursing Permanent,Bupa Care Service,1302, 07-Nov-2013
270,Revenue,CCHD,Bed purchasing - Elderly MH - North,Residential Permanent,Bupa Care Services  Bridge House,3800, 26-Nov-2013
271,Revenue,CCHD,Bed Purchasing - Frenchay Hospital,Nursing Permanent,Bupa Care Services  Bridge House,2604, 26-Nov-2013
272,Revenue,CCHD,Supported Living - North,Private & Voluntary Home Care,Camphill Communities Thornbury Limited,2793.8, 07-Nov-2013
273,Revenue,CCHD,Supported Living - North,Private & Voluntary Home Care,Camphill Communities Thornbury Limited,1753.08, 13-Nov-2013
274,Revenue,CCHD,Supported Living - North,Private & Voluntary Home Care,Camphill Communities Thornbury Limited,2498.76, 13-Nov-2013
275,Revenue,CCHD,Supported Living - North,Private & Voluntary Home Care,Camphill Communities Thornbury Limited,2597.48, 13-Nov-2013
276,Revenue,CCHD,Supported Living - North,Private & Voluntary Home Care,Camphill Communities Thornbury Limited,1822.24, 15-Nov-2013
277,Revenue,CCHD,Supported Living - North,Private & Voluntary Home Care,Camphill Communities Thornbury Limited,2290.92, 20-Nov-2013
278,Revenue,CCHD,Supported Living - North,Private & Voluntary Home Care,Camphill Communities Thornbury Limited,2049.76, 20-Nov-2013
279,Revenue,CCHD,Supported Living - North,Private & Voluntary Home Care,Camphill Communities Thornbury Limited,2016.48, 20-Nov-2013
280,Revenue,CCHD,Supported Living - North,Private & Voluntary Home Care,Camphill Communities Thornbury Limited,2132.92, 27-Nov-2013
281,Revenue,CCHD,Supported Living - North,Private & Voluntary Home Care,Camphill Communities Thornbury Limited,2450.96, 27-Nov-2013
282,Revenue,CCHD,Supported Living - North,Private & Voluntary Home Care,Camphill Communities Thornbury Limited,2595.13, 28-Nov-2013
283,Revenue,CCHD,Supported Living - North,Private & Voluntary Home Care,Camphill Communities Thornbury Limited,2237.32, 28-Nov-2013
284,Revenue,CCHD,Supported Living - North,Private & Voluntary Home Care,Camphill Communities Thornbury Limited,1792.96, 28-Nov-2013
285,Revenue,CCHD,Supported Living - North,Private & Voluntary Home Care,Camphill Communities Thornbury Limited,2303.08, 28-Nov-2013
286,Revenue,CCHD,Supported Living - North,Private & Voluntary Home Care,Camphill Communities Thornbury Limited,2203.08, 28-Nov-2013
287,Revenue,CCHD,Supported Living - North,Private & Voluntary Home Care,Camphill CommunitiesThorn,2793.8, 18-Nov-2013
288,Revenue,CCHD,Bed Purchasing - Elderly S117- North,Residential Permanent,Canjayor,2300, 26-Nov-2013
289,Revenue,CCHD,Home Care - Elderly - South,Other Small Contracts,Care 1st Homecare,4952.88, 07-Nov-2013
290,Revenue,CCHD,Home Care - Elderly - North,Other Small Contracts,Care 1st Homecare,5153.87, 07-Nov-2013
291,Revenue,CCHD,Day Care - North,Private & Voluntary Day Care,Care 1st Homecare,57.26, 07-Nov-2013
292,Revenue,CCHD,Under 65s -MH  Home Care Purch,Other Small Contracts,Care 1st Homecare,57.26, 07-Nov-2013
293,Revenue,CCHD,Home care - Elderly MH - North,Other Small Contracts,Care 1st Homecare,53.17, 07-Nov-2013
294,Revenue,CCHD,Home Care - Elderly - South,Other Small Contracts,Care 1st Homecare,4980.15, 14-Nov-2013
295,Revenue,CCHD,Home Care - Elderly - North,Other Small Contracts,Care 1st Homecare,6201.32, 14-Nov-2013
296,Revenue,CCHD,Day Care - North,Private & Voluntary Day Care,Care 1st Homecare,53.17, 14-Nov-2013
297,Revenue,CCHD,Under 65s -MH  Home Care Purch,Other Small Contracts,Care 1st Homecare,69.53, 14-Nov-2013
298,Revenue,CCHD,Home care - Elderly MH - North,Other Small Contracts,Care 1st Homecare,53.17, 14-Nov-2013
299,Revenue,CCHD,Home Care - Elderly - South,Other Small Contracts,Care 1st Homecare,4620.65, 14-Nov-2013
300,Revenue,CCHD,Home Care - Elderly - North,Other Small Contracts,Care 1st Homecare,6727.77, 14-Nov-2013
301,Revenue,CCHD,Day Care - North,Private & Voluntary Day Care,Care 1st Homecare,57.26, 14-Nov-2013
302,Revenue,CCHD,Under 65s -MH  Home Care Purch,Other Small Contracts,Care 1st Homecare,57.26, 14-Nov-2013
303,Revenue,CCHD,Home care - Elderly MH - North,Other Small Contracts,Care 1st Homecare,57.26, 14-Nov-2013
304,Revenue,CCHD,Home Care - Elderly - South,Other Small Contracts,Care 1st Homecare,4628.41, 14-Nov-2013
305,Revenue,CCHD,Home Care - Elderly - North,Other Small Contracts,Care 1st Homecare,6844.38, 14-Nov-2013
306,Revenue,CCHD,Day Care - North,Private & Voluntary Day Care,Care 1st Homecare,110.43, 14-Nov-2013
307,Revenue,CCHD,Under 65s -MH  Home Care Purch,Other Small Contracts,Care 1st Homecare,61.35, 14-Nov-2013
308,Revenue,CCHD,Home care - Elderly MH - North,Other Small Contracts,Care 1st Homecare,57.26, 14-Nov-2013
309,Revenue,CCHD,Home Care - Elderly - South,Other Small Contracts,Care 1st Homecare,4735.17, 14-Nov-2013
310,Revenue,CCHD,Home Care - Elderly - North,Other Small Contracts,Care 1st Homecare,6479.21, 14-Nov-2013
311,Revenue,CCHD,Day Care - North,Private & Voluntary Day Care,Care 1st Homecare,110.43, 14-Nov-2013
312,Revenue,CCHD,Under 65s -MH  Home Care Purch,Other Small Contracts,Care 1st Homecare,53.17, 14-Nov-2013
313,Revenue,CCHD,Home care - Elderly MH - North,Other Small Contracts,Care 1st Homecare,65.44, 14-Nov-2013
314,Revenue,CCHD,Home Care - Elderly - South,Other Small Contracts,Care 1st Homecare,4669.31, 14-Nov-2013
315,Revenue,CCHD,Home Care - Elderly - North,Other Small Contracts,Care 1st Homecare,5506.49, 14-Nov-2013
316,Revenue,CCHD,Day Care - North,Private & Voluntary Day Care,Care 1st Homecare,110.43, 14-Nov-2013
317,Revenue,CCHD,Under 65s -MH  Home Care Purch,Other Small Contracts,Care 1st Homecare,61.35, 14-Nov-2013
318,Revenue,CCHD,Home care - Elderly MH - North,Other Small Contracts,Care 1st Homecare,49.08, 14-Nov-2013
319,Revenue,CCHD,Home Care - Elderly - South,Other Small Contracts,Care 1st Homecare,4816.55, 14-Nov-2013
320,Revenue,CCHD,Home Care - Elderly - North,Other Small Contracts,Care 1st Homecare,5383.76, 14-Nov-2013
321,Revenue,CCHD,Day Care - North,Private & Voluntary Day Care,Care 1st Homecare,114.52, 14-Nov-2013
322,Revenue,CCHD,Under 65s -MH  Home Care Purch,Other Small Contracts,Care 1st Homecare,53.17, 14-Nov-2013
323,Revenue,CCHD,Home care - Elderly MH - North,Other Small Contracts,Care 1st Homecare,65.44, 14-Nov-2013
324,Revenue,CCHD,Home Care - Elderly - South,Other Small Contracts,Care 1st Homecare,4780.16, 14-Nov-2013
325,Revenue,CCHD,Home Care - Elderly - North,Other Small Contracts,Care 1st Homecare,5474.9, 14-Nov-2013
326,Revenue,CCHD,Day Care - North,Private & Voluntary Day Care,Care 1st Homecare,114.52, 14-Nov-2013
327,Revenue,CCHD,Under 65s -MH  Home Care Purch,Other Small Contracts,Care 1st Homecare,57.26, 14-Nov-2013
328,Revenue,CCHD,Home care - Elderly MH - North,Other Small Contracts,Care 1st Homecare,53.17, 14-Nov-2013
329,Revenue,CCHD,Bed Purchasing - PWLD S 117 Placements,Residential Permanent,Care Community Ltd,7536.4, 26-Nov-2013
330,Revenue,CCHD,Supported Living - South,Private & Voluntary Home Care,Care Horizons Limited,2017.07, 22-Nov-2013
331,Revenue,CCHD,Supported Living - North,Private & Voluntary Home Care,Care Horizons Limited,5829.37, 15-Nov-2013
332,Revenue,CCHD,Purchase of Non-Res Care - North,Private & Voluntary Day Care,Care Horizons Limited,1665.31, 15-Nov-2013
333,Revenue,CCHD,Purchase of Non-Res Care - North,Private & Voluntary Day Care,Care Horizons Limited,1577.21, 15-Nov-2013
334,Revenue,CCHD,Purchase of Non-Res Care - North,Private & Voluntary Day Care,Care Horizons Limited,1053.1, 15-Nov-2013
335,Revenue,CCHD,Supported Living - North,Private & Voluntary Home Care,Care Horizons Limited,5373.79, 29-Nov-2013
336,Revenue,CCHD,Supported Living - South,Private & Voluntary Home Care,Care Horizons Limited,1714.93, 15-Nov-2013
337,Revenue,CCHD,Purchase of Non-Res Care - North,Private & Voluntary Day Care,Care Horizons Limited,1050.12, 14-Nov-2013
338,Revenue,CCHD,Home Care - Elderly - North,Other Small Contracts,Care Horizons Limited,2112.95, 08-Nov-2013
339,Revenue,CCHD,Day Care - South,Private & Voluntary Day Care,Care Horizons Limited,354.78, 08-Nov-2013
340,Revenue,CCHD,Home Care - Elderly - North,Other Small Contracts,Care Horizons Limited,2112.94, 26-Nov-2013
341,Revenue,CCHD,Day Care - South,Private & Voluntary Day Care,Care Horizons Limited,350.4, 26-Nov-2013
342,Revenue,CCHD,Electronic Home Care Monitoring,Other Supplies & Services,Care Monitoring 2000 Limited,7537.95, 15-Nov-2013
343,Revenue,CCHD,Electronic Home Care Monitoring,Other Supplies & Services,Care Monitoring 2000 Limited,1340, 20-Nov-2013
344,Revenue,CCHD,Home Care - Elderly - South,Other Small Contracts,Care UK,6274.69, 01-Nov-2013
345,Revenue,CCHD,Home Care - Elderly - North,Other Small Contracts,Care UK,2375.64, 01-Nov-2013
346,Revenue,CCHD,Day Care - South,Private & Voluntary Day Care,Care UK,270.2, 01-Nov-2013
347,Revenue,CCHD,Day Care - North,Private & Voluntary Day Care,Care UK,435.64, 01-Nov-2013
348,Revenue,CCHD,Home care - Elderly MH - North,Other Small Contracts,Care UK,579, 01-Nov-2013
349,Revenue,CCHD,Elderly MH Day Care North,Private & Voluntary Day Care,Care UK,127.38, 01-Nov-2013
350,Revenue,CCHD,Home Care - Elderly - South,Other Small Contracts,Care UK,6106.52, 01-Nov-2013
351,Revenue,CCHD,Home Care - Elderly - North,Other Small Contracts,Care UK,2332.49, 01-Nov-2013
352,Revenue,CCHD,Day Care - South,Private & Voluntary Day Care,Care UK,270.2, 01-Nov-2013
353,Revenue,CCHD,Day Care - North,Private & Voluntary Day Care,Care UK,470.92, 01-Nov-2013
354,Revenue,CCHD,Home care - Elderly MH - North,Other Small Contracts,Care UK,563.56, 01-Nov-2013
355,Revenue,CCHD,Elderly MH Day Care North,Private & Voluntary Day Care,Care UK,142.82, 01-Nov-2013
356,Revenue,CCHD,Home Care - Elderly - South,Other Small Contracts,Care UK,5597, 01-Nov-2013
357,Revenue,CCHD,Home Care - Elderly - North,Other Small Contracts,Care UK,2346.88, 01-Nov-2013
358,Revenue,CCHD,Day Care - South,Private & Voluntary Day Care,Care UK,270.2, 01-Nov-2013
359,Revenue,CCHD,Day Care - North,Private & Voluntary Day Care,Care UK,471.97, 01-Nov-2013
360,Revenue,CCHD,Home care - Elderly MH - North,Other Small Contracts,Care UK,579, 01-Nov-2013
361,Revenue,CCHD,Elderly MH Day Care North,Private & Voluntary Day Care,Care UK,138.96, 01-Nov-2013
362,Revenue,CCHD,Home Care - Elderly - South,Other Small Contracts,Care UK,5616.3, 08-Nov-2013
363,Revenue,CCHD,Home Care - Elderly - North,Other Small Contracts,Care UK,2385.48, 08-Nov-2013
364,Revenue,CCHD,Day Care - South,Private & Voluntary Day Care,Care UK,270.2, 08-Nov-2013
365,Revenue,CCHD,Day Care - North,Private & Voluntary Day Care,Care UK,397.58, 08-Nov-2013
366,Revenue,CCHD,Home care - Elderly MH - North,Other Small Contracts,Care UK,532.68, 08-Nov-2013
367,Revenue,CCHD,Elderly MH Day Care North,Private & Voluntary Day Care,Care UK,138.96, 08-Nov-2013
368,Revenue,CCHD,Home Care - Elderly - South,Other Small Contracts,Care UK,6048.62, 01-Nov-2013
369,Revenue,CCHD,Home Care - Elderly - North,Other Small Contracts,Care UK,2789.44, 01-Nov-2013
370,Revenue,CCHD,Day Care - South,Private & Voluntary Day Care,Care UK,270.2, 01-Nov-2013
371,Revenue,CCHD,Day Care - North,Private & Voluntary Day Care,Care UK,461.86, 01-Nov-2013
372,Revenue,CCHD,Home care - Elderly MH - North,Other Small Contracts,Care UK,571.28, 01-Nov-2013
373,Revenue,CCHD,Elderly MH Day Care North,Private & Voluntary Day Care,Care UK,138.96, 01-Nov-2013
374,Revenue,CCHD,Home Care - Elderly - South,Other Small Contracts,Care UK,5740.88, 01-Nov-2013
375,Revenue,CCHD,Home Care - Elderly - North,Other Small Contracts,Care UK,2905.23, 01-Nov-2013
376,Revenue,CCHD,Day Care - South,Private & Voluntary Day Care,Care UK,270.2, 01-Nov-2013
377,Revenue,CCHD,Day Care - North,Private & Voluntary Day Care,Care UK,208.7, 01-Nov-2013
378,Revenue,CCHD,Home care - Elderly MH - North,Other Small Contracts,Care UK,524.96, 01-Nov-2013
379,Revenue,CCHD,Elderly MH Day Care North,Private & Voluntary Day Care,Care UK,138.96, 01-Nov-2013
380,Revenue,CCHD,Home Care - Elderly - South,Other Small Contracts,Care UK,5597, 01-Nov-2013
381,Revenue,CCHD,Home Care - Elderly - North,Other Small Contracts,Care UK,2667.26, 01-Nov-2013
382,Revenue,CCHD,Day Care - South,Private & Voluntary Day Care,Care UK,223.88, 01-Nov-2013
383,Revenue,CCHD,Day Care - North,Private & Voluntary Day Care,Care UK,378.28, 01-Nov-2013
384,Revenue,CCHD,Home care - Elderly MH - North,Other Small Contracts,Care UK,470.92, 01-Nov-2013
385,Revenue,CCHD,Elderly MH Day Care North,Private & Voluntary Day Care,Care UK,138.96, 01-Nov-2013
386,Revenue,CCHD,Home Care - Elderly - South,Other Small Contracts,Care UK,5604.72, 08-Nov-2013
387,Revenue,CCHD,Home Care - Elderly - North,Other Small Contracts,Care UK,2824.18, 08-Nov-2013
388,Revenue,CCHD,Day Care - South,Private & Voluntary Day Care,Care UK,270.2, 08-Nov-2013
389,Revenue,CCHD,Day Care - North,Private & Voluntary Day Care,Care UK,360.03, 08-Nov-2013
390,Revenue,CCHD,Home care - Elderly MH - North,Other Small Contracts,Care UK,582.86, 08-Nov-2013
391,Revenue,CCHD,Elderly MH Day Care North,Private & Voluntary Day Care,Care UK,138.96, 08-Nov-2013
392,Revenue,CCHD,Home Care - Elderly - South,Other Small Contracts,Care UK,5295.92, 08-Nov-2013
393,Revenue,CCHD,Home Care - Elderly - North,Other Small Contracts,Care UK,2404.78, 08-Nov-2013
394,Revenue,CCHD,Day Care - South,Private & Voluntary Day Care,Care UK,274.06, 08-Nov-2013
395,Revenue,CCHD,Day Care - North,Private & Voluntary Day Care,Care UK,150.54, 08-Nov-2013
396,Revenue,CCHD,Home care - Elderly MH - North,Other Small Contracts,Care UK,602.16, 08-Nov-2013
397,Revenue,CCHD,Elderly MH Day Care North,Private & Voluntary Day Care,Care UK,142.82, 08-Nov-2013
398,Revenue,CCHD,Home Care - Elderly - South,Other Small Contracts,Care UK,5299.78, 22-Nov-2013
399,Revenue,CCHD,Home Care - Elderly - North,Other Small Contracts,Care UK,2505.14, 22-Nov-2013
400,Revenue,CCHD,Day Care - South,Private & Voluntary Day Care,Care UK,270.2, 22-Nov-2013
401,Revenue,CCHD,Day Care - North,Private & Voluntary Day Care,Care UK,443.9, 22-Nov-2013
402,Revenue,CCHD,Home care - Elderly MH - North,Other Small Contracts,Care UK,594.44, 22-Nov-2013
403,Revenue,CCHD,Elderly MH Day Care North,Private & Voluntary Day Care,Care UK,138.96, 22-Nov-2013
404,Revenue,CCHD,Home Care - Elderly - South,Other Small Contracts,Care UK,5384.7, 22-Nov-2013
405,Revenue,CCHD,Home Care - Elderly - North,Other Small Contracts,Care UK,2486.82, 22-Nov-2013
406,Revenue,CCHD,Day Care - South,Private & Voluntary Day Care,Care UK,274.06, 22-Nov-2013
407,Revenue,CCHD,Day Care - North,Private & Voluntary Day Care,Care UK,460.32, 22-Nov-2013
408,Revenue,CCHD,Home care - Elderly MH - North,Other Small Contracts,Care UK,582.86, 22-Nov-2013
409,Revenue,CCHD,Elderly MH Day Care North,Private & Voluntary Day Care,Care UK,138.96, 22-Nov-2013
410,Revenue,CCHD,Alexandra Way,Furniture & Fittings Loose,Carechair Limited,503, 08-Nov-2013
411,Revenue,CCHD,Home Care - Elderly - South,Other Small Contracts,Carewatch (Bristol),901, 11-Nov-2013
412,Revenue,CCHD,Home Care - Elderly - North,Other Small Contracts,Carewatch (Bristol),1049.75, 11-Nov-2013
413,Revenue,CCHD,Home Care - Elderly - South,Other Small Contracts,Carewatch (Bristol),777.75, 19-Nov-2013
414,Revenue,CCHD,Home Care - Elderly - North,Other Small Contracts,Carewatch (Bristol),922.25, 19-Nov-2013
415,Revenue,CCHD,Home Care - Elderly - South,Other Small Contracts,Carewatch (Bristol),731, 19-Nov-2013
416,Revenue,CCHD,Home Care - Elderly - North,Other Small Contracts,Carewatch (Bristol),807.5, 19-Nov-2013
417,Revenue,CCHD,Home Care - Elderly - South,Other Small Contracts,Carewatch (Bristol),998.75, 11-Nov-2013
418,Revenue,CCHD,Home Care - Elderly - North,Other Small Contracts,Carewatch (Bristol),1071, 11-Nov-2013
419,Revenue,CCHD,Home Care - Elderly - South,Other Small Contracts,Carewatch (Bristol),1003, 11-Nov-2013
420,Revenue,CCHD,Home Care - Elderly - North,Other Small Contracts,Carewatch (Bristol),607.75, 11-Nov-2013
421,Revenue,CCHD,Home Care - Elderly - South,Other Small Contracts,Cash Friday at Lloyds TSB,101.4, 26-Nov-2013
422,Revenue,CCHD,Home Care - Elderly - North,Other Small Contracts,Cash Friday at Lloyds TSB,889.2, 26-Nov-2013
423,Revenue,CCHD,Home Care - Elderly - South,Other Small Contracts,Cash Friday at Lloyds TSB,101.4, 19-Nov-2013
424,Revenue,CCHD,Home Care - Elderly - North,Other Small Contracts,Cash Friday at Lloyds TSB,916.5, 19-Nov-2013
425,Revenue,CCHD,Home Care - Elderly - South,Other Small Contracts,Cash Friday at Lloyds TSB,97.5, 19-Nov-2013
426,Revenue,CCHD,Home Care - Elderly - North,Other Small Contracts,Cash Friday at Lloyds TSB,904.8, 19-Nov-2013
427,Revenue,CCHD,Home Care - Elderly - South,Other Small Contracts,Cash Friday at Lloyds TSB,97.5, 26-Nov-2013
428,Revenue,CCHD,Home Care - Elderly - North,Other Small Contracts,Cash Friday at Lloyds TSB,908.7, 26-Nov-2013
429,Revenue,CCHD,Home Care - Elderly - South,Other Small Contracts,Cash Friday at Lloyds TSB,101.4, 26-Nov-2013
430,Revenue,CCHD,Home Care - Elderly - North,Other Small Contracts,Cash Friday at Lloyds TSB,912.6, 26-Nov-2013
431,Revenue,CCHD,Bed Purchasing - Elderly - South,Residential Permanent,Cepen Lodge Care Home,2176.28, 26-Nov-2013
432,Revenue,CCHD,Bed Purchasing - Southmead Hospital,Residential Permanent,Charlton House Residential Home,1385.36, 26-Nov-2013
433,Revenue,CCHD,Home Care - Elderly - South,Other Small Contracts,Cherish Able Care Limited,5000.32, 11-Nov-2013
434,Revenue,CCHD,Home Care - Elderly - South,Other Small Contracts,Cherish Able Care Limited,5391.36, 15-Nov-2013
435,Revenue,CCHD,Home Care - Elderly - South,Other Small Contracts,Cherish Able Care Limited,5216.64, 21-Nov-2013
436,Revenue,CCHD,Home Care - Elderly - South,Other Small Contracts,Cherish Able Care Limited,5363.13, 28-Nov-2013
437,Revenue,CCHD,Bed purchasing -S28A  Under 65 - North,Residential Permanent,Chescombe Lodge,8569.72, 26-Nov-2013
438,Revenue,CCHD,Bed Purchasing - Under 65s PWLD - South,Residential Permanent,Chosen Court,6910.16, 26-Nov-2013
439,Revenue,CCHD,Bed Purchasing - PWLD S 117 Placements,Residential Permanent,Chosen Court,8801.84, 26-Nov-2013
440,Revenue,CCHD,Bed Purchasing - Under 65s PWLD - South,Residential Permanent,Chosen Court,5375.48, 26-Nov-2013
441,Revenue,CCHD,Bed purchasing - Under 65s PWLD - North,Residential Permanent,Church House,10354.44, 26-Nov-2013
442,Revenue,CCHD,Bed purchasing - Under 65s PWLD - North,Residential Permanent,Church House,5821.64, 26-Nov-2013
443,Revenue,CCHD,Supported Living - South,Private & Voluntary Home Care,Cintre Community Limited,528.55, 29-Nov-2013
444,Revenue,CCHD,Bed Purchasing - Southmead Hospital,Residential Permanent,Cleeve Lodge,1435.24, 26-Nov-2013
445,Revenue,CCHD,Bed Purchasing - Elderly - North,Nursing Permanent,Cleeve Lodge,7928.57, 26-Nov-2013
446,Revenue,CCHD,Bed Purchasing - Elderly - North,Nursing Permanent,Cleeve Lodge,1850, 26-Nov-2013
447,Revenue,CCHD,Bed Purchasing - Elderly - South,Residential Permanent,Cleeve Lodge,1764.48, 26-Nov-2013
448,Revenue,CCHD,Bed Purchasing - Elderly - South,Residential Permanent,Cleeve Lodge,2258.44, 26-Nov-2013
449,Revenue,CCHD,Bed Purchasing - Elderly - North,Residential Permanent,Cleeve Lodge,1383.2, 26-Nov-2013
450,Revenue,CCHD,Bed Purchasing - Elderly - South,Residential Permanent,Cleeve Lodge,1779.92, 26-Nov-2013
451,Revenue,CCHD,Bed Purchasing - Elderly - South,Residential Permanent,Collingwood Residential Home,1298.48, 26-Nov-2013
452,Revenue,CCHD,Bed Purchasing - Elderly - South,Residential Permanent,Collingwood Residential Home,1403.68, 26-Nov-2013
453,Revenue,CCHD,Bed Purchasing - Elderly - South,Residential Permanent,Collingwood Residential Home,1421, 26-Nov-2013
454,Revenue,CCHD,Bed Purchasing - Elderly - South,Residential Permanent,Collingwood Residential Home,1089.96, 26-Nov-2013
455,Revenue,CCHD,Bed Purchasing - Elderly MH - South,Residential Permanent,Collingwood Residential Home,1306.28, 26-Nov-2013
456,Revenue,CCHD,Bed Purchasing - Elderly - South,Residential Permanent,Collingwood Residential Home,1156.52, 26-Nov-2013
457,Revenue,CCHD,Bed Purchasing - Elderly - South,Residential Permanent,Collingwood Residential Home,1268.04, 26-Nov-2013
458,Revenue,CCHD,Bed Purchasing - Elderly - South,Residential Permanent,Collingwood Residential Home,1405.32, 26-Nov-2013
459,Revenue,CCHD,Training - Adult Services,Training Expenses,ComputerWorld Training Limited,495, 15-Nov-2013
460,Revenue,CCHD,Bed and Breakfast,Bed & Breakfast,Connolly & Callaghan Limited,476, 14-Nov-2013
461,Revenue,CCHD,Bed and Breakfast,Bed & Breakfast,Connolly & Callaghan Limited,511, 07-Nov-2013
462,Revenue,CCHD,Bed and Breakfast,Bed & Breakfast,Connolly & Callaghan Limited,476, 07-Nov-2013
463,Revenue,CCHD,Bed and Breakfast,Bed & Breakfast,Connolly & Callaghan Limited,511, 07-Nov-2013
464,Revenue,CCHD,Bed and Breakfast,Bed & Breakfast,Connolly & Callaghan Limited,476, 07-Nov-2013
465,Revenue,CCHD,Bed and Breakfast,Bed & Breakfast,Connolly & Callaghan Limited,459.9, 07-Nov-2013
466,Revenue,CCHD,Bed and Breakfast,Bed & Breakfast,Connolly & Callaghan Limited,459.9, 07-Nov-2013
467,Revenue,CCHD,Bed and Breakfast,Bed & Breakfast,Connolly & Callaghan Limited,428.4, 07-Nov-2013
468,Revenue,CCHD,Bed and Breakfast,Bed & Breakfast,Connolly & Callaghan Limited,518.4, 01-Nov-2013
469,Revenue,CCHD,Bed and Breakfast,Bed & Breakfast,Connolly & Callaghan Limited,459.9, 06-Nov-2013
470,Revenue,CCHD,Bed and Breakfast,Bed & Breakfast,Connolly & Callaghan Limited,522.9, 06-Nov-2013
471,Revenue,CCHD,Bed and Breakfast,Bed & Breakfast,Connolly & Callaghan Limited,617.4, 06-Nov-2013
472,Revenue,CCHD,Bed and Breakfast,Bed & Breakfast,Connolly & Callaghan Limited,585.9, 06-Nov-2013
473,Revenue,CCHD,Bed and Breakfast,Bed & Breakfast,Connolly & Callaghan Limited,459.9, 06-Nov-2013
474,Revenue,CCHD,Bed and Breakfast,Bed & Breakfast,Connolly & Callaghan Limited,573.3, 06-Nov-2013
475,Revenue,CCHD,Bed and Breakfast,Bed & Breakfast,Connolly & Callaghan Limited,428.4, 06-Nov-2013
476,Revenue,CCHD,Bed and Breakfast,Bed & Breakfast,Connolly & Callaghan Limited,491.4, 06-Nov-2013
477,Revenue,CCHD,Bed and Breakfast,Bed & Breakfast,Connolly & Callaghan Limited,491.4, 06-Nov-2013
478,Revenue,CCHD,Bed and Breakfast,Bed & Breakfast,Connolly & Callaghan Limited,459.9, 19-Nov-2013
479,Revenue,CCHD,Bed and Breakfast,Bed & Breakfast,Connolly & Callaghan Limited,522.9, 19-Nov-2013
480,Revenue,CCHD,Bed and Breakfast,Bed & Breakfast,Connolly & Callaghan Limited,617.4, 19-Nov-2013
481,Revenue,CCHD,Bed and Breakfast,Bed & Breakfast,Connolly & Callaghan Limited,585.9, 19-Nov-2013
482,Revenue,CCHD,Bed and Breakfast,Bed & Breakfast,Connolly & Callaghan Limited,459.9, 19-Nov-2013
483,Revenue,CCHD,Bed and Breakfast,Bed & Breakfast,Connolly & Callaghan Limited,573.3, 19-Nov-2013
484,Revenue,CCHD,Bed and Breakfast,Bed & Breakfast,Connolly & Callaghan Limited,428.4, 19-Nov-2013
485,Revenue,CCHD,Bed and Breakfast,Bed & Breakfast,Connolly & Callaghan Limited,491.4, 19-Nov-2013
486,Revenue,CCHD,Bed and Breakfast,Bed & Breakfast,Connolly & Callaghan Limited,491.4, 19-Nov-2013
487,Revenue,CCHD,Bed and Breakfast,Bed & Breakfast,Connolly & Callaghan Limited,421.2, 19-Nov-2013
488,Revenue,CCHD,Bed and Breakfast,Bed & Breakfast,Connolly & Callaghan Limited,459.9, 21-Nov-2013
489,Revenue,CCHD,Bed and Breakfast,Bed & Breakfast,Connolly & Callaghan Limited,522.9, 21-Nov-2013
490,Revenue,CCHD,Bed and Breakfast,Bed & Breakfast,Connolly & Callaghan Limited,459.9, 21-Nov-2013
491,Revenue,CCHD,Bed and Breakfast,Bed & Breakfast,Connolly & Callaghan Limited,573.3, 21-Nov-2013
492,Revenue,CCHD,Bed and Breakfast,Bed & Breakfast,Connolly & Callaghan Limited,428.4, 21-Nov-2013
493,Revenue,CCHD,Bed and Breakfast,Bed & Breakfast,Connolly & Callaghan Limited,491.4, 21-Nov-2013
494,Revenue,CCHD,Bed and Breakfast,Bed & Breakfast,Connolly & Callaghan Limited,491.4, 21-Nov-2013
495,Revenue,CCHD,Bed and Breakfast,Bed & Breakfast,Connolly & Callaghan Limited,490, 25-Nov-2013
496,Revenue,CCHD,Bed and Breakfast,Bed & Breakfast,Connolly & Callaghan Limited,459.9, 25-Nov-2013
497,Revenue,CCHD,Bed Purchasing - Frenchay Hospital,Residential Permanent,Coombs Wood House,962.96, 26-Nov-2013
498,Revenue,CCHD,Bed purchasing -S28A  Under 65 - North,Residential Permanent,Cream Ii Ltd  Longrun House,7924.8, 26-Nov-2013
499,Revenue,CCHD,Bed Purchasing - Under 65s PWLD - South,Residential Permanent,Cream Ii Ltd  Longrun House,5546.44, 26-Nov-2013
500,Revenue,CCHD,Bed purchasing -S28A  Under 65 - North,Residential Permanent,Creedy Court,9157.32, 26-Nov-2013
501,Revenue,CCHD,Bed Purchasing - S28A - Over 65- North,Residential Permanent,Creedy Court,7616.76, 26-Nov-2013
502,Revenue,CCHD,Brokerage and Information Service,Grants to Voluntary Bodies,D H I,9210.08, 27-Nov-2013
503,Revenue,CCHD,Purchase of Non-Res Care - South,Private & Voluntary Day Care,Daneswood,1472.68, 15-Nov-2013
504,Revenue,CCHD,Bed Purchasing - Under 65s PWLD - South,Residential Permanent,Daneswood,10848.44, 26-Nov-2013
505,Revenue,CCHD,Bed purchasing - Under 65s PWLD - North,Residential Permanent,Daneswood,8986.84, 26-Nov-2013
506,Revenue,CCHD,Learning Difficulties PSL,Other Supplies & Services,Individual,2016.44, 22-Nov-2013
507,Revenue,CCHD,Purchase of Non-Res Care - North,Private & Voluntary Day Care,Design 4 Life Ltd,1680.9, 07-Nov-2013
508,Revenue,CCHD,Day Care - South,Private & Voluntary Day Care,Dhek Bhal,1044.5, 29-Nov-2013
509,Revenue,CCHD,Day Care - South,Private & Voluntary Day Care,Dhek Bhal,835.6, 29-Nov-2013
510,Revenue,CCHD,Bed Purchasing - Under 65s PWLD - South,Residential Permanent,Dimensions (Uk),4808.36, 26-Nov-2013
511,Revenue,CCHD,Purchase of Non-Res Care - South,Private & Voluntary Day Care,Dimensions (UK) Ltd,511.36, 18-Nov-2013
512,Revenue,CCHD,Purchase of Non-Res Care - South,Private & Voluntary Day Care,Dimensions (UK) Ltd,511.36, 18-Nov-2013
513,Revenue,CCHD,Supported Living - South,Private & Voluntary Home Care,Dimensions (UK) Ltd,8006.68, 20-Nov-2013
514,Revenue,CCHD,Community Support - North,Preventative Assistance,Dobbins Industrial Cleaning Limited,640, 11-Nov-2013
515,Revenue,CCHD,Bed Purchasing - Under 65s PWLD - South,Residential Permanent,Dudbridge House,6546.16, 26-Nov-2013
516,Revenue,CCHD,Bed Purchasing - Elderly - South,Nursing Permanent,Dunkirk Memorial House,1158.8, 26-Nov-2013
517,Revenue,CCHD,MH Purchasing - Younger,Residential Permanent,Dunraven House,1826.8, 26-Nov-2013
518,Revenue,CCHD,Bed and Breakfast,Bed & Breakfast,E J Bartlett,651, 01-Nov-2013
519,Revenue,CCHD,Bed and Breakfast,Bed & Breakfast,E J Bartlett,651, 05-Nov-2013
520,Revenue,CCHD,Bed and Breakfast,Bed & Breakfast,E J Bartlett,434, 05-Nov-2013
521,Revenue,CCHD,Bed and Breakfast,Bed & Breakfast,E J Bartlett,868, 05-Nov-2013
522,Revenue,CCHD,Bed and Breakfast,Bed & Breakfast,E J Bartlett,651, 14-Nov-2013
523,Revenue,CCHD,Bed and Breakfast,Bed & Breakfast,E J Bartlett,434, 14-Nov-2013
524,Revenue,CCHD,Bed and Breakfast,Bed & Breakfast,E J Bartlett,868, 14-Nov-2013
525,Revenue,CCHD,Bed and Breakfast,Bed & Breakfast,E J Bartlett,651, 21-Nov-2013
526,Revenue,CCHD,Bed and Breakfast,Bed & Breakfast,E J Bartlett,434, 21-Nov-2013
527,Revenue,CCHD,Bed and Breakfast,Bed & Breakfast,E J Bartlett,868, 21-Nov-2013
528,Revenue,CCHD,Bed and Breakfast,Bed & Breakfast,E J Bartlett,465, 27-Nov-2013
529,Revenue,CCHD,Bed and Breakfast,Bed & Breakfast,E J Bartlett,600, 27-Nov-2013
530,Revenue,CCHD,Bed and Breakfast,Bed & Breakfast,E J Bartlett,434, 27-Nov-2013
531,Revenue,CCHD,Bed and Breakfast,Bed & Breakfast,E J Bartlett,868, 27-Nov-2013
532,Revenue,CCHD,Bed purchasing - Under 65s PWLD - North,Residential Permanent,East Court,2180.72, 26-Nov-2013
533,Revenue,CCHD,Day Care - South,Private & Voluntary Day Care,Easton Community Centre,512.88, 26-Nov-2013
534,Revenue,CCHD,Day Care - South,Private & Voluntary Day Care,Easton Community Centre,512.88, 26-Nov-2013
535,Revenue,CCHD,Younger MH non-res purchasing,Private & Voluntary Day Care,Easton Community Centre,512.88, 26-Nov-2013
536,Revenue,CCHD,Day Care - South,Private & Voluntary Day Care,Easton Community Centre,512.88, 26-Nov-2013
537,Revenue,CCHD,Day Care - South,Private & Voluntary Day Care,Easton Community Centre,512.88, 26-Nov-2013
538,Revenue,CCHD,Bed Purchasing - Elderly - South,Residential Permanent,Edgecumbe Lodge,1514, 26-Nov-2013
539,Revenue,CCHD,Bed Purchasing - Southmead Hospital,Residential Permanent,Edgecumbe Lodge,1246, 26-Nov-2013
540,Revenue,CCHD,Bed Purchasing - Elderly - South,Residential Permanent,Edgecumbe Lodge,1052.16, 26-Nov-2013
541,Revenue,CCHD,Bed Purchasing - Elderly - South,Residential Permanent,Edgecumbe Lodge,1312.64, 26-Nov-2013
542,Revenue,CCHD,Bed Purchasing - Southmead Hospital,Residential Permanent,Edgecumbe Lodge,2100, 26-Nov-2013
543,Revenue,CCHD,Bed Purchasing - Southmead Hospital,Residential Permanent,Edgecumbe Lodge,1151.5, 26-Nov-2013
544,Revenue,CCHD,Bed Purchasing - Elderly - South,Residential Permanent,Edgecumbe Lodge,1405.12, 26-Nov-2013
545,Revenue,CCHD,Bed Purchasing - Southmead Hospital,Residential Permanent,Edgecumbe Lodge,1514, 26-Nov-2013
546,Revenue,CCHD,Bed Purchasing - Elderly - South,Residential Permanent,Edgecumbe Lodge,991.96, 26-Nov-2013
547,Revenue,CCHD,Bed Purchasing - Elderly - South,Residential Permanent,Edgecumbe Lodge,1276.24, 26-Nov-2013
548,Revenue,CCHD,Bed Purchasing - Elderly - South,Residential Permanent,Edgecumbe Lodge,1223.16, 26-Nov-2013
549,Revenue,CCHD,Bed Purchasing - Southmead Hospital,Residential Permanent,Edgemont House Ltd,1414, 26-Nov-2013
550,Revenue,CCHD,Bed Purchasing - Elderly - South,Residential Permanent,Edgemont House Ltd,1454, 26-Nov-2013
551,Revenue,CCHD,Bed Purchasing - Elderly - South,Residential Permanent,Edgemont House Ltd,1246, 26-Nov-2013
552,Revenue,CCHD,Bed Purchasing - Elderly - South,Residential Permanent,Edgemont House Ltd,1246, 26-Nov-2013
553,Revenue,CCHD,Bed Purchasing - Elderly - South,Residential Permanent,Edgemont House Ltd,1412.04, 26-Nov-2013
554,Revenue,CCHD,Bed Purchasing - Elderly - South,Residential Permanent,Edgemont House Ltd,1260.96, 26-Nov-2013
555,Revenue,CCHD,Bed Purchasing - Elderly - South,Nursing Permanent,Edgemont View Nursing Home,1427.52, 26-Nov-2013
556,Revenue,CCHD,Bed Purchasing - Elderly - South,Nursing Permanent,Edgemont View Nursing Home,1302, 26-Nov-2013
557,Revenue,CCHD,Bed Purchasing - Elderly - South,Nursing Permanent,Edgemont View Nursing Home,1613.52, 26-Nov-2013
558,Revenue,CCHD,Bed Purchasing - Elderly - South,Nursing Permanent,Edgemont View Nursing Home,1177.24, 26-Nov-2013
559,Revenue,CCHD,Telecare,Other Supplies & Services,Eldercare,1397.77, 18-Nov-2013
560,Revenue,CCHD,Supporting People Programme,Grants to Voluntary Bodies,Elim Housing Association Limited,4945.25, 01-Nov-2013
561,Revenue,CCHD,Supporting People Programme,Grants to Voluntary Bodies,Elim Housing Association Limited,4945.25, 29-Nov-2013
562,Revenue,CCHD,Home Care - Elderly - South,Other Small Contracts,Elite Home Care Ltd,4819.63, 07-Nov-2013
563,Revenue,CCHD,Home care - Elderly MH - North,Other Small Contracts,Elite Home Care Ltd,166.06, 07-Nov-2013
564,Revenue,CCHD,Home Care - Elderly - South,Other Small Contracts,Elite Home Care Ltd,3980.55, 14-Nov-2013
565,Revenue,CCHD,Home care - Elderly MH - North,Other Small Contracts,Elite Home Care Ltd,122.36, 14-Nov-2013
566,Revenue,CCHD,Home Care - Elderly - South,Other Small Contracts,Elite Home Care Ltd,4452.55, 22-Nov-2013
567,Revenue,CCHD,Home Care - Elderly - South,Other Small Contracts,Elite Home Care Ltd,4963.84, 07-Nov-2013
568,Revenue,CCHD,Home care - Elderly MH - North,Other Small Contracts,Elite Home Care Ltd,157.32, 07-Nov-2013
569,Revenue,CCHD,Homelessness Grant,Other Supplies & Services,Elizabeth Fox,1250, 07-Nov-2013
570,Revenue,CCHD,Bed Purchasing - Frenchay Hospital,Nursing Permanent,Elmwood Nursing Home,4447.76, 26-Nov-2013
571,Revenue,CCHD,Day Care - South,Private & Voluntary Day Care,Enham,638.72, 06-Nov-2013
572,Revenue,CCHD,Home Care - Elderly - South,Other Small Contracts,Everycare (Bristol) Ltd,5596.8, 19-Nov-2013
573,Revenue,CCHD,Home Care - Elderly - North,Other Small Contracts,Everycare (Bristol) Ltd,1645.12, 19-Nov-2013
574,Revenue,CCHD,Day Care - South,Private & Voluntary Day Care,Everycare (Bristol) Ltd,93.28, 19-Nov-2013
575,Revenue,CCHD,Under 65s -MH  Home Care Purch,Other Small Contracts,Everycare (Bristol) Ltd,33.92, 19-Nov-2013
576,Revenue,CCHD,Home Care - Elderly - South,Other Small Contracts,Everycare (Bristol) Ltd,5554.4, 19-Nov-2013
577,Revenue,CCHD,Home Care - Elderly - North,Other Small Contracts,Everycare (Bristol) Ltd,2006.58, 19-Nov-2013
578,Revenue,CCHD,Day Care - South,Private & Voluntary Day Care,Everycare (Bristol) Ltd,101.76, 19-Nov-2013
579,Revenue,CCHD,Under 65s -MH  Home Care Purch,Other Small Contracts,Everycare (Bristol) Ltd,84.8, 19-Nov-2013
580,Revenue,CCHD,Home Care - Elderly - South,Other Small Contracts,Everycare (Bristol) Ltd,6025.04, 19-Nov-2013
581,Revenue,CCHD,Home Care - Elderly - North,Other Small Contracts,Everycare (Bristol) Ltd,2242.96, 19-Nov-2013
582,Revenue,CCHD,Day Care - South,Private & Voluntary Day Care,Everycare (Bristol) Ltd,67.84, 19-Nov-2013
583,Revenue,CCHD,Under 65s -MH  Home Care Purch,Other Small Contracts,Everycare (Bristol) Ltd,84.8, 19-Nov-2013
584,Revenue,CCHD,Bed Purchasing - Elderly MH - South,Residential Permanent,Exmouth House,2795.76, 26-Nov-2013
585,Revenue,CCHD,Bed Purchasing - Elderly - South,Nursing Permanent,Fairview Court,1180.4, 26-Nov-2013
586,Revenue,CCHD,Bed purchasing - Elderly MH - North,Nursing Permanent,Fairview Court,1595.96, 26-Nov-2013
587,Revenue,CCHD,Bed Purchasing - Elderly MH - South,Nursing Permanent,Fairview Court,1850.48, 26-Nov-2013
588,Revenue,CCHD,Bed Purchasing - Elderly MH - South,Nursing Permanent,Fairview Court,1934.36, 26-Nov-2013
589,Revenue,CCHD,Bed Purchasing - Southmead Hospital,Nursing Permanent,Fairview Court,1023.72, 26-Nov-2013
590,Revenue,CCHD,Bed Purchasing - Elderly - South,Nursing Permanent,Fairview Court,1056.84, 26-Nov-2013
591,Revenue,CCHD,Bed Purchasing - Elderly MH - South,Residential Permanent,Fairview Court,1414, 26-Nov-2013
592,Revenue,CCHD,Bed Purchasing - Elderly - South,Nursing Permanent,Fairview Court,2476, 26-Nov-2013
593,Revenue,CCHD,Bed Purchasing - Elderly - South,Residential Permanent,Fairview Court,2648.56, 26-Nov-2013
594,Revenue,CCHD,Bed Purchasing - Elderly - South,Residential Permanent,Fairview Court,2154.56, 26-Nov-2013
595,Revenue,CCHD,Bed Purchasing - Elderly - South,Nursing Permanent,Fairview Court,1830.44, 26-Nov-2013
596,Revenue,CCHD,Bed Purchasing - Frenchay Hospital,Nursing Permanent,Fairview Court,1836.08, 26-Nov-2013
597,Revenue,CCHD,Bed Purchasing - Elderly MH - South,Nursing Permanent,Fairview Court,1921.68, 26-Nov-2013
598,Revenue,CCHD,Bed purchasing - Elderly MH - North,Nursing Permanent,Fairview Court,1699.6, 26-Nov-2013
599,Revenue,CCHD,Bed Purchasing - Frenchay Hospital,Nursing Permanent,Fairview Court Care Home,1531.89, 14-Nov-2013
600,Revenue,CCHD,South Glos Users in South Glos Homes,Nursing Permanent,Fairview Court Care Home,2431.06, 14-Nov-2013
601,Revenue,CCHD,Bed purchasing - Phys Dis - North,Nursing Permanent,Fairview Court Care Home,3060.72, 14-Nov-2013
602,Revenue,CCHD,Bed Purchasing - Elderly MH - South,Nursing Permanent,Fairview Court Care Home,4679.05, 14-Nov-2013
603,Revenue,CCHD,Bed purchasing - Elderly S117 - South,Nursing Permanent,Fairview Court Care Home,2574.51, 14-Nov-2013
604,Revenue,CCHD,Bed Purchasing - Elderly - South,Residential Permanent,Fairview House,865.48, 26-Nov-2013
605,Revenue,CCHD,Bed Purchasing - Elderly - South,Residential Permanent,Fairview House,1265.24, 26-Nov-2013
606,Revenue,CCHD,Bed Purchasing - Frenchay Hospital,Residential Permanent,Fairview House,992.24, 26-Nov-2013
607,Revenue,CCHD,Bed Purchasing - Elderly - South,Residential Permanent,Fairview House,928.12, 26-Nov-2013
608,Revenue,CCHD,Bed purchasing - Elderly S117 - South,Residential Permanent,Fairview House,1888.88, 26-Nov-2013
609,Revenue,CCHD,Bed Purchasing - Southmead Hospital,Residential Permanent,Fairview House,1019.48, 26-Nov-2013
610,Revenue,CCHD,Bed Purchasing - Elderly - South,Residential Permanent,Fairview House,721.84, 26-Nov-2013
611,Revenue,CCHD,Bed Purchasing - Elderly - South,Residential Permanent,Fairview House,1188.36, 26-Nov-2013
612,Revenue,CCHD,Bed Purchasing - Southmead Hospital,Residential Permanent,Fairview House,1116.24, 26-Nov-2013
613,Revenue,CCHD,Bed Purchasing - Elderly MH - South,Residential Permanent,Fairview House,1109.84, 26-Nov-2013
614,Revenue,CCHD,Bed Purchasing - Frenchay Hospital,Residential Permanent,Fairview House,1246, 26-Nov-2013
615,Revenue,CCHD,Bed Purchasing - Southmead Hospital,Residential Permanent,Fairview House,1062.04, 26-Nov-2013
616,Revenue,CCHD,Bed Purchasing - Elderly - South,Residential Permanent,Fairview House,1613.16, 26-Nov-2013
617,Revenue,CCHD,Bed Purchasing - Elderly - South,Residential Permanent,Fairview House,1250.08, 26-Nov-2013
618,Revenue,CCHD,Swift Dump Code,Residential Permanent,Fairview House,693.25, 26-Nov-2013
619,Revenue,CCHD,Bed Purchasing - Elderly MH - South,Residential Permanent,Fairview House,1036.08, 26-Nov-2013
620,Revenue,CCHD,Bed Purchasing - Frenchay Hospital,Residential Permanent,Faith House,1206.2, 26-Nov-2013
621,Revenue,CCHD,Bed Purchasing - Elderly - North,Residential Permanent,Faith House,1714, 26-Nov-2013
622,Revenue,CCHD,Tenancy Start Up Scheme,Other Supplies & Services,Farringtons Sales & Lettings,1609.6, 11-Nov-2013
623,Revenue,CCHD,Bed purchasing - Under 65s PWLD - North,Residential Permanent,Fernbank,7593.16, 26-Nov-2013
624,Revenue,CCHD,Bed Purchasing - Elderly - South,Nursing Permanent,Four Seasons Health Care,1177.16, 26-Nov-2013
625,Revenue,CCHD,Bed Purchasing - Elderly S117- North,Residential Permanent,Four Seasons Health Care,2030.36, 26-Nov-2013
626,Revenue,CCHD,Bed Purchasing - Frenchay Hospital,Residential Permanent,Four Seasons Health Care,1526.84, 26-Nov-2013
627,Revenue,CCHD,Home Care - Elderly - South,Other Small Contracts,Freedom Social Care Recruitment,1304.73, 15-Nov-2013
628,Revenue,CCHD,Home Care - Elderly - North,Other Small Contracts,Freedom Social Care Recruitment,2933.22, 15-Nov-2013
629,Revenue,CCHD,Day Care - North,Private & Voluntary Day Care,Freedom Social Care Recruitment,15.96, 15-Nov-2013
630,Revenue,CCHD,Home Care - Elderly - South,Other Small Contracts,Freedom Social Care Recruitment,1268.82, 11-Nov-2013
631,Revenue,CCHD,Home Care - Elderly - North,Other Small Contracts,Freedom Social Care Recruitment,2953.17, 11-Nov-2013
632,Revenue,CCHD,Home care - Elderly MH - North,Other Small Contracts,Freedom Social Care Recruitment,15.96, 11-Nov-2013
633,Revenue,CCHD,Home Care - Elderly - South,Other Small Contracts,Freedom Social Care Recruitment,1352.61, 11-Nov-2013
634,Revenue,CCHD,Home Care - Elderly - North,Other Small Contracts,Freedom Social Care Recruitment,2965.14, 11-Nov-2013
635,Revenue,CCHD,Home care - Elderly MH - North,Other Small Contracts,Freedom Social Care Recruitment,15.96, 11-Nov-2013
636,Revenue,CCHD,Home Care - Elderly - South,Other Small Contracts,Freedom Social Care Recruitment,1248.87, 22-Nov-2013
637,Revenue,CCHD,Home Care - Elderly - North,Other Small Contracts,Freedom Social Care Recruitment,3156.66, 22-Nov-2013
638,Revenue,CCHD,Day Care - North,Private & Voluntary Day Care,Freedom Social Care Recruitment,31.92, 22-Nov-2013
639,Revenue,CCHD,Home care - Elderly MH - North,Other Small Contracts,Freedom Social Care Recruitment,15.96, 22-Nov-2013
640,Revenue,CCHD,Freeways,Residential Permanent,Freeways Trust Limited,46214.23, 14-Nov-2013
641,Revenue,CCHD,Supported Living - South,Private & Voluntary Home Care,Freeways Trust Limited,1253.56, 15-Nov-2013
642,Revenue,CCHD,Supported Living - South,Private & Voluntary Home Care,Freeways Trust Limited,1393.18, 21-Nov-2013
643,Revenue,CCHD,Bed purchasing - Under 65s PWLD - North,Residential Permanent,Freeways Trust Ltd,2817.88, 26-Nov-2013
644,Revenue,CCHD,Bed purchasing - S28A Under 65 - South,Residential Permanent,Freeways Trust Ltd,2880.64, 26-Nov-2013
645,Revenue,CCHD,Bed purchasing - Under 65s PWLD - North,Residential Permanent,Freeways Trust Ltd,2682.36, 26-Nov-2013
646,Revenue,CCHD,Bed purchasing - Under 65s PWLD - North,Residential Permanent,Freeways Trust Ltd,2253.16, 26-Nov-2013
647,Revenue,CCHD,Bed purchasing - Under 65s PWLD - North,Residential Permanent,Freeways Trust Ltd,2691.08, 26-Nov-2013
648,Revenue,CCHD,Bed Purchasing - Under 65s PWLD - South,Residential Permanent,Freeways Trust Ltd,3289.6, 26-Nov-2013
649,Revenue,CCHD,Bed purchasing - Elderly PWLD - North,Residential Permanent,Freeways Trust Ltd,2235.92, 26-Nov-2013
650,Revenue,CCHD,Bed Purchasing - Under 65s PWLD - South,Residential Permanent,Freeways Trust Ltd,2382.36, 26-Nov-2013
651,Revenue,CCHD,Bed purchasing - Under 65s PWLD - North,Residential Permanent,Freeways Trust Ltd,2691.08, 26-Nov-2013
652,Revenue,CCHD,Bed purchasing - Elderly PWLD - North,Residential Permanent,Freeways Trust Ltd,3112.28, 26-Nov-2013
653,Revenue,CCHD,Section 117 Placements MH Younger,Residential Permanent,Freeways Trust Ltd,3324, 26-Nov-2013
654,Revenue,CCHD,Bed Purchasing - Under 65s PWLD - South,Residential Permanent,Freeways Trust Ltd,6117.96, 26-Nov-2013
655,Revenue,CCHD,Bed Purchasing - Frenchay Hospital,Nursing Permanent,Frenchay Park Nursing Home,1254.56, 26-Nov-2013
656,Revenue,CCHD,Bed Purchasing - Frenchay Hospital,Nursing Permanent,Frenchay Park Nursing Home,1004.36, 26-Nov-2013
657,Revenue,CCHD,Bed Purchasing - Elderly - South,Nursing Permanent,Fshc  1St Floor,891.56, 26-Nov-2013
658,Revenue,CCHD,Bed Purchasing - Frenchay Hospital,Residential Permanent,Fshc  1St Floor,893.96, 26-Nov-2013
659,Revenue,CCHD,Bed Purchasing - Southmead Hospital,Nursing Permanent,Fshc  1St Floor,1370, 26-Nov-2013
660,Revenue,CCHD,Bed Purchasing - Southmead Hospital,Nursing Permanent,Fshc  1St Floor,782.16, 26-Nov-2013
661,Revenue,CCHD,Bed Purchasing - Frenchay Hospital,Residential Permanent,Fshc  1St Floor,1242.96, 26-Nov-2013
662,Revenue,CCHD,Bed Purchasing - Frenchay Hospital,Residential Permanent,Fshc  1St Floor,1081.7, 26-Nov-2013
663,Revenue,CCHD,Bed Purchasing - Frenchay Hospital,Nursing Permanent,Fshc  1St Floor,1370, 26-Nov-2013
664,Revenue,CCHD,Bed Purchasing - Southmead Hospital,Nursing Permanent,Fshc  1St Floor,1370, 26-Nov-2013
665,Revenue,CCHD,Bed Purchasing - Elderly - South,Nursing Permanent,Fshc  1St Floor,1048.64, 26-Nov-2013
666,Revenue,CCHD,Bed Purchasing - Southmead Hospital,Nursing Permanent,Fshc  1St Floor,1370, 26-Nov-2013
667,Revenue,CCHD,Bed Purchasing - Elderly - South,Nursing Permanent,Fshc  1St Floor,1206.72, 26-Nov-2013
668,Revenue,CCHD,Bed Purchasing - Elderly - South,Residential Permanent,Fshc  1St Floor,3350.79, 26-Nov-2013
669,Revenue,CCHD,Bed Purchasing - Elderly - South,Nursing Permanent,Fshc  1St Floor,1301.36, 26-Nov-2013
670,Revenue,CCHD,Bed Purchasing - Frenchay Hospital,Residential Permanent,Fshc  1St Floor,1735.5, 26-Nov-2013
671,Revenue,CCHD,Bed Purchasing - Frenchay Hospital,Residential Permanent,Fshc  1St Floor,1246, 26-Nov-2013
672,Revenue,CCHD,Bed Purchasing - Frenchay Hospital,Residential Respite,Fshc  1St Floor,3031, 26-Nov-2013
673,Revenue,CCHD,Bed Purchasing - Frenchay Hospital,Nursing Permanent,Fshc  1St Floor,1308.96, 26-Nov-2013
674,Revenue,CCHD,Bed Purchasing - Southmead Hospital,Nursing Permanent,Fshc  1St Floor,1370, 26-Nov-2013
675,Revenue,CCHD,Bed Purchasing - Southmead Hospital,Residential Permanent,Fshc  1St Floor,533.6, 26-Nov-2013
676,Revenue,CCHD,Bed Purchasing - Southmead Hospital,Nursing Permanent,Fshc  1St Floor,1102.08, 26-Nov-2013
677,Revenue,CCHD,Bed Purchasing - Elderly - North,Nursing Permanent,Fshc  1St Floor,1370, 26-Nov-2013
678,Revenue,CCHD,Bed Purchasing - Elderly - North,Nursing Permanent,Fshc  1St Floor,1856, 26-Nov-2013
679,Revenue,CCHD,Bed Purchasing - Frenchay Hospital,Nursing Permanent,Fshc  1St Floor,1180.6, 26-Nov-2013
680,Revenue,CCHD,Bed Purchasing - Elderly - South,Nursing Permanent,Fshc  1St Floor,1370, 26-Nov-2013
681,Revenue,CCHD,Bed Purchasing - Elderly - South,Nursing Permanent,Fshc  1St Floor,1316.36, 26-Nov-2013
682,Revenue,CCHD,Bed Purchasing - Elderly MH - South,Nursing Permanent,Fshc  1St Floor,1370, 26-Nov-2013
683,Revenue,CCHD,Bed Purchasing - Elderly - South,Nursing Permanent,Fshc  1St Floor,1082.04, 26-Nov-2013
684,Revenue,CCHD,Bed Purchasing - Elderly - South,Nursing Permanent,Fshc  1St Floor,1371.6, 26-Nov-2013
685,Revenue,CCHD,Bed Purchasing - Frenchay Hospital,Nursing Permanent,Fshc  1St Floor,1078.4, 26-Nov-2013
686,Revenue,CCHD,Bed Purchasing - Elderly MH - South,Residential Permanent,Fshc  1St Floor,1090.48, 26-Nov-2013
687,Revenue,CCHD,Bed Purchasing - Elderly - South,Nursing Permanent,Fshc  1St Floor,765.08, 26-Nov-2013
688,Revenue,CCHD,Bed Purchasing - Elderly - South,Nursing Permanent,Fshc  1St Floor,1334, 26-Nov-2013
689,Revenue,CCHD,Bed Purchasing - Southmead Hospital,Nursing Permanent,Fshc  1St Floor,1370, 26-Nov-2013
690,Revenue,CCHD,Bed Purchasing - Elderly MH - South,Nursing Permanent,Fshc  1St Floor,1216.84, 26-Nov-2013
691,Revenue,CCHD,Bed Purchasing - Southmead Hospital,Nursing Permanent,Fshc  1St Floor,1362.4, 26-Nov-2013
692,Revenue,CCHD,Bed purchasing - Elderly MH - North,Nursing Permanent,Fshc  1St Floor,786.72, 26-Nov-2013
693,Revenue,CCHD,Bed Purchasing - Elderly - South,Nursing Permanent,Fshc  1St Floor,992.4, 26-Nov-2013
694,Revenue,CCHD,Bed Purchasing - Southmead Hospital,Nursing Permanent,Fshc  1St Floor,1546, 26-Nov-2013
695,Revenue,CCHD,Bed Purchasing - Southmead Hospital,Nursing Permanent,Fshc  1St Floor,1549.56, 26-Nov-2013
696,Revenue,CCHD,Bed Purchasing - Elderly - North,Nursing Permanent,Fshc  1St Floor,974.36, 26-Nov-2013
697,Revenue,CCHD,Bed Purchasing - Frenchay Hospital,Residential Permanent,Fshc  1St Floor,735.36, 26-Nov-2013
698,Revenue,CCHD,Bed Purchasing - Elderly - North,Nursing Permanent,Fshc  1St Floor,1284.08, 26-Nov-2013
699,Revenue,CCHD,Bed Purchasing - Elderly - North,Nursing Permanent,Fshc  1St Floor,1339, 26-Nov-2013
700,Revenue,CCHD,Bed Purchasing - Elderly - North,Nursing Permanent,Fshc  1St Floor,1546, 26-Nov-2013
701,Revenue,CCHD,Bed Purchasing - Elderly - North,Nursing Permanent,Fshc  1St Floor,1159.5, 26-Nov-2013
702,Revenue,CCHD,Bed Purchasing - Southmead Hospital,Nursing Permanent,Fshc  1St Floor,1215.4, 26-Nov-2013
703,Revenue,CCHD,Bed Purchasing - Elderly - North,Residential Permanent,Fshc  1St Floor,1347.68, 26-Nov-2013
704,Revenue,CCHD,Bed Purchasing - Elderly - North,Residential Permanent,Fshc  1St Floor,1378.12, 26-Nov-2013
705,Revenue,CCHD,Bed Purchasing - Elderly - North,Residential Permanent,Fshc  1St Floor,1359.72, 26-Nov-2013
706,Revenue,CCHD,Bed Purchasing - Southmead Hospital,Nursing Permanent,Fshc  1St Floor,2032, 26-Nov-2013
707,Revenue,CCHD,Bed Purchasing - Frenchay Hospital,Nursing Permanent,Fshc  1St Floor,1097.72, 26-Nov-2013
708,Revenue,CCHD,Bed Purchasing - Frenchay Hospital,Nursing Permanent,Fshc  1St Floor,1114.96, 26-Nov-2013
709,Revenue,CCHD,Bed purchasing - Elderly MH - North,Nursing Permanent,Fshc  1St Floor,1546, 26-Nov-2013
710,Revenue,CCHD,Bed Purchasing - Southmead Hospital,Nursing Permanent,Fshc  1St Floor,1269.68, 26-Nov-2013
711,Revenue,CCHD,Bed Purchasing - Elderly - South,Residential Permanent,Fshc  1St Floor,1117.84, 26-Nov-2013
712,Revenue,CCHD,Bed Purchasing - Frenchay Hospital,Nursing Permanent,Fshc  1St Floor,1546, 26-Nov-2013
713,Revenue,CCHD,Bed Purchasing - Elderly - North,Nursing Permanent,Fshc  1St Floor,1370, 26-Nov-2013
714,Revenue,CCHD,Bed Purchasing - Southmead Hospital,Nursing Permanent,Fshc  1St Floor,1370, 26-Nov-2013
715,Revenue,CCHD,Bed Purchasing - Elderly - North,Nursing Permanent,Fshc  1St Floor,579.12, 26-Nov-2013
716,Revenue,CCHD,Bed purchasing - Elderly MH - North,Nursing Permanent,Fshc  1St Floor,1468.6, 26-Nov-2013
717,Revenue,CCHD,Bed Purchasing - Elderly - North,Nursing Permanent,Fshc  1St Floor,1269.68, 26-Nov-2013
718,Revenue,CCHD,Bed Purchasing - Frenchay Hospital,Nursing Permanent,Fshc  1St Floor,873.22, 26-Nov-2013
719,Revenue,CCHD,Bed Purchasing - Southmead Hospital,Nursing Permanent,Fshc  1St Floor,1364.32, 26-Nov-2013
720,Revenue,CCHD,Bed Purchasing - Frenchay Hospital,Residential Permanent,Fshc  1St Floor,628.4, 26-Nov-2013
721,Revenue,CCHD,Bed Purchasing - Frenchay Hospital,Nursing Permanent,Fshc  1St Floor,1286.96, 26-Nov-2013
722,Revenue,CCHD,Bed Purchasing - Frenchay Hospital,Nursing Permanent,Fshc  1St Floor,1350.84, 26-Nov-2013
723,Revenue,CCHD,Bed Purchasing - Elderly - North,Nursing Permanent,Fshc  1St Floor,1041.72, 26-Nov-2013
724,Revenue,CCHD,Bed Purchasing - Elderly - North,Residential Permanent,Fshc  1St Floor,782.56, 26-Nov-2013
725,Revenue,CCHD,Bed Purchasing - Frenchay Hospital,Nursing Permanent,Fshc  1St Floor,1211.8, 26-Nov-2013
726,Revenue,CCHD,Bed Purchasing - Southmead Hospital,Nursing Permanent,Fshc  1St Floor,1450.56, 26-Nov-2013
727,Revenue,CCHD,Bed Purchasing - Southmead Hospital,Nursing Permanent,Fshc  1St Floor,1546, 26-Nov-2013
728,Revenue,CCHD,Bed Purchasing - Elderly MH - South,Nursing Permanent,Fshc  1St Floor,1327.8, 26-Nov-2013
729,Revenue,CCHD,Bed Purchasing - Elderly - North,Nursing Permanent,Fshc  1St Floor,1449, 26-Nov-2013
730,Revenue,CCHD,Bed Purchasing - Elderly - North,Residential Permanent,Fshc  1St Floor,505.4, 26-Nov-2013
731,Revenue,CCHD,Bed purchasing - Elderly MH - North,Residential Permanent,Fshc  1St Floor,1246, 26-Nov-2013
732,Revenue,CCHD,Bed Purchasing - Elderly - North,Nursing Permanent,Fshc  1St Floor,1530.84, 26-Nov-2013
733,Revenue,CCHD,Bed purchasing - Elderly S117 - South,Nursing Permanent,Fshc  1St Floor,1856, 26-Nov-2013
734,Revenue,CCHD,Bed purchasing - Elderly MH - North,Residential Permanent,Fshc  1St Floor,1255.2, 26-Nov-2013
735,Revenue,CCHD,Bed Purchasing - Southmead Hospital,Residential Permanent,Fshc  1St Floor,1246, 26-Nov-2013
736,Revenue,CCHD,Bed Purchasing - Elderly - North,Residential Permanent,Fshc  1St Floor,1155.6, 26-Nov-2013
737,Revenue,CCHD,Bed Purchasing - Elderly - North,Nursing Permanent,Fshc  1St Floor,1522, 26-Nov-2013
738,Revenue,CCHD,Bed purchasing - Elderly MH - North,Residential Permanent,Fshc  1St Floor,1378.88, 26-Nov-2013
739,Revenue,CCHD,Bed Purchasing - Elderly - North,Nursing Permanent,Fshc  1St Floor,1349.52, 26-Nov-2013
740,Revenue,CCHD,Bed Purchasing - Southmead Hospital,Nursing Permanent,Fshc  1St Floor,1213.24, 26-Nov-2013
741,Revenue,CCHD,Bed purchasing - Elderly MH - North,Nursing Permanent,Fshc  1St Floor,1048.64, 26-Nov-2013
742,Revenue,CCHD,Bed Purchasing - Elderly - North,Nursing Permanent,Fshc  1St Floor,1370, 26-Nov-2013
743,Revenue,CCHD,Bed Purchasing - Elderly - North,Residential Permanent,Fshc  1St Floor,1254, 26-Nov-2013
744,Revenue,CCHD,Bed Purchasing - Elderly - North,Nursing Permanent,Fshc  1St Floor,1145.72, 26-Nov-2013
745,Revenue,CCHD,Bed Purchasing - Frenchay Hospital,Residential Permanent,Fshc  1St Floor,1246, 26-Nov-2013
746,Revenue,CCHD,Bed Purchasing - Frenchay Hospital,Nursing Permanent,Fshc  1St Floor,1307.44, 26-Nov-2013
747,Revenue,CCHD,Bed Purchasing - Elderly - North,Nursing Permanent,Fshc  1St Floor,3724.49, 26-Nov-2013
748,Revenue,CCHD,Bed Purchasing - Elderly - North,Nursing Permanent,Fshc  1St Floor,854.8, 26-Nov-2013
749,Revenue,CCHD,Swift Dump Code,Residential Permanent,Fshc  1St Floor,711.71, 26-Nov-2013
750,Revenue,CCHD,Bed Purchasing - Elderly - North,Nursing Permanent,Fshc  1St Floor,1013.16, 26-Nov-2013
751,Revenue,CCHD,Bed Purchasing - Southmead Hospital,Nursing Permanent,Fshc  1St Floor,8312.82, 26-Nov-2013
752,Revenue,CCHD,Bed Purchasing - Southmead Hospital,Nursing Permanent,Fshc  1St Floor,1020.68, 26-Nov-2013
753,Revenue,CCHD,Bed Purchasing - Elderly - South,Nursing Permanent,Fshc  1St Floor,1368.76, 26-Nov-2013
754,Revenue,CCHD,Bed Purchasing - Southmead Hospital,Nursing Permanent,Fshc  1St Floor,729.14, 26-Nov-2013
755,Revenue,CCHD,South Glos Users in South Glos Homes,Nursing Permanent,Fshc  1St Floor,501.9, 26-Nov-2013
756,Revenue,CCHD,Bed Purchasing - Frenchay Hospital,Nursing Permanent,Fshc  1St Floor,1370, 26-Nov-2013
757,Revenue,CCHD,Bed Purchasing - Southmead Hospital,Nursing Permanent,Fshc  1St Floor,592.56, 26-Nov-2013
758,Revenue,CCHD,Bed Purchasing - Elderly - North,Nursing Permanent,Fshc  1St Floor,1268.68, 26-Nov-2013
759,Revenue,CCHD,Bed Purchasing - Elderly - North,Nursing Permanent,Fshc  1St Floor,1071.64, 26-Nov-2013
760,Revenue,CCHD,Bed Purchasing - Southmead Hospital,Nursing Permanent,Fshc  1St Floor,754.48, 26-Nov-2013
761,Revenue,CCHD,Bed Purchasing - Elderly - North,Nursing Permanent,Fshc  1St Floor,1379.28, 26-Nov-2013
762,Revenue,CCHD,Bed Purchasing - Frenchay Hospital,Nursing Permanent,Fshc  1St Floor,873.36, 26-Nov-2013
763,Revenue,CCHD,Bed Purchasing - Southmead Hospital,Nursing Permanent,Fshc  1St Floor,1292.6, 26-Nov-2013
764,Revenue,CCHD,Bed Purchasing - Elderly - North,Nursing Permanent,Fshc  1St Floor,1249.04, 26-Nov-2013
765,Revenue,CCHD,Bed Purchasing - Southmead Hospital,Nursing Permanent,Fshc  1St Floor,1370, 26-Nov-2013
766,Revenue,CCHD,Bed Purchasing - Elderly - South,Nursing Permanent,Fshc  1St Floor,1390, 26-Nov-2013
767,Revenue,CCHD,Bed Purchasing - Frenchay Hospital,Nursing Permanent,Fshc  1St Floor,1336.6, 26-Nov-2013
768,Revenue,CCHD,Bed Purchasing - Southmead Hospital,Nursing Permanent,Fshc  1St Floor,1344.2, 26-Nov-2013
769,Revenue,CCHD,Bed Purchasing - Elderly - North,Residential Permanent,Fshc  1St Floor,2960.04, 26-Nov-2013
770,Revenue,CCHD,Bed purchasing - Phys Dis - North,Nursing Permanent,Fshc  1St Floor,1376.28, 26-Nov-2013
771,Revenue,CCHD,Bed Purchasing - Elderly - South,Nursing Permanent,Fshc  1St Floor,1224.64, 26-Nov-2013
772,Revenue,CCHD,Bed Purchasing - Southmead Hospital,Nursing Permanent,Fshc  1St Floor,1370, 26-Nov-2013
773,Revenue,CCHD,Bed Purchasing - Elderly - North,Residential Permanent,Fshc  1St Floor,1342.12, 26-Nov-2013
774,Revenue,CCHD,Bed Purchasing - Southmead Hospital,Nursing Permanent,Fshc  1St Floor,1298.96, 26-Nov-2013
775,Revenue,CCHD,Bed Purchasing - Elderly MH - South,Residential Permanent,Fshc  1St Floor,1924, 26-Nov-2013
776,Revenue,CCHD,Bed Purchasing - Frenchay Hospital,Nursing Permanent,Fshc  1St Floor,1359.08, 26-Nov-2013
777,Revenue,CCHD,Bed Purchasing - Frenchay Hospital,Nursing Permanent,Fshc  1St Floor,1293.56, 26-Nov-2013
778,Revenue,CCHD,Bed Purchasing - Southmead Hospital,Residential Permanent,Fshc  1St Floor,1466, 26-Nov-2013
779,Revenue,CCHD,Bed Purchasing - Elderly - South,Residential Permanent,Fshc  1St Floor,1399.72, 26-Nov-2013
780,Revenue,CCHD,Bed Purchasing - Elderly - North,Residential Permanent,Fshc  1St Floor,1160.96, 26-Nov-2013
781,Revenue,CCHD,Bed Purchasing - Elderly - North,Nursing Permanent,Fshc  1St Floor,1135, 26-Nov-2013
782,Revenue,CCHD,Bed Purchasing - Frenchay Hospital,Nursing Permanent,Fshc  1St Floor,1230.52, 26-Nov-2013
783,Revenue,CCHD,Bed purchasing - Elderly MH - North,Residential Permanent,Fshc  1St Floor,1438, 26-Nov-2013
784,Revenue,CCHD,Bed Purchasing - Southmead Hospital,Nursing Permanent,Fshc  1St Floor,1366, 26-Nov-2013
785,Revenue,CCHD,Bed Purchasing - Elderly - South,Residential Permanent,Fshc  1St Floor,901.24, 26-Nov-2013
786,Revenue,CCHD,Bed Purchasing - Southmead Hospital,Nursing Permanent,Fshc  1St Floor,728.32, 26-Nov-2013
787,Revenue,CCHD,Bed purchasing - Elderly PWLD - South,Residential Permanent,Fshc  1St Floor,1246, 26-Nov-2013
788,Revenue,CCHD,Bed Purchasing - Frenchay Hospital,Nursing Permanent,Fshc  1St Floor,1370, 26-Nov-2013
789,Revenue,CCHD,Bed Purchasing - Southmead Hospital,Nursing Permanent,Fshc  1St Floor,1101.08, 26-Nov-2013
790,Revenue,CCHD,Bed Purchasing - Elderly - North,Residential Permanent,Fshc  1St Floor,1179.92, 26-Nov-2013
791,Revenue,CCHD,Bed Purchasing - Frenchay Hospital,Nursing Permanent,Fshc  1St Floor,1856, 26-Nov-2013
792,Revenue,CCHD,Bed Purchasing - Southmead Hospital,Nursing Permanent,Fshc  1St Floor,878.76, 26-Nov-2013
793,Revenue,CCHD,Bed Purchasing - Frenchay Hospital,Nursing Permanent,Fshc  1St Floor,1370, 26-Nov-2013
794,Revenue,CCHD,Bed Purchasing - Southmead Hospital,Nursing Permanent,Fshc  1St Floor,957.12, 26-Nov-2013
795,Revenue,CCHD,Bed Purchasing - Elderly - South,Residential Permanent,Fshc  1St Floor,816.56, 26-Nov-2013
796,Revenue,CCHD,Bed Purchasing - Southmead Hospital,Nursing Permanent,Fshc  1St Floor,2054.86, 26-Nov-2013
797,Revenue,CCHD,Bed Purchasing - Elderly - South,Residential Respite,Fshc  1St Floor,893.29, 26-Nov-2013
798,Revenue,CCHD,Bed Purchasing - Southmead Hospital,Residential Permanent,Fshc  1St Floor,1453.28, 26-Nov-2013
799,Revenue,CCHD,Bed Purchasing - Elderly - South,Nursing Permanent,Fshc  1St Floor,8220, 26-Nov-2013
800,Revenue,CCHD,Bed Purchasing - Elderly - South,Nursing Permanent,Fshc  1St Floor,1370, 26-Nov-2013
801,Revenue,CCHD,Bed Purchasing - Elderly - South,Nursing Permanent,Fshc  1St Floor,941.76, 26-Nov-2013
802,Revenue,CCHD,Bed purchasing - Elderly S117 - South,Nursing Permanent,Fshc  1St Floor,1856, 26-Nov-2013
803,Revenue,CCHD,Bed Purchasing - Frenchay Hospital,Residential Permanent,Fshc  1St Floor,1107.56, 26-Nov-2013
804,Revenue,CCHD,Bed Purchasing - Frenchay Hospital,Nursing Permanent,Fshc  1St Floor,2299.64, 26-Nov-2013
805,Revenue,CCHD,Bed Purchasing - Frenchay Hospital,Nursing Permanent,Fshc  1St Floor,1370, 26-Nov-2013
806,Revenue,CCHD,Bed Purchasing - Elderly - South,Residential Respite,Fshc  1St Floor,537.14, 26-Nov-2013
807,Revenue,CCHD,Bed Purchasing - Southmead Hospital,Residential Permanent,Fshc  1St Floor,1331.76, 26-Nov-2013
808,Revenue,CCHD,Bed Purchasing - Southmead Hospital,Nursing Permanent,Fshc  1St Floor,1180.56, 26-Nov-2013
809,Revenue,CCHD,Bed Purchasing - Elderly - North,Residential Permanent,Fshc  1St Floor,1199.92, 26-Nov-2013
810,Revenue,CCHD,Bed Purchasing - Southmead Hospital,Nursing Permanent,Fshc  1St Floor,1370, 26-Nov-2013
811,Revenue,CCHD,Bed Purchasing - Southmead Hospital,Nursing Permanent,Fshc  1St Floor,1370, 26-Nov-2013
812,Revenue,CCHD,Bed Purchasing - Frenchay Hospital,Nursing Permanent,Fshc  1St Floor,1109.92, 26-Nov-2013
813,Revenue,CCHD,Bed Purchasing - Southmead Hospital,Nursing Permanent,Fshc  1St Floor,1114.88, 26-Nov-2013
814,Revenue,CCHD,Bed Purchasing - Frenchay Hospital,Nursing Permanent,Fshc  1St Floor,956.08, 26-Nov-2013
815,Revenue,CCHD,Bed Purchasing - Frenchay Hospital,Nursing Permanent,Fshc  1St Floor,1117.88, 26-Nov-2013
816,Revenue,CCHD,Bed Purchasing - Frenchay Hospital,Nursing Permanent,Fshc  1St Floor,1030.08, 26-Nov-2013
817,Revenue,CCHD,Bed Purchasing - Frenchay Hospital,Nursing Permanent,Fshc  1St Floor,1060.28, 26-Nov-2013
818,Revenue,CCHD,Bed Purchasing - Southmead Hospital,Nursing Permanent,Fshc  1St Floor,870.76, 26-Nov-2013
819,Revenue,CCHD,Bed Purchasing - Southmead Hospital,Nursing Permanent,Fshc  1St Floor,739.04, 26-Nov-2013
820,Revenue,CCHD,Bed Purchasing - Southmead Hospital,Residential Permanent,Fshc  1St Floor,1732, 26-Nov-2013
821,Revenue,CCHD,Bed Purchasing - Frenchay Hospital,Nursing Permanent,Fshc  1St Floor,1394.12, 26-Nov-2013
822,Revenue,CCHD,Bed Purchasing - Elderly - North,Nursing Permanent,Fshc  1St Floor,1276.2, 26-Nov-2013
823,Revenue,CCHD,Bed purchasing - Phys Dis - North,Nursing Permanent,Fshc  1St Floor,840.44, 26-Nov-2013
824,Revenue,CCHD,Bed Purchasing - Elderly - North,Nursing Permanent,Fshc  1St Floor,1209.6, 26-Nov-2013
825,Revenue,CCHD,Bed Purchasing - Frenchay Hospital,Nursing Permanent,Fshc  1St Floor,1302, 26-Nov-2013
826,Revenue,CCHD,Bed purchasing - Elderly MH - North,Nursing Permanent,Fshc  1St Floor,858.48, 26-Nov-2013
827,Revenue,CCHD,Bed Purchasing - Southmead Hospital,Nursing Permanent,Fshc  1St Floor,1478, 26-Nov-2013
828,Revenue,CCHD,Bed Purchasing - Frenchay Hospital,Residential Permanent,Fshc  1St Floor,1215.68, 26-Nov-2013
829,Revenue,CCHD,Bed Purchasing - Frenchay Hospital,Residential Permanent,Fshc  1St Floor,1172.26, 26-Nov-2013
830,Revenue,CCHD,Bed Purchasing - Southmead Hospital,Nursing Permanent,Fshc  1St Floor,1285.4, 26-Nov-2013
831,Revenue,CCHD,Bed purchasing - Elderly S117 - South,Nursing Permanent,Fshc  1St Floor,1964, 26-Nov-2013
832,Revenue,CCHD,Bed Purchasing - Frenchay Hospital,Nursing Permanent,Fshc  1St Floor,1080.28, 26-Nov-2013
833,Revenue,CCHD,Bed Purchasing - Frenchay Hospital,Nursing Permanent,Fshc  1St Floor,951.24, 26-Nov-2013
834,Revenue,CCHD,Bed Purchasing - Elderly S117- North,Nursing Permanent,Fshc  1St Floor,1964, 26-Nov-2013
835,Revenue,CCHD,Bed Purchasing - Elderly - North,Residential Permanent,Fshc  1St Floor,1414, 26-Nov-2013
836,Revenue,CCHD,Bed Purchasing - Frenchay Hospital,Nursing Permanent,Fshc  1St Floor,1097.04, 26-Nov-2013
837,Revenue,CCHD,Bed Purchasing - Elderly - South,Residential Permanent,Fshc  1St Floor,1340.56, 26-Nov-2013
838,Revenue,CCHD,Alexandra Way,Prop.Serv. General Repairs,George Grimes,838.5, 27-Nov-2013
839,Revenue,CCHD,Woodleaze,Prop.Serv. General Repairs,George Grimes,660, 25-Nov-2013
840,Revenue,CCHD,Training - Adult Services,Training Expenses,Gizware Systems Limited,500, 08-Nov-2013
841,Revenue,CCHD,Section 117 Placements MH Younger,Residential Permanent,Gladstone House,2721.88, 26-Nov-2013
842,Revenue,CCHD,Bed Purchasing - Under 65s PWLD - South,Residential Permanent,Glasallt Fawr,9095.68, 26-Nov-2013
843,Revenue,CCHD,South Glos Users in South Glos Homes,Nursing Permanent,Glebe House Nursing Home,2682.01, 26-Nov-2013
844,Revenue,CCHD,Bed purchasing - Elderly MH - North,Nursing Permanent,Glebe House Nursing Home,1666.36, 26-Nov-2013
845,Revenue,CCHD,Bed purchasing - Elderly MH - North,Residential Permanent,Glebe House Nursing Home,2007.6, 26-Nov-2013
846,Revenue,CCHD,Swift Dump Code,Residential Permanent,Glebe House Nursing Home,7430.14, 26-Nov-2013
847,Revenue,CCHD,Bed Purchasing - Elderly - North,Nursing Permanent,Glebe House Nursing Home,6592.81, 26-Nov-2013
848,Revenue,CCHD,Swift Dump Code,Residential Permanent,Glebe House Nursing Home,2079.75, 26-Nov-2013
849,Revenue,CCHD,Bed Purchasing - Elderly - North,Nursing Permanent,Glebe House Nursing Home,2575.21, 26-Nov-2013
850,Revenue,CCHD,Bed Purchasing - Frenchay Hospital,Nursing Permanent,Glebe House Nursing Home,898.48, 26-Nov-2013
851,Revenue,CCHD,Bed Purchasing - Elderly - North,Residential Permanent,Glebe House Nursing Home,8091.91, 26-Nov-2013
852,Revenue,CCHD,Swift Dump Code,Residential Permanent,Glebe House Nursing Home,2374.5, 26-Nov-2013
853,Revenue,CCHD,Bed Purchasing - Elderly - North,Residential Permanent,Glebe House Nursing Home,1172.16, 26-Nov-2013
854,Revenue,CCHD,Bed Purchasing - Elderly - South,Residential Permanent,Glebe House Nursing Home,1977.76, 26-Nov-2013
855,Revenue,CCHD,Bed Purchasing - Elderly - North,Residential Permanent,Glebe House Nursing Home,2551.92, 26-Nov-2013
856,Revenue,CCHD,Bed Purchasing - Under 65s PWLD - South,Residential Permanent,Gordena Care Home,2082.36, 26-Nov-2013
857,Revenue,CCHD,Bed purchasing - Elderly PWLD - South,Residential Permanent,Gordena Care Home,4732.4, 26-Nov-2013
858,Revenue,CCHD,Bed purchasing - Elderly PWLD - South,Residential Permanent,Gordena Care Home,3116.24, 26-Nov-2013
859,Revenue,CCHD,Bed purchasing - Elderly PWLD - South,Residential Permanent,Gordena Care Home,2927.44, 26-Nov-2013
860,Revenue,CCHD,Bed Purchasing - Under 65s PWLD - South,Residential Permanent,Gordena Care Home,1907.6, 26-Nov-2013
861,Revenue,CCHD,Bed Purchasing - Under 65s PWLD - South,Residential Permanent,Gordena Care Limited,4158.56, 26-Nov-2013
862,Revenue,CCHD,Bed purchasing - S28A Under 65 - South,Residential Permanent,Gordena Care Limited,4055.8, 26-Nov-2013
863,Revenue,CCHD,Bed purchasing - Under 65s PWLD - North,Residential Permanent,Gordena Care Limited,4160, 26-Nov-2013
864,Revenue,CCHD,Bed Purchasing - Elderly - North,Residential Permanent,Greensleeves,1312.68, 26-Nov-2013
865,Revenue,CCHD,Bed Purchasing - Elderly - South,Residential Permanent,Gwendoline House,1490.04, 26-Nov-2013
866,Revenue,CCHD,Bed Purchasing - Elderly - South,Residential Permanent,Gwendoline House,1164.96, 26-Nov-2013
867,Revenue,CCHD,Bed Purchasing - Elderly - North,Residential Permanent,Gwendoline House,1636.56, 26-Nov-2013
868,Revenue,CCHD,Bed Purchasing - Elderly MH - South,Residential Permanent,Gwendoline House,1284.64, 26-Nov-2013
869,Revenue,CCHD,Bed Purchasing - Southmead Hospital,Residential Permanent,Gwendoline House,1686.64, 26-Nov-2013
870,Revenue,CCHD,Bed Purchasing - Elderly - South,Residential Permanent,Gwendoline House,1128.52, 26-Nov-2013
871,Revenue,CCHD,Supporting People Programme,Grants to Voluntary Bodies,Habinteg Housing Association,1338.75, 01-Nov-2013
872,Revenue,CCHD,Supporting People Programme,Grants to Voluntary Bodies,Habinteg Housing Association,1338.75, 29-Nov-2013
873,Revenue,CCHD,Bed Purchasing - Elderly - South,Residential Permanent,Harefield Hall,1327.24, 26-Nov-2013
874,Revenue,CCHD,Bed Purchasing - Elderly - South,Residential Permanent,Harefield Hall,1968.44, 26-Nov-2013
875,Revenue,CCHD,Bed Purchasing - Elderly - South,Residential Permanent,Harefield Hall,1112.96, 26-Nov-2013
876,Revenue,CCHD,Bed Purchasing - Elderly - South,Residential Permanent,Harefield Hall,1778.56, 26-Nov-2013
877,Revenue,CCHD,Bed Purchasing - Elderly MH - South,Residential Permanent,Harefield Hall,1030.52, 26-Nov-2013
878,Revenue,CCHD,Bed Purchasing - Elderly - South,Residential Permanent,Harefield Hall,1291.8, 26-Nov-2013
879,Revenue,CCHD,Bed Purchasing - Southmead Hospital,Nursing Permanent,Haven Lodge,1382.28, 26-Nov-2013
880,Revenue,CCHD,Bed Purchasing - Elderly - North,Nursing Permanent,Hc-One Ltd,1469.6, 26-Nov-2013
881,Revenue,CCHD,Bed Purchasing - Elderly - North,Nursing Permanent,Hc-One Ltd,971.48, 26-Nov-2013
882,Revenue,CCHD,Bed Purchasing - Elderly - North,Nursing Permanent,Hc-One Ltd,1499.04, 26-Nov-2013
883,Revenue,CCHD,Bed Purchasing - Frenchay Hospital,Nursing Permanent,Hc-One Ltd,1478, 26-Nov-2013
884,Revenue,CCHD,Swift Dump Code,Residential Permanent,Hc-One Ltd,1129.21, 26-Nov-2013
885,Revenue,CCHD,Bed purchasing - Elderly PWLD - South,Nursing Permanent,Hc-One Ltd,1929.96, 26-Nov-2013
886,Revenue,CCHD,Bed purchasing - Elderly MH - North,Nursing Permanent,Hc-One Ltd,1478, 26-Nov-2013
887,Revenue,CCHD,Bed purchasing - Elderly MH - North,Nursing Permanent,Hc-One Ltd,1229.12, 26-Nov-2013
888,Revenue,CCHD,Bed Purchasing - Frenchay Hospital,Nursing Permanent,Hc-One Ltd,1471.16, 26-Nov-2013
889,Revenue,CCHD,Bed Purchasing - Elderly - South,Nursing Permanent,Hc-One Ltd,1146.88, 26-Nov-2013
890,Revenue,CCHD,Bed purchasing - Elderly MH - North,Nursing Permanent,Hc-One Ltd,1478, 26-Nov-2013
891,Revenue,CCHD,Bed purchasing - Elderly MH - North,Nursing Permanent,Hc-One Ltd,1170.6, 26-Nov-2013
892,Revenue,CCHD,Bed Purchasing - Elderly S117- North,Nursing Permanent,Hc-One Ltd,1947.72, 26-Nov-2013
893,Revenue,CCHD,Day Care - South,Private & Voluntary Day Care,Headway Bristol,880.32, 21-Nov-2013
894,Revenue,CCHD,Day Care - South,Private & Voluntary Day Care,Headway Bristol,589.86, 21-Nov-2013
895,Revenue,CCHD,Day Care - South,Private & Voluntary Day Care,Headway Bristol,843.64, 21-Nov-2013
896,Revenue,CCHD,Day Care - North,Private & Voluntary Day Care,Headway Bristol,788.96, 28-Nov-2013
897,Revenue,CCHD,Day Care - South,Private & Voluntary Day Care,Headway Bristol,718.31, 28-Nov-2013
898,Revenue,CCHD,Day Care - South,Private & Voluntary Day Care,Headway Bristol,609.54, 28-Nov-2013
899,Revenue,CCHD,Home Care - Elderly - South,Other Small Contracts,Helping Hands Homecare,129.03, 29-Nov-2013
900,Revenue,CCHD,Home Care - Elderly - North,Other Small Contracts,Helping Hands Homecare,1292.66, 29-Nov-2013
901,Revenue,CCHD,Day Care - North,Private & Voluntary Day Care,Helping Hands Homecare,35.19, 29-Nov-2013
902,Revenue,CCHD,Cambrian Green Day Service,Furniture & Fittings Loose,Heritage Sheds & Fencing,450, 06-Nov-2013
903,Revenue,CCHD,Tenancy Start Up Scheme,Other Supplies & Services,Heron Way Agencies Limited,1550, 21-Nov-2013
904,Revenue,CCHD,Bed Purchasing - Southmead Hospital,Residential Permanent,High Border Lodge,1444.2, 26-Nov-2013
905,Revenue,CCHD,Bed Purchasing - Frenchay Hospital,Residential Permanent,Highfield House,1554, 26-Nov-2013
906,Revenue,CCHD,Bed Purchasing - Southmead Hospital,Residential Permanent,Highgate Studios,1166.84, 26-Nov-2013
907,Revenue,CCHD,Bed purchasing - Under 65s PWLD - North,Residential Permanent,Holmleigh Care Homes Ltd,4000.16, 26-Nov-2013
908,Revenue,CCHD,Bed Purchasing - Under 65s PWLD - South,Residential Permanent,Holmleigh Care Homes Ltd,5027.72, 26-Nov-2013
909,Revenue,CCHD,Bed purchasing - Under 65s PWLD - North,Residential Permanent,Home Farm Trust Ltd  5-6 Brook Office Pa,2810.04, 26-Nov-2013
910,Revenue,CCHD,Bed purchasing - Elderly PWLD - South,Residential Permanent,Home Farm Trust Ltd  5-6 Brook Office Pa,5050.32, 26-Nov-2013
911,Revenue,CCHD,Bed purchasing - Under 65s PWLD - North,Residential Permanent,Home Farm Trust Ltd  5-6 Brook Office Pa,3396, 26-Nov-2013
912,Revenue,CCHD,Bed Purchasing - Under 65s PWLD - South,Residential Permanent,Home Farm Trust Ltd  5-6 Brook Office Pa,4505.04, 26-Nov-2013
913,Revenue,CCHD,Bed purchasing - Under 65s PWLD - North,Residential Permanent,Home From Home Care Ltd,8857.52, 26-Nov-2013
914,Revenue,CCHD,Bed purchasing - Under 65s PWLD - North,Residential Permanent,Homes Caring For Autism Ltd  Churchill H,9755.64, 26-Nov-2013
915,Revenue,CCHD,Bed Purchasing - Under 65s PWLD - South,Residential Permanent,Homes Caring For Autism Ltd  Churchill H,12715.92, 26-Nov-2013
916,Revenue,CCHD,Bed purchasing - Under 65s PWLD - North,Residential Permanent,Homes Caring For Autism Ltd  Churchill H,12410, 26-Nov-2013
917,Revenue,CCHD,Home Care - Elderly - North,Other Small Contracts,Honest Homecare,770, 15-Nov-2013
918,Revenue,CCHD,Home Care - Elderly - North,Other Small Contracts,Honest Homecare,826, 15-Nov-2013
919,Revenue,CCHD,Home Care - Elderly - South,Other Small Contracts,Honest Homecare,84, 15-Nov-2013
920,Revenue,CCHD,Home Care - Elderly - North,Other Small Contracts,Honest Homecare,861, 15-Nov-2013
921,Revenue,CCHD,Home Care - Elderly - South,Other Small Contracts,Honest Homecare,129.5, 15-Nov-2013
922,Revenue,CCHD,Home Care - Elderly - North,Other Small Contracts,Honest Homecare,850.5, 15-Nov-2013
923,Revenue,CCHD,Home Care - Elderly - South,Other Small Contracts,Honest Homecare,73.5, 29-Nov-2013
924,Revenue,CCHD,Home Care - Elderly - North,Other Small Contracts,Honest Homecare,633.5, 29-Nov-2013
925,Revenue,CCHD,Bed Purchasing - Elderly - South,Nursing Permanent,Horfield Care Limited,3892.88, 19-Nov-2013
926,Revenue,CCHD,Bed Purchasing - Elderly - South,Nursing Respite,Horfield Care Limited,144.1, 19-Nov-2013
927,Revenue,CCHD,Bed Purchasing - Elderly - North,Nursing Permanent,Horfield Care Limited,3635.53, 19-Nov-2013
928,Revenue,CCHD,Bed Purchasing - Elderly - North,Nursing Respite,Horfield Care Limited,2306.09, 19-Nov-2013
929,Revenue,CCHD,Bed Purchasing - Frenchay Hospital,Nursing Permanent,Horfield Care Limited,1483.39, 19-Nov-2013
930,Revenue,CCHD,Bed Purchasing - Frenchay Hospital,Nursing Respite,Horfield Care Limited,288.21, 19-Nov-2013
931,Revenue,CCHD,Bed Purchasing - Southmead Hospital,Nursing Permanent,Horfield Care Limited,8400.01, 19-Nov-2013
932,Revenue,CCHD,Supporting People Programme,Grants to Voluntary Bodies,Housing 21,607.38, 01-Nov-2013
933,Revenue,CCHD,Supporting People Programme,Grants to Voluntary Bodies,Housing 21,921.33, 01-Nov-2013
934,Revenue,CCHD,Supporting People Programme,Grants to Voluntary Bodies,Housing 21,607.38, 29-Nov-2013
935,Revenue,CCHD,Supporting People Programme,Grants to Voluntary Bodies,Housing 21,921.33, 29-Nov-2013
936,Revenue,CCHD,Home Care - Elderly - North,Private & Voluntary Home Care,Housing 21,37028.34, 08-Nov-2013
937,Revenue,CCHD,Home Care - Elderly - South,Private & Voluntary Home Care,Housing 21,23516.42, 01-Nov-2013
938,Revenue,CCHD,Home Care - Elderly - South,Private & Voluntary Home Care,Housing 21,23516.42, 29-Nov-2013
939,Revenue,CCHD,Home Care - Elderly - South,Private & Voluntary Home Care,Housing 21,8842.75, 19-Nov-2013
940,Revenue,CCHD,Home Care - Elderly - South,Private & Voluntary Home Care,Housing 21,8842.75, 19-Nov-2013
941,Revenue,CCHD,Information Systems - Software,Software Support & Maintenance,Housing Partners Limited,16000, 13-Nov-2013
942,Revenue,CCHD,Care Management Team - South,Agency Staff (Operational)/PCT Pay,IPE,1478.76, 15-Nov-2013
943,Revenue,CCHD,Social Lettings Agency,Fees - General,Individual,11.6, 11-Nov-2013
944,Revenue,CCHD,Social Lettings Agency,Other Supplies & Services,Individual,655.41, 11-Nov-2013
945,Revenue,CCHD,Bed Purchasing - Southmead Hospital,Nursing Permanent,Jasmine Court,1227.24, 26-Nov-2013
946,Revenue,CCHD,Tenancy Start Up Scheme,Other Supplies & Services,Individual,1300, 28-Nov-2013
947,Revenue,CCHD,Homeless - Private Sector Leasing,Other Supplies & Services,Jill Collins,594, 15-Nov-2013
948,Revenue,CCHD,Bed Purchasing - Under 65s PWLD - South,Residential Permanent,Julia Simone- Supp. Ind.,3902.32, 26-Nov-2013
949,Revenue,CCHD,Bed purchasing -S28A  Under 65 - North,Residential Permanent,Julia Simone- Supp. Ind.,3443.08, 26-Nov-2013
950,Revenue,CCHD,Bed Purchasing - Elderly - South,Residential Permanent,Karenza Ltd,1732, 26-Nov-2013
951,Revenue,CCHD,Bed Purchasing - Elderly - South,Residential Permanent,Kenver House Residential Home,1932.02, 26-Nov-2013
952,Revenue,CCHD,Bed Purchasing - Elderly - South,Residential Permanent,Kenver House Residential Home,1545.64, 26-Nov-2013
953,Revenue,CCHD,Bed purchasing - Elderly S117 - South,Residential Permanent,Kenver House Residential Home,1897.08, 26-Nov-2013
954,Revenue,CCHD,Bed Purchasing - Frenchay Hospital,Residential Permanent,Kenver House Residential Home,1203.72, 26-Nov-2013
955,Revenue,CCHD,Bed Purchasing - Elderly - South,Residential Permanent,Kenver House Residential Home,3239.66, 26-Nov-2013
956,Revenue,CCHD,Bed Purchasing - Elderly - South,Residential Permanent,Kenver House Residential Home,1657.28, 26-Nov-2013
957,Revenue,CCHD,Bed Purchasing - Southmead Hospital,Residential Permanent,Kenver House Residential Home,2135.28, 26-Nov-2013
958,Revenue,CCHD,Section 117 Placements MH Younger,Residential Permanent,Kenver House Residential Home,1900, 26-Nov-2013
959,Revenue,CCHD,Bed Purchasing - Elderly MH - South,Residential Permanent,Kenver House Residential Home,1285.96, 26-Nov-2013
960,Revenue,CCHD,Bed Purchasing - Elderly - South,Residential Permanent,Kenver House Residential Home,3508.55, 26-Nov-2013
961,Revenue,CCHD,Bed Purchasing - Elderly - South,Residential Respite,Kenver House Residential Home,1143.9, 26-Nov-2013
962,Revenue,CCHD,Bed Purchasing - Elderly - South,Residential Respite,Kenver House Residential Home,2135.28, 26-Nov-2013
963,Revenue,CCHD,Bed Purchasing - Elderly - South,Residential Permanent,Kenver House Residential Home,1649.28, 26-Nov-2013
964,Revenue,CCHD,Bed Purchasing - Frenchay Hospital,Residential Permanent,Kenver House Residential Home,4387.48, 26-Nov-2013
965,Revenue,CCHD,Bed Purchasing - Elderly - South,Residential Permanent,Kenver House Residential Home,1576.4, 26-Nov-2013
966,Revenue,CCHD,Bed Purchasing - Southmead Hospital,Residential Permanent,Kenver House Residential Home,1649.2, 26-Nov-2013
967,Revenue,CCHD,Bed Purchasing - Elderly MH - South,Residential Permanent,Kenver House Residential Home,1182.52, 26-Nov-2013
968,Revenue,CCHD,Bed Purchasing - Elderly MH - South,Residential Permanent,Kenver House Residential Home,1483.15, 26-Nov-2013
969,Revenue,CCHD,Bed Purchasing - Elderly - South,Residential Permanent,Kenver House Residential Home,1497.08, 26-Nov-2013
970,Revenue,CCHD,Bed Purchasing - Frenchay Hospital,Residential Permanent,Kenver House Residential Home,1539.76, 26-Nov-2013
971,Revenue,CCHD,Supporting People Programme,Grants to Voluntary Bodies,Keyring Living Support Networks,2874.42, 01-Nov-2013
972,Revenue,CCHD,Supporting People Programme,Grants to Voluntary Bodies,Keyring Living Support Networks,2874.42, 29-Nov-2013
973,Revenue,CCHD,Bed Purchasing - Elderly - North,Nursing Permanent,Kingfisher Lodge Care Centre,2486.88, 26-Nov-2013
974,Revenue,CCHD,Supporting People Programme,Grants to Voluntary Bodies,Kingswood Young Homeless Project,17289.42, 01-Nov-2013
975,Revenue,CCHD,Supporting People Programme,Grants to Voluntary Bodies,Kingswood Young Homeless Project,17289.42, 29-Nov-2013
976,Revenue,CCHD,Bed purchasing - Under 65s PWLD - North,Residential Permanent,Kisimul Group,11223.12, 26-Nov-2013
977,Revenue,CCHD,Supporting People Programme,Grants to Voluntary Bodies,Knightstone Housing Association Limited,13316.58, 01-Nov-2013
978,Revenue,CCHD,Supporting People Programme,Grants to Voluntary Bodies,Knightstone Housing Association Limited,8413.33, 01-Nov-2013
979,Revenue,CCHD,Supporting People Programme,Grants to Voluntary Bodies,Knightstone Housing Association Limited,7491.58, 01-Nov-2013
980,Revenue,CCHD,Supporting People Programme,Grants to Voluntary Bodies,Knightstone Housing Association Limited,1883.92, 01-Nov-2013
981,Revenue,CCHD,Supporting People Programme,Grants to Voluntary Bodies,Knightstone Housing Association Limited,2446.5, 01-Nov-2013
982,Revenue,CCHD,Supporting People Programme,Grants to Voluntary Bodies,Knightstone Housing Association Limited,2447.08, 01-Nov-2013
983,Revenue,CCHD,Supporting People Programme,Grants to Voluntary Bodies,Knightstone Housing Association Limited,1189.08, 01-Nov-2013
984,Revenue,CCHD,Supporting People Programme,Grants to Voluntary Bodies,Knightstone Housing Association Limited,2194.67, 01-Nov-2013
985,Revenue,CCHD,Supporting People Programme,Grants to Voluntary Bodies,Knightstone Housing Association Limited,13316.58, 29-Nov-2013
986,Revenue,CCHD,Supporting People Programme,Grants to Voluntary Bodies,Knightstone Housing Association Limited,8413.33, 29-Nov-2013
987,Revenue,CCHD,Supporting People Programme,Grants to Voluntary Bodies,Knightstone Housing Association Limited,7491.58, 29-Nov-2013
988,Revenue,CCHD,Supporting People Programme,Grants to Voluntary Bodies,Knightstone Housing Association Limited,1883.92, 29-Nov-2013
989,Revenue,CCHD,Supporting People Programme,Grants to Voluntary Bodies,Knightstone Housing Association Limited,2446.5, 29-Nov-2013
990,Revenue,CCHD,Supporting People Programme,Grants to Voluntary Bodies,Knightstone Housing Association Limited,2447.08, 29-Nov-2013
991,Revenue,CCHD,Supporting People Programme,Grants to Voluntary Bodies,Knightstone Housing Association Limited,1189.08, 29-Nov-2013
992,Revenue,CCHD,Supporting People Programme,Grants to Voluntary Bodies,Knightstone Housing Association Limited,2194.67, 29-Nov-2013
993,Revenue,CCHD,Home Care - Elderly - South,Other Small Contracts,Kumari Care Limited,3520.32, 19-Nov-2013
994,Revenue,CCHD,Home Care - Elderly - North,Other Small Contracts,Kumari Care Limited,833.86, 19-Nov-2013
995,Revenue,CCHD,Day Care - South,Private & Voluntary Day Care,Kumari Care Limited,46.32, 19-Nov-2013
996,Revenue,CCHD,Under 65s -MH  Home Care Purch,Other Small Contracts,Kumari Care Limited,262.48, 19-Nov-2013
997,Revenue,CCHD,Home Care - Elderly - South,Other Small Contracts,Kumari Care Limited,3582.08, 19-Nov-2013
998,Revenue,CCHD,Home Care - Elderly - North,Other Small Contracts,Kumari Care Limited,833.86, 19-Nov-2013
999,Revenue,CCHD,Day Care - South,Private & Voluntary Day Care,Kumari Care Limited,145.32, 19-Nov-2013
1000,Revenue,CCHD,Under 65s -MH  Home Care Purch,Other Small Contracts,Kumari Care Limited,266.34, 19-Nov-2013
1001,Revenue,CCHD,Bed purchasing - Phys Dis - North,Nursing Permanent,Leonard Cheshire  National Account Centr,4963.04, 26-Nov-2013
1002,Revenue,CCHD,Bed purchasing - Phys Dis - North,Residential Permanent,Leonard Cheshire  National Account Centr,2868.88, 26-Nov-2013
1003,Revenue,CCHD,Bed Purchasing - Under 65s PWLD - South,Residential Permanent,Leonard Cheshire  National Account Centr,2959.44, 26-Nov-2013
1004,Revenue,CCHD,Bed Purchasing - Elderly - North,Nursing Permanent,Leonard Cheshire  National Account Centr,3468.8, 26-Nov-2013
1005,Revenue,CCHD,Bed purchasing - Phys Dis - North,Nursing Permanent,Leonard Cheshire  National Account Centr,2779.04, 26-Nov-2013
1006,Revenue,CCHD,Bed Purchasing - Elderly - North,Residential Permanent,Leonard Cheshire  National Account Centr,3150.32, 26-Nov-2013
1007,Revenue,CCHD,Bed purchasing - Under 65s PWLD - North,Residential Permanent,Leonard Cheshire  National Account Centr,11744.24, 26-Nov-2013
1008,Revenue,CCHD,Bed purchasing - Under 65s PWLD - North,Residential Permanent,Leonard Cheshire  National Account Centr,11741.12, 26-Nov-2013
1009,Revenue,CCHD,Bed Purchasing - Elderly - South,Residential Permanent,Leonard Cheshire  National Account Centr,4433.04, 26-Nov-2013
1010,Revenue,CCHD,Bed purchasing - Phys Dis - North,Nursing Permanent,Leonard Cheshire  National Account Centr,2838.64, 26-Nov-2013
1011,Revenue,CCHD,Bed purchasing - Phys Dis - North,Nursing Permanent,Leonard Cheshire  National Account Centr,3812.44, 26-Nov-2013
1012,Revenue,CCHD,Bed purchasing - Phys Dis - North,Residential Permanent,Leonard Cheshire  National Account Centr,2889.4, 26-Nov-2013
1013,Revenue,CCHD,Bed purchasing - Phys Dis - North,Nursing Permanent,Leonard Cheshire  National Account Centr,4473.76, 26-Nov-2013
1014,Revenue,CCHD,Bed purchasing - Phys Dis - North,Nursing Permanent,Leonard Cheshire  National Account Centr,5521.36, 26-Nov-2013
1015,Revenue,CCHD,Bed Purchasing - Elderly - South,Nursing Permanent,Leonard Cheshire  National Account Centr,2869.2, 26-Nov-2013
1016,Revenue,CCHD,Bed Purchasing - Southmead Hospital,Nursing Permanent,Leonard Cheshire  National Account Centr,3002, 26-Nov-2013
1017,Revenue,CCHD,South Glos Users in all other LA Homes,Nursing Permanent,Leonard Cheshire  National Account Centr,604.4, 26-Nov-2013
1018,Revenue,CCHD,Bed purchasing - Phys Dis - North,Nursing Permanent,Leonard Cheshire  National Account Centr,3309.2, 26-Nov-2013
1019,Revenue,CCHD,Bed purchasing - Phys Dis - North,Nursing Permanent,Leonard Cheshire  National Account Centr,4066.48, 26-Nov-2013
1020,Revenue,CCHD,Bed Purchasing - Elderly - South,Nursing Permanent,Leonard Cheshire  National Account Centr,4369.6, 26-Nov-2013
1021,Revenue,CCHD,Bed Purchasing - Elderly - South,Nursing Permanent,Leonard Elms Care Home,1539.28, 26-Nov-2013
1022,Revenue,CCHD,Tenancy Start Up Scheme,Other Supplies & Services,Lifestyle Lettings (Rent),1460, 01-Nov-2013
1023,Revenue,CCHD,Supported Living - North,Private & Voluntary Home Care,Lifeways Community Care (Gloucester) Ltd,8792, 20-Nov-2013
1024,Revenue,CCHD,Supported Living - North,Private & Voluntary Home Care,Lifeways Community Care (Gloucester) Ltd,11373, 15-Nov-2013
1025,Revenue,CCHD,Bed Purchasing - Frenchay Hospital,Residential Permanent,Little Croft,1557.5, 26-Nov-2013
1026,Revenue,CCHD,Bed Purchasing - Frenchay Hospital,Residential Permanent,Little Croft,1246, 26-Nov-2013
1027,Revenue,CCHD,Bed Purchasing - Elderly - South,Residential Permanent,Little Croft,3091.28, 26-Nov-2013
1028,Revenue,CCHD,Bed Purchasing - Elderly - South,Residential Permanent,Little Croft,942.86, 26-Nov-2013
1029,Revenue,CCHD,Bed Purchasing - Southmead Hospital,Residential Permanent,Little Croft,3444, 26-Nov-2013
1030,Revenue,CCHD,Bed Purchasing - Elderly - South,Residential Respite,Little Croft,2514.29, 26-Nov-2013
1031,Revenue,CCHD,Bed Purchasing - Elderly - South,Residential Respite,Little Croft,550, 26-Nov-2013
1032,Revenue,CCHD,Bed Purchasing - Elderly - South,Residential Permanent,Little Croft,3712, 26-Nov-2013
1033,Revenue,CCHD,Bed Purchasing - Elderly - South,Residential Permanent,Little Croft,3045.6, 26-Nov-2013
1034,Revenue,CCHD,Bed Purchasing - Frenchay Hospital,Residential Permanent,Little Croft,2374.88, 26-Nov-2013
1035,Revenue,CCHD,Bed Purchasing - Southmead Hospital,Residential Permanent,Little Croft,1246, 26-Nov-2013
1036,Revenue,CCHD,Bed Purchasing - Southmead Hospital,Residential Permanent,Little Croft,617.2, 26-Nov-2013
1037,Revenue,CCHD,Bed Purchasing - Elderly MH - South,Residential Permanent,Little Croft,2346.56, 26-Nov-2013
1038,Revenue,CCHD,Bed Purchasing - Elderly - South,Residential Permanent,Little Croft,1666.8, 26-Nov-2013
1039,Revenue,CCHD,Bed Purchasing - Elderly MH - South,Residential Respite,Little Croft,3000, 26-Nov-2013
1040,Revenue,CCHD,Bed Purchasing - Elderly MH - South,Residential Respite,Little Croft,2000, 26-Nov-2013
1041,Revenue,CCHD,Bed Purchasing - Southmead Hospital,Residential Permanent,Little Croft,2492, 26-Nov-2013
1042,Revenue,CCHD,Bed purchasing - Under 65s PWLD - North,Residential Permanent,Littlecroft Residential Homes  Longcroft,6386.28, 26-Nov-2013
1043,Revenue,CCHD,Home Care - Elderly - South,Other Small Contracts,Lloyds TSB Commercial Finance Limited,261.97, 01-Nov-2013
1044,Revenue,CCHD,Home Care - Elderly - North,Other Small Contracts,Lloyds TSB Commercial Finance Limited,7499.38, 01-Nov-2013
1045,Revenue,CCHD,Day Care - South,Private & Voluntary Day Care,Lloyds TSB Commercial Finance Limited,172.04, 01-Nov-2013
1046,Revenue,CCHD,Day Care - North,Private & Voluntary Day Care,Lloyds TSB Commercial Finance Limited,234.6, 01-Nov-2013
1047,Revenue,CCHD,Home Care - Elderly - South,Other Small Contracts,Lloyds TSB Commercial Finance Limited,70.38, 11-Nov-2013
1048,Revenue,CCHD,Home Care - Elderly - North,Other Small Contracts,Lloyds TSB Commercial Finance Limited,9563.86, 11-Nov-2013
1049,Revenue,CCHD,Day Care - South,Private & Voluntary Day Care,Lloyds TSB Commercial Finance Limited,140.76, 11-Nov-2013
1050,Revenue,CCHD,Day Care - North,Private & Voluntary Day Care,Lloyds TSB Commercial Finance Limited,238.51, 11-Nov-2013
1051,Revenue,CCHD,Home Care - Elderly - South,Other Small Contracts,Lloyds TSB Commercial Finance Limited,58.65, 11-Nov-2013
1052,Revenue,CCHD,Home Care - Elderly - North,Other Small Contracts,Lloyds TSB Commercial Finance Limited,9407.46, 11-Nov-2013
1053,Revenue,CCHD,Day Care - South,Private & Voluntary Day Care,Lloyds TSB Commercial Finance Limited,136.85, 11-Nov-2013
1054,Revenue,CCHD,Day Care - North,Private & Voluntary Day Care,Lloyds TSB Commercial Finance Limited,179.86, 11-Nov-2013
1055,Revenue,CCHD,Home Care - Elderly - South,Other Small Contracts,Lloyds TSB Commercial Finance Limited,54.74, 01-Nov-2013
1056,Revenue,CCHD,Home Care - Elderly - North,Other Small Contracts,Lloyds TSB Commercial Finance Limited,8989.09, 01-Nov-2013
1057,Revenue,CCHD,Day Care - South,Private & Voluntary Day Care,Lloyds TSB Commercial Finance Limited,218.96, 01-Nov-2013
1058,Revenue,CCHD,Day Care - North,Private & Voluntary Day Care,Lloyds TSB Commercial Finance Limited,207.23, 01-Nov-2013
1059,Revenue,CCHD,Home Care - Elderly - South,Other Small Contracts,Lloyds TSB Commercial Finance Limited,54.74, 12-Nov-2013
1060,Revenue,CCHD,Home Care - Elderly - North,Other Small Contracts,Lloyds TSB Commercial Finance Limited,8390.86, 12-Nov-2013
1061,Revenue,CCHD,Day Care - South,Private & Voluntary Day Care,Lloyds TSB Commercial Finance Limited,140.76, 12-Nov-2013
1062,Revenue,CCHD,Day Care - North,Private & Voluntary Day Care,Lloyds TSB Commercial Finance Limited,195.5, 12-Nov-2013
1063,Revenue,CCHD,Home Care - Elderly - South,Other Small Contracts,Lloyds TSB Commercial Finance Limited,62.56, 14-Nov-2013
1064,Revenue,CCHD,Home Care - Elderly - North,Other Small Contracts,Lloyds TSB Commercial Finance Limited,9180.68, 14-Nov-2013
1065,Revenue,CCHD,Day Care - South,Private & Voluntary Day Care,Lloyds TSB Commercial Finance Limited,140.76, 14-Nov-2013
1066,Revenue,CCHD,Day Care - North,Private & Voluntary Day Care,Lloyds TSB Commercial Finance Limited,211.14, 14-Nov-2013
1067,Revenue,CCHD,Home Care - Elderly - North,Other Small Contracts,Lloyds TSB Commercial Finance Limited,7976.4, 14-Nov-2013
1068,Revenue,CCHD,Day Care - South,Private & Voluntary Day Care,Lloyds TSB Commercial Finance Limited,125.12, 14-Nov-2013
1069,Revenue,CCHD,Day Care - North,Private & Voluntary Day Care,Lloyds TSB Commercial Finance Limited,195.5, 14-Nov-2013
1070,Revenue,CCHD,Supported Living - South,Private & Voluntary Home Care,Lloyds TSB Commercial Finance Limited,3855.6, 19-Nov-2013
1071,Revenue,CCHD,Supported Living - South,Private & Voluntary Home Care,Lloyds TSB Commercial Finance Limited,9506.62, 18-Nov-2013
1072,Revenue,CCHD,Supported Living - South,Private & Voluntary Home Care,Lloyds TSB Commercial Finance Limited,3930.68, 19-Nov-2013
1073,Revenue,CCHD,Supported Living - South,Private & Voluntary Home Care,Lloyds TSB Commercial Finance Limited,7981.81, 19-Nov-2013
1074,Revenue,CCHD,Supported Living - South,Private & Voluntary Home Care,Lloyds TSB Commercial Finance Limited,4053.95, 18-Nov-2013
1075,Revenue,CCHD,Supported Living - South,Private & Voluntary Home Care,Lloyds TSB Commercial Finance Limited,3830.05, 18-Nov-2013
1076,Revenue,CCHD,Supported Living - North,Private & Voluntary Home Care,Lloyds TSB Commercial Finance Limited,9506.62, 19-Nov-2013
1077,Revenue,CCHD,Supported Living - South,Private & Voluntary Home Care,Lloyds TSB Commercial Finance Limited,4845.81, 19-Nov-2013
1078,Revenue,CCHD,Supported Living - South,Private & Voluntary Home Care,Lloyds TSB Commercial Finance Limited,3701.77, 18-Nov-2013
1079,Revenue,CCHD,Supported Living - South,Private & Voluntary Home Care,Lloyds TSB Commercial Finance Limited,3388.9, 18-Nov-2013
1080,Revenue,CCHD,Supported Living - South,Private & Voluntary Home Care,Lloyds TSB Commercial Finance Limited,5978.71, 18-Nov-2013
1081,Revenue,CCHD,Supported Living - South,Private & Voluntary Home Care,Lloyds TSB Commercial Finance Limited,3703.89, 18-Nov-2013
1082,Revenue,CCHD,Supported Living - South,Private & Voluntary Home Care,Lloyds TSB Commercial Finance Limited,3737.02, 19-Nov-2013
1083,Revenue,CCHD,Supported Living - North,Private & Voluntary Home Care,Lloyds TSB Commercial Finance Limited,8291, 19-Nov-2013
1084,Revenue,CCHD,Supported Living - South,Private & Voluntary Home Care,Lloyds TSB Commercial Finance Limited,3576.53, 18-Nov-2013
1085,Revenue,CCHD,Home Care - Elderly - South,Other Small Contracts,Lloyds TSB Commercial Finance Limited,31.28, 14-Nov-2013
1086,Revenue,CCHD,Home Care - Elderly - North,Other Small Contracts,Lloyds TSB Commercial Finance Limited,8496.43, 14-Nov-2013
1087,Revenue,CCHD,Day Care - South,Private & Voluntary Day Care,Lloyds TSB Commercial Finance Limited,183.77, 14-Nov-2013
1088,Revenue,CCHD,Day Care - North,Private & Voluntary Day Care,Lloyds TSB Commercial Finance Limited,46.92, 14-Nov-2013
1089,Revenue,CCHD,Supported Living - South,Private & Voluntary Home Care,Loga Care Ltd (T/A Logacare),3672.9, 01-Nov-2013
1090,Revenue,CCHD,Supported Living - South,Private & Voluntary Home Care,Loga Care Ltd (T/A Logacare),3795.33, 29-Nov-2013
1091,Revenue,CCHD,Social Lettings Agency,Fees - General,Individual,10, 01-Nov-2013
1092,Revenue,CCHD,Social Lettings Agency,Other Supplies & Services,Individual,565, 01-Nov-2013
1093,Revenue,CCHD,Social Lettings Agency,Fees - General,Individual,10, 29-Nov-2013
1094,Revenue,CCHD,Social Lettings Agency,Other Supplies & Services,Individual,565, 29-Nov-2013
1095,Revenue,CCHD,Bed Purchasing - Southmead Hospital,Nursing Permanent,Majestic 3 Limited,998, 26-Nov-2013
1096,Revenue,CCHD,Bed Purchasing - Elderly - North,Residential Permanent,Manor Cottage,2194, 26-Nov-2013
1097,Revenue,CCHD,Bed Purchasing - Southmead Hospital,Residential Permanent,Manor Cottage,1246, 26-Nov-2013
1098,Revenue,CCHD,Bed Purchasing - Elderly - South,Residential Permanent,Manor Cottage,1449.64, 26-Nov-2013
1099,Revenue,CCHD,Bed Purchasing - Southmead Hospital,Residential Permanent,Manor Cottage,1246, 26-Nov-2013
1100,Revenue,CCHD,Bed Purchasing - Elderly - North,Residential Permanent,Manton Hall Residential Home,1496.44, 26-Nov-2013
1101,Revenue,CCHD,Section 117 Placements MH Younger,Private & Voluntary Day Care,Maples Community Care Limited,798, 22-Nov-2013
1102,Revenue,CCHD,Section 117 Placements MH Younger,Private & Voluntary Day Care,Maples Community Care Limited,2597, 22-Nov-2013
1103,Revenue,CCHD,Younger MH non-res purchasing,Private & Voluntary Day Care,Maples Community Care Limited,2968, 25-Nov-2013
1104,Revenue,CCHD,Supporting People Programme,Grants to Voluntary Bodies,Maples Community Housing Limited,2677.58, 01-Nov-2013
1105,Revenue,CCHD,Supporting People Programme,Grants to Voluntary Bodies,Maples Community Housing Limited,2677.58, 29-Nov-2013
1106,Revenue,CCHD,Public Health - Admin,Other Supplies & Services,Margaret Nowicki,1283.2, 08-Nov-2013
1107,Revenue,CCHD,Public Health - Admin,Other Supplies & Services,Margaret Nowicki,652, 08-Nov-2013
1108,Revenue,CCHD,Social Lettings Agency,Fees - General,Individual,11.6, 20-Nov-2013
1109,Revenue,CCHD,Social Lettings Agency,Other Supplies & Services,Individual,655.41, 20-Nov-2013
1110,Revenue,CCHD,Bed Purchasing - Under 65s PWLD - South,Residential Permanent,Marsden Healthcare Limited,911.04, 22-Nov-2013
1111,Revenue,CCHD,Bed purchasing - Elderly PWLD - South,Residential Permanent,Marsden Healthcare Limited,3203, 22-Nov-2013
1112,Revenue,CCHD,Bed purchasing - Elderly PWLD - South,Residential Permanent,Marsden Healthcare Limited,1505.96, 22-Nov-2013
1113,Revenue,CCHD,Bed Purchasing - Elderly MH - South,Nursing Permanent,Meadow Care Home,1476.76, 26-Nov-2013
1114,Revenue,CCHD,Bed Purchasing - Elderly - South,Nursing Permanent,Meadow Care Home,1673.16, 26-Nov-2013
1115,Revenue,CCHD,Home Care - Elderly - South,Other Small Contracts,Mears Care,495.8, 14-Nov-2013
1116,Revenue,CCHD,Home Care - Elderly - North,Other Small Contracts,Mears Care,6486.1, 14-Nov-2013
1117,Revenue,CCHD,Day Care - South,Private & Voluntary Day Care,Mears Care,88.8, 14-Nov-2013
1118,Revenue,CCHD,Day Care - North,Private & Voluntary Day Care,Mears Care,199.8, 14-Nov-2013
1119,Revenue,CCHD,Under 65s -MH  Home Care Purch,Other Small Contracts,Mears Care,111, 14-Nov-2013
1120,Revenue,CCHD,Home Care - Elderly LD - KH,Private & Voluntary Home Care,Mears Care,51.8, 14-Nov-2013
1121,Revenue,CCHD,Home Care - Elderly - South,Other Small Contracts,Mears Care,418.1, 20-Nov-2013
1122,Revenue,CCHD,Home Care - Elderly - North,Other Small Contracts,Mears Care,6301.1, 20-Nov-2013
1123,Revenue,CCHD,Day Care - North,Private & Voluntary Day Care,Mears Care,266.4, 20-Nov-2013
1124,Revenue,CCHD,Under 65s -MH  Home Care Purch,Other Small Contracts,Mears Care,111, 20-Nov-2013
1125,Revenue,CCHD,Home Care - Elderly LD - KH,Private & Voluntary Home Care,Mears Care,51.8, 20-Nov-2013
1126,Revenue,CCHD,Home Care - Elderly - South,Other Small Contracts,Mears Care,540.2, 22-Nov-2013
1127,Revenue,CCHD,Home Care - Elderly - North,Other Small Contracts,Mears Care,5868.2, 22-Nov-2013
1128,Revenue,CCHD,Day Care - North,Private & Voluntary Day Care,Mears Care,155.4, 22-Nov-2013
1129,Revenue,CCHD,Under 65s -MH  Home Care Purch,Other Small Contracts,Mears Care,111, 22-Nov-2013
1130,Revenue,CCHD,Home Care - Elderly LD - KH,Private & Voluntary Home Care,Mears Care,51.8, 22-Nov-2013
1131,Revenue,CCHD,Home Care - Elderly - North,Other Small Contracts,Medacs Home Care,640.3, 07-Nov-2013
1132,Revenue,CCHD,Home care - Elderly MH - North,Other Small Contracts,Medacs Home Care,101.5, 07-Nov-2013
1133,Revenue,CCHD,Home Care - Elderly - North,Other Small Contracts,Medacs Home Care,644, 19-Nov-2013
1134,Revenue,CCHD,Home care - Elderly MH - North,Other Small Contracts,Medacs Home Care,91, 19-Nov-2013
1135,Revenue,CCHD,Home Care - Elderly - North,Other Small Contracts,Medacs Home Care,616, 19-Nov-2013
1136,Revenue,CCHD,Home care - Elderly MH - North,Other Small Contracts,Medacs Home Care,94.5, 19-Nov-2013
1137,Revenue,CCHD,NRS Contract,Daily Living Equipment,Medequip Assistive Technology Ltd,45054.15, 20-Nov-2013
1138,Revenue,CCHD,NRS Contract,Daily Living Equipment,Medequip Assistive Technology Ltd,85714.15, 20-Nov-2013
1139,Revenue,CCHD,Bed Purchasing - Under 65s PWLD - South,Residential Permanent,Mencap,2219.16, 26-Nov-2013
1140,Revenue,CCHD,Supported Living (S28a) South,Private & Voluntary Home Care,Mencap - PS Central & Cymru,3786.86, 20-Nov-2013
1141,Revenue,CCHD,Supported Living (S28a) South,Private & Voluntary Home Care,Mencap - PS Central & Cymru,3786.86, 21-Nov-2013
1142,Revenue,CCHD,Supporting People Programme,Grants to Voluntary Bodies,Merlin Housing Society,15398.42, 01-Nov-2013
1143,Revenue,CCHD,Supporting People Programme,Grants to Voluntary Bodies,Merlin Housing Society,2423, 01-Nov-2013
1144,Revenue,CCHD,Supporting People Programme,Grants to Voluntary Bodies,Merlin Housing Society,51328.08, 01-Nov-2013
1145,Revenue,CCHD,Supporting People Programme,Grants to Voluntary Bodies,Merlin Housing Society,1026.58, 01-Nov-2013
1146,Revenue,CCHD,Supporting People Programme,Grants to Voluntary Bodies,Merlin Housing Society,15398.42, 29-Nov-2013
1147,Revenue,CCHD,Supporting People Programme,Grants to Voluntary Bodies,Merlin Housing Society,2423, 29-Nov-2013
1148,Revenue,CCHD,Supporting People Programme,Grants to Voluntary Bodies,Merlin Housing Society,51328.08, 29-Nov-2013
1149,Revenue,CCHD,Supporting People Programme,Grants to Voluntary Bodies,Merlin Housing Society,1026.58, 29-Nov-2013
1150,Revenue,CCHD,Public Health - Admin,Grants to Voluntary Bodies,Merlin Housing Society,650, 29-Nov-2013
1151,Revenue,CCHD,Public Health - Admin,Grants to Voluntary Bodies,Merlin Housing Society,650, 29-Nov-2013
1152,Revenue,CCHD,Bed Purchasing - Frenchay Hospital,Residential Permanent,Milburn Finance,1040.12, 26-Nov-2013
1153,Revenue,CCHD,Home Care - Elderly - South,Other Small Contracts,Milestones Outreach Dementia Services,1092.38, 22-Nov-2013
1154,Revenue,CCHD,Home Care - Elderly - North,Other Small Contracts,Milestones Outreach Dementia Services,1848.94, 22-Nov-2013
1155,Revenue,CCHD,Day Care - South,Private & Voluntary Day Care,Milestones Outreach Dementia Services,61.76, 22-Nov-2013
1156,Revenue,CCHD,Home care - Elderly MH - North,Other Small Contracts,Milestones Outreach Dementia Services,88.78, 22-Nov-2013
1157,Revenue,CCHD,Elderly MH Day Care North,Private & Voluntary Day Care,Milestones Outreach Dementia Services,15.44, 22-Nov-2013
1158,Revenue,CCHD,Home Care - Elderly - South,Other Small Contracts,Milestones Outreach Dementia Services,1053.78, 22-Nov-2013
1159,Revenue,CCHD,Home Care - Elderly - North,Other Small Contracts,Milestones Outreach Dementia Services,1706.12, 22-Nov-2013
1160,Revenue,CCHD,Day Care - South,Private & Voluntary Day Care,Milestones Outreach Dementia Services,61.76, 22-Nov-2013
1161,Revenue,CCHD,Home care - Elderly MH - North,Other Small Contracts,Milestones Outreach Dementia Services,73.34, 22-Nov-2013
1162,Revenue,CCHD,Supported Living - North,Private & Voluntary Home Care,Milestones Trust,1530.4, 04-Nov-2013
1163,Revenue,CCHD,Supported Living (S28a) North,Private & Voluntary Home Care,Milestones Trust,3929.2, 07-Nov-2013
1164,Revenue,CCHD,Supported Living (S28a) North,Private & Voluntary Home Care,Milestones Trust,3512.6, 07-Nov-2013
1165,Revenue,CCHD,Supported Living (S28a) North,Private & Voluntary Home Care,Milestones Trust,3512.6, 07-Nov-2013
1166,Revenue,CCHD,Supported Living (S28a) North,Private & Voluntary Home Care,Milestones Trust,5489.11, 15-Nov-2013
1167,Revenue,CCHD,Supported Living - North,Private & Voluntary Home Care,Milestones Trust,5489.54, 08-Nov-2013
1168,Revenue,CCHD,Supported Living (S28a) North,Private & Voluntary Home Care,Milestones Trust,3974, 07-Nov-2013
1169,Revenue,CCHD,Supported Living (S28a) North,Private & Voluntary Home Care,Milestones Trust,3974, 07-Nov-2013
1170,Revenue,CCHD,Supported Living (S28a) South,Private & Voluntary Home Care,Milestones Trust,3302.92, 07-Nov-2013
1171,Revenue,CCHD,Supported Living (S28a) South,Private & Voluntary Home Care,Milestones Trust,3044.54, 07-Nov-2013
1172,Revenue,CCHD,Supported Living - South,Private & Voluntary Home Care,Milestones Trust,2940, 15-Nov-2013
1173,Revenue,CCHD,Supported Living (S28a) South,Private & Voluntary Home Care,Milestones Trust,3430.58, 07-Nov-2013
1174,Revenue,CCHD,Purchase of Non-Res Care - South,Private & Voluntary Day Care,Milestones Trust,1681.57, 18-Nov-2013
1175,Revenue,CCHD,Purchase of Non-Res Care - South,Private & Voluntary Day Care,Milestones Trust,1315.82, 19-Nov-2013
1176,Revenue,CCHD,Purchase of Non-Res Care - South,Private & Voluntary Day Care,Milestones Trust,1184.84, 18-Nov-2013
1177,Revenue,CCHD,Purchase of Non-Res Care - South,Private & Voluntary Day Care,Milestones Trust,1383.6, 18-Nov-2013
1178,Revenue,CCHD,Purchase of Non-Res Care - South,Private & Voluntary Day Care,Milestones Trust,1481.37, 18-Nov-2013
1179,Revenue,CCHD,Purchase of Non-Res Care - South,Private & Voluntary Day Care,Milestones Trust,1010.87, 18-Nov-2013
1180,Revenue,CCHD,Supported Living - South,Private & Voluntary Home Care,Milestones Trust,1611.81, 18-Nov-2013
1181,Revenue,CCHD,Purchase of Non-Res Care - South,Private & Voluntary Day Care,Milestones Trust,1692.4, 19-Nov-2013
1182,Revenue,CCHD,Purchase of Non-Res Care - South,Private & Voluntary Day Care,Milestones Trust,525.61, 18-Nov-2013
1183,Revenue,CCHD,Purchase of Non-Res Care - South,Private & Voluntary Day Care,Milestones Trust,1651.18, 19-Nov-2013
1184,Revenue,CCHD,Purchase of Non-Res Care - South,Private & Voluntary Day Care,Milestones Trust,1212.57, 18-Nov-2013
1185,Revenue,CCHD,Purchase of Non-Res Care - South,Private & Voluntary Day Care,Milestones Trust,1469.59, 19-Nov-2013
1186,Revenue,CCHD,Supported Living - South,Private & Voluntary Home Care,Milestones Trust,14590.24, 20-Nov-2013
1187,Revenue,CCHD,Purchase of Non-Res Care - North,Private & Voluntary Day Care,Milestones Trust,514.14, 19-Nov-2013
1188,Revenue,CCHD,Elderly MH Day Care North,Private & Voluntary Day Care,Milestones Trust,780.14, 21-Nov-2013
1189,Revenue,CCHD,Younger MH non-res purchasing,Private & Voluntary Day Care,Milestones Trust,1905, 22-Nov-2013
1190,Revenue,CCHD,Younger MH non-res purchasing,Private & Voluntary Day Care,Milestones Trust,833.76, 22-Nov-2013
1191,Revenue,CCHD,Supported Living (S28a) North,Private & Voluntary Home Care,Milestones Trust,3860, 28-Nov-2013
1192,Revenue,CCHD,Purchase of Non-Res Care - South,Private & Voluntary Day Care,Milestones Trust,741.12, 26-Nov-2013
1193,Revenue,CCHD,Supported Living (S28a) South,Private & Voluntary Home Care,Milestones Trust,6561.03, 28-Nov-2013
1194,Revenue,CCHD,Supported Living - South,Private & Voluntary Home Care,Milestones Trust,1217.57, 26-Nov-2013
1195,Revenue,CCHD,Supported Living (S28a) South,Private & Voluntary Home Care,Milestones Trust,659.21, 28-Nov-2013
1196,Revenue,CCHD,Supported Living - South,Private & Voluntary Home Care,Milestones Trust,524.81, 26-Nov-2013
1197,Revenue,CCHD,Supported Living (S28a) North,Private & Voluntary Home Care,Milestones Trust,3974, 28-Nov-2013
1198,Revenue,CCHD,Supported Living (S28a) North,Private & Voluntary Home Care,Milestones Trust,3512.6, 28-Nov-2013
1199,Revenue,CCHD,Supported Living (S28a) North,Private & Voluntary Home Care,Milestones Trust,4381, 28-Nov-2013
1200,Revenue,CCHD,Supported Living (S28a) North,Private & Voluntary Home Care,Milestones Trust,3974, 28-Nov-2013
1201,Revenue,CCHD,Supported Living - South,Private & Voluntary Home Care,Milestones Trust,641.9, 26-Nov-2013
1202,Revenue,CCHD,Supported Living (S28a) North,Private & Voluntary Home Care,Milestones Trust,3512.6, 28-Nov-2013
1203,Revenue,CCHD,Supported Living (S28a) North,Private & Voluntary Home Care,Milestones Trust,1208.18, 28-Nov-2013
1204,Revenue,CCHD,Supported Living (S28a) North,Private & Voluntary Home Care,Milestones Trust,4381, 28-Nov-2013
1205,Revenue,CCHD,Supported Living - South,Private & Voluntary Home Care,Milestones Trust,916.16, 26-Nov-2013
1206,Revenue,CCHD,Supported Living - South,Private & Voluntary Home Care,Milestones Trust,936.23, 29-Nov-2013
1207,Revenue,CCHD,Supported Living (S28a) South,Private & Voluntary Home Care,Milestones Trust,1420.48, 28-Nov-2013
1208,Revenue,CCHD,Supported Living (S28a) North,Private & Voluntary Home Care,Milestones Trust,9293.06, 28-Nov-2013
1209,Revenue,CCHD,Supported Living (S28a) North,Private & Voluntary Home Care,Milestones Trust,8951.32, 28-Nov-2013
1210,Revenue,CCHD,Purchase of Non-Res Care - South,Private & Voluntary Day Care,Milestones Trust,740, 26-Nov-2013
1211,Revenue,CCHD,Supported Living (S28a) North,Private & Voluntary Home Care,Milestones Trust,5259.92, 28-Nov-2013
1212,Revenue,CCHD,Supported Living - North,Private & Voluntary Home Care,Milestones Trust,5045.15, 27-Nov-2013
1213,Revenue,CCHD,Supported Living (S28a) South,Private & Voluntary Home Care,Milestones Trust,3374.23, 28-Nov-2013
1214,Revenue,CCHD,Supported Living (S28a) South,Private & Voluntary Home Care,Milestones Trust,3330.63, 28-Nov-2013
1215,Revenue,CCHD,Supported Living - South,Private & Voluntary Home Care,Milestones Trust,3009.35, 29-Nov-2013
1216,Revenue,CCHD,Supported Living (S28a) South,Private & Voluntary Home Care,Milestones Trust,3764.86, 28-Nov-2013
1217,Revenue,CCHD,Supported Living - South,Private & Voluntary Home Care,Milestones Trust,1777.05, 26-Nov-2013
1218,Revenue,CCHD,Supported Living - South,Private & Voluntary Home Care,Milestones Trust,654.4, 26-Nov-2013
1219,Revenue,CCHD,Supported Living - South,Private & Voluntary Home Care,Milestones Trust,2794.67, 26-Nov-2013
1220,Revenue,CCHD,Supported Living - South,Private & Voluntary Home Care,Milestones Trust,673, 26-Nov-2013
1221,Revenue,CCHD,Supported Living - South,Private & Voluntary Home Care,Milestones Trust,760.42, 26-Nov-2013
1222,Revenue,CCHD,Supported Living (S28a) South,Private & Voluntary Home Care,Milestones Trust,611.85, 28-Nov-2013
1223,Revenue,CCHD,Bed Purchasing - S28A - Over 65- North,Residential Permanent,Milestones Trust,2617.12, 26-Nov-2013
1224,Revenue,CCHD,Bed Purchasing - Elderly - South,Residential Permanent,Milestones Trust,1408.28, 26-Nov-2013
1225,Revenue,CCHD,Bed Purchasing - Under 65s PWLD - South,Residential Permanent,Milestones Trust,5601.56, 26-Nov-2013
1226,Revenue,CCHD,Bed purchasing - Elderly MH - North,Nursing Permanent,Milestones Trust,959.4, 26-Nov-2013
1227,Revenue,CCHD,Bed purchasing - Elderly PWLD - North,Residential Permanent,Milestones Trust,3411.76, 26-Nov-2013
1228,Revenue,CCHD,Bed Purchasing - Under 65s PWLD - South,Residential Permanent,Milestones Trust,4796.48, 26-Nov-2013
1229,Revenue,CCHD,Bed Purchasing - Under 65s PWLD - South,Residential Permanent,Milestones Trust,5362.64, 26-Nov-2013
1230,Revenue,CCHD,Bed Purchasing - Under 65s PWLD - South,Nursing Permanent,Milestones Trust,2784.88, 26-Nov-2013
1231,Revenue,CCHD,Bed purchasing - Elderly MH - North,Nursing Permanent,Milestones Trust,1434.2, 26-Nov-2013
1232,Revenue,CCHD,Section 117 Placements MH Younger,Nursing Permanent,Milestones Trust,1615.36, 26-Nov-2013
1233,Revenue,CCHD,Bed Purchasing - Elderly MH - South,Residential Permanent,Milestones Trust,3555.92, 26-Nov-2013
1234,Revenue,CCHD,Section 117 Placements MH Younger,Residential Permanent,Milestones Trust,2349.16, 26-Nov-2013
1235,Revenue,CCHD,Bed purchasing - Elderly S117 - South,Nursing Permanent,Milestones Trust,1964, 26-Nov-2013
1236,Revenue,CCHD,Bed Purchasing - Elderly - South,Nursing Permanent,Milestones Trust,1419.6, 26-Nov-2013
1237,Revenue,CCHD,Bed purchasing - Elderly PWLD - South,Residential Permanent,Milestones Trust,4067.52, 26-Nov-2013
1238,Revenue,CCHD,Bed purchasing -S28A  Under 65 - North,Nursing Permanent,Milestones Trust,5774.8, 26-Nov-2013
1239,Revenue,CCHD,Bed purchasing -S28A  Under 65 - North,Residential Permanent,Milestones Trust,5258.88, 26-Nov-2013
1240,Revenue,CCHD,Bed purchasing - S28A Under 65 - South,Residential Permanent,Milestones Trust,5446.8, 26-Nov-2013
1241,Revenue,CCHD,Bed Purchasing - Elderly MH - South,Residential Permanent,Milestones Trust,1282.64, 26-Nov-2013
1242,Revenue,CCHD,Bed Purchasing - Under 65s PWLD - South,Residential Permanent,Milestones Trust,5000.92, 26-Nov-2013
1243,Revenue,CCHD,Bed Purchasing - Under 65s PWLD - South,Residential Permanent,Milestones Trust,5431.76, 26-Nov-2013
1244,Revenue,CCHD,Bed purchasing - S28A Under 65 - South,Nursing Permanent,Milestones Trust,7190.52, 26-Nov-2013
1245,Revenue,CCHD,MH Purchasing - Younger,Residential Permanent,Milestones Trust,1020.8, 26-Nov-2013
1246,Revenue,CCHD,Bed purchasing - Elderly PWLD - South,Residential Permanent,Milestones Trust,5052.56, 26-Nov-2013
1247,Revenue,CCHD,Bed purchasing - Elderly PWLD - South,Residential Permanent,Milestones Trust,3823.68, 26-Nov-2013
1248,Revenue,CCHD,Bed purchasing - Elderly PWLD - North,Residential Permanent,Milestones Trust,2969.12, 26-Nov-2013
1249,Revenue,CCHD,Bed purchasing -S28A  Under 65 - North,Residential Permanent,Milestones Trust,5182.72, 26-Nov-2013
1250,Revenue,CCHD,Bed purchasing -S28A  Under 65 - North,Residential Permanent,Milestones Trust,6955.32, 26-Nov-2013
1251,Revenue,CCHD,Bed purchasing -S28A  Under 65 - North,Nursing Permanent,Milestones Trust,6153.36, 26-Nov-2013
1252,Revenue,CCHD,Bed Purchasing - Under 65s PWLD - South,Residential Permanent,Milestones Trust,4452.24, 26-Nov-2013
1253,Revenue,CCHD,Bed Purchasing - Elderly - South,Residential Permanent,Milestones Trust,1129.92, 26-Nov-2013
1254,Revenue,CCHD,Bed purchasing -S28A  Under 65 - North,Residential Permanent,Milestones Trust,6656.16, 26-Nov-2013
1255,Revenue,CCHD,Bed purchasing - S28A Under 65 - South,Residential Permanent,Milestones Trust,4459.4, 26-Nov-2013
1256,Revenue,CCHD,Bed Purchasing - S28A - Over 65- North,Residential Permanent,Milestones Trust,6510.76, 26-Nov-2013
1257,Revenue,CCHD,Bed Purchasing - LD S28A- Over 65- South,Residential Permanent,Milestones Trust,4118.28, 26-Nov-2013
1258,Revenue,CCHD,Bed purchasing -S28A  Under 65 - North,Residential Permanent,Milestones Trust,6955.32, 26-Nov-2013
1259,Revenue,CCHD,Bed purchasing -S28A  Under 65 - North,Residential Permanent,Milestones Trust,6955.32, 26-Nov-2013
1260,Revenue,CCHD,Bed Purchasing - LD S28A- Over 65- South,Residential Permanent,Milestones Trust,4041.16, 26-Nov-2013
1261,Revenue,CCHD,Bed purchasing - S28A Under 65 - South,Residential Permanent,Milestones Trust,4796.48, 26-Nov-2013
1262,Revenue,CCHD,Bed purchasing - S28A Under 65 - South,Residential Permanent,Milestones Trust,4691.48, 26-Nov-2013
1263,Revenue,CCHD,Bed purchasing - S28A Under 65 - South,Residential Permanent,Milestones Trust,4225.4, 26-Nov-2013
1264,Revenue,CCHD,Bed Purchasing - LD S28A- Over 65- South,Residential Permanent,Milestones Trust,5019.44, 26-Nov-2013
1265,Revenue,CCHD,Bed Purchasing - LD S28A- Over 65- South,Residential Permanent,Milestones Trust,4960.32, 26-Nov-2013
1266,Revenue,CCHD,Bed Purchasing - LD S28A- Over 65- South,Residential Permanent,Milestones Trust,5114.08, 26-Nov-2013
1267,Revenue,CCHD,Bed Purchasing - LD S28A- Over 65- South,Residential Permanent,Milestones Trust,4292.36, 26-Nov-2013
1268,Revenue,CCHD,Bed Purchasing - LD S28A- Over 65- South,Residential Permanent,Milestones Trust,5701.92, 26-Nov-2013
1269,Revenue,CCHD,Bed purchasing -S28A  Under 65 - North,Residential Permanent,Milestones Trust,9023.08, 26-Nov-2013
1270,Revenue,CCHD,Bed purchasing -S28A  Under 65 - North,Nursing Permanent,Milestones Trust,6235.36, 26-Nov-2013
1271,Revenue,CCHD,Bed Purchasing - LD S28A- Over 65- South,Residential Permanent,Milestones Trust,2953.24, 26-Nov-2013
1272,Revenue,CCHD,Bed Purchasing - S28A - Over 65- North,Residential Permanent,Milestones Trust,2835.72, 26-Nov-2013
1273,Revenue,CCHD,Section 117 Placements MH Younger,Residential Permanent,Milestones Trust,1336, 26-Nov-2013
1274,Revenue,CCHD,Bed purchasing - Elderly MH - North,Residential Permanent,Milestones Trust,850, 26-Nov-2013
1275,Revenue,CCHD,Bed purchasing - S28A Under 65 - South,Residential Permanent,Milestones Trust,4796.48, 26-Nov-2013
1276,Revenue,CCHD,Bed purchasing - Elderly PWLD - North,Residential Permanent,Milestones Trust,4247.2, 26-Nov-2013
1277,Revenue,CCHD,Bed purchasing - Elderly MH - North,Nursing Permanent,Milestones Trust,1098.04, 26-Nov-2013
1278,Revenue,CCHD,Bed Purchasing - Under 65s PWLD - South,Residential Permanent,Milestones Trust,4208.76, 26-Nov-2013
1279,Revenue,CCHD,Bed purchasing -S28A  Under 65 - North,Residential Permanent,Milestones Trust,5592.32, 26-Nov-2013
1280,Revenue,CCHD,Bed Purchasing - S28A - Over 65- North,Residential Permanent,Milestones Trust,3549.16, 26-Nov-2013
1281,Revenue,CCHD,Bed Purchasing - Elderly S117- North,Residential Permanent,Milestones Trust,1732, 26-Nov-2013
1282,Revenue,CCHD,MH Purchasing - Younger,Residential Permanent,Milestones Trust,1020.8, 26-Nov-2013
1283,Revenue,CCHD,Bed Purchasing - S28A - Over 65- North,Residential Permanent,Milestones Trust,3170.24, 26-Nov-2013
1284,Revenue,CCHD,Bed Purchasing - LD S28A- Over 65- South,Residential Permanent,Milestones Trust,3828.04, 26-Nov-2013
1285,Revenue,CCHD,Bed purchasing - S28A Under 65 - South,Residential Permanent,Milestones Trust,5121.32, 26-Nov-2013
1286,Revenue,CCHD,Bed purchasing - S28A Under 65 - South,Residential Permanent,Milestones Trust,5724.72, 26-Nov-2013
1287,Revenue,CCHD,Bed Purchasing - LD S28A- Over 65- South,Residential Permanent,Milestones Trust,5591.04, 26-Nov-2013
1288,Revenue,CCHD,Bed Purchasing - LD S28A- Over 65- South,Residential Permanent,Milestones Trust,4735.4, 26-Nov-2013
1289,Revenue,CCHD,Bed Purchasing - LD S28A- Over 65- South,Residential Permanent,Milestones Trust,4461.32, 26-Nov-2013
1290,Revenue,CCHD,Bed Purchasing - LD S28A- Over 65- South,Residential Permanent,Milestones Trust,4535.32, 26-Nov-2013
1291,Revenue,CCHD,Bed purchasing - S28A Under 65 - South,Residential Permanent,Milestones Trust,7067.16, 26-Nov-2013
1292,Revenue,CCHD,Bed Purchasing - LD S28A- Over 65- South,Residential Permanent,Milestones Trust,4241.68, 26-Nov-2013
1293,Revenue,CCHD,Bed Purchasing - S28A - Over 65- North,Residential Permanent,Milestones Trust,4683.8, 26-Nov-2013
1294,Revenue,CCHD,Bed Purchasing - Elderly S117- North,Nursing Permanent,Milestones Trust,1788, 26-Nov-2013
1295,Revenue,CCHD,Bed Purchasing - S28A - Over 65- North,Residential Permanent,Milestones Trust,4524.16, 26-Nov-2013
1296,Revenue,CCHD,Bed Purchasing - S28A - Over 65- North,Residential Permanent,Milestones Trust,4692.44, 26-Nov-2013
1297,Revenue,CCHD,Bed purchasing - S28A Under 65 - South,Residential Permanent,Milestones Trust,4686.44, 26-Nov-2013
1298,Revenue,CCHD,Bed Purchasing - S28A - Over 65- North,Residential Permanent,Milestones Trust,4440.04, 26-Nov-2013
1299,Revenue,CCHD,Bed purchasing - S28A Under 65 - South,Residential Permanent,Milestones Trust,4625.68, 26-Nov-2013
1300,Revenue,CCHD,Bed purchasing -S28A  Under 65 - North,Residential Permanent,Milestones Trust,6955.32, 26-Nov-2013
1301,Revenue,CCHD,Bed Purchasing - S28A - Over 65- North,Residential Permanent,Milestones Trust,5530.88, 26-Nov-2013
1302,Revenue,CCHD,Bed purchasing -S28A  Under 65 - North,Residential Permanent,Milestones Trust,2924.52, 26-Nov-2013
1303,Revenue,CCHD,Bed Purchasing - S28A - Over 65- North,Residential Permanent,Milestones Trust,3090.6, 26-Nov-2013
1304,Revenue,CCHD,Bed Purchasing - S28A - Over 65- North,Residential Permanent,Milestones Trust,3221.88, 26-Nov-2013
1305,Revenue,CCHD,Bed Purchasing - LD S28A- Over 65- South,Residential Permanent,Milestones Trust,3043.6, 26-Nov-2013
1306,Revenue,CCHD,Bed purchasing - Under 65s PWLD - North,Residential Permanent,Milestones Trust,6673.92, 26-Nov-2013
1307,Revenue,CCHD,Bed Purchasing - Elderly - South,Residential Permanent,Milestones Trust,1302, 26-Nov-2013
1308,Revenue,CCHD,MH Purchasing - Younger,Nursing Permanent,Milestones Trust,924, 26-Nov-2013
1309,Revenue,CCHD,MH Purchasing - Younger,Nursing Permanent,Milestones Trust,1112.8, 26-Nov-2013
1310,Revenue,CCHD,Bed purchasing - Elderly PWLD - South,Residential Permanent,Milestones Trust,3209.36, 26-Nov-2013
1311,Revenue,CCHD,Bed purchasing - S28A Under 65 - South,Residential Permanent,Milestones Trust,5832.32, 26-Nov-2013
1312,Revenue,CCHD,Bed purchasing - S28A Under 65 - South,Residential Permanent,Milestones Trust,5925.08, 26-Nov-2013
1313,Revenue,CCHD,Bed Purchasing - LD S28A- Over 65- South,Residential Permanent,Milestones Trust,4292.36, 26-Nov-2013
1314,Revenue,CCHD,Bed Purchasing - Under 65s PWLD - South,Residential Permanent,Milestones Trust,5832.72, 26-Nov-2013
1315,Revenue,CCHD,Bed Purchasing - LD S28A- Over 65- South,Nursing Permanent,Milestones Trust,4464.72, 26-Nov-2013
1316,Revenue,CCHD,Bed Purchasing - LD S28A- Over 65- South,Residential Permanent,Milestones Trust,5591.04, 26-Nov-2013
1317,Revenue,CCHD,Bed Purchasing - LD S28A- Over 65- South,Residential Permanent,Milestones Trust,3559.36, 26-Nov-2013
1318,Revenue,CCHD,Bed Purchasing - LD S28A- Over 65- South,Residential Permanent,Milestones Trust,4282.6, 26-Nov-2013
1319,Revenue,CCHD,Bed Purchasing - LD S28A- Over 65- South,Residential Permanent,Milestones Trust,5869.12, 26-Nov-2013
1320,Revenue,CCHD,Bed Purchasing - Elderly MH - South,Residential Permanent,Milestones Trust,1212.08, 26-Nov-2013
1321,Revenue,CCHD,Bed purchasing -S28A  Under 65 - North,Nursing Permanent,Milestones Trust,7563.52, 26-Nov-2013
1322,Revenue,CCHD,Bed Purchasing - Under 65s PWLD - South,Residential Permanent,Milestones Trust,5173.28, 26-Nov-2013
1323,Revenue,CCHD,Bed Purchasing - Elderly S117- North,Nursing Permanent,Milestones Trust,1964, 26-Nov-2013
1324,Revenue,CCHD,Bed Purchasing - Elderly MH - South,Nursing Permanent,Milestones Trust,1824.96, 26-Nov-2013
1325,Revenue,CCHD,Bed purchasing - Under 65s PWLD - North,Residential Permanent,Milestones Trust,9386.6, 26-Nov-2013
1326,Revenue,CCHD,Section 117 Placements MH Younger,Residential Permanent,Milestones Trust,1336, 26-Nov-2013
1327,Revenue,CCHD,Bed Purchasing - LD S28A- Over 65- South,Nursing Permanent,Milestones Trust,2940.76, 26-Nov-2013
1328,Revenue,CCHD,Bed Purchasing - LD S28A- Over 65- South,Nursing Permanent,Milestones Trust,3218.2, 26-Nov-2013
1329,Revenue,CCHD,Bed Purchasing - LD S28A- Over 65- South,Nursing Permanent,Milestones Trust,2729.64, 26-Nov-2013
1330,Revenue,CCHD,Bed Purchasing - S28A - Over 65- North,Nursing Permanent,Milestones Trust,3649.32, 26-Nov-2013
1331,Revenue,CCHD,Bed Purchasing - S28A - Over 65- North,Nursing Permanent,Milestones Trust,3665.32, 26-Nov-2013
1332,Revenue,CCHD,Bed Purchasing - Elderly - South,Residential Permanent,Milestones Trust,1246, 26-Nov-2013
1333,Revenue,CCHD,Bed Purchasing - Frenchay Hospital,Residential Permanent,Mostyn Lodge Residential Home,1254, 26-Nov-2013
1334,Revenue,CCHD,Bed purchasing - Elderly S117 - South,Residential Permanent,Mostyn Lodge Residential Home,1900, 26-Nov-2013
1335,Revenue,CCHD,Bed Purchasing - Frenchay Hospital,Residential Permanent,Mostyn Lodge Residential Home,654.96, 26-Nov-2013
1336,Revenue,CCHD,Social Lettings Agency,Fees - General,Individual,10, 07-Nov-2013
1337,Revenue,CCHD,Social Lettings Agency,Other Supplies & Services,Individual,565, 07-Nov-2013
1338,Revenue,CCHD,Social Lettings Agency,Fees - General,Individual,10, 18-Nov-2013
1339,Revenue,CCHD,Social Lettings Agency,Other Supplies & Services,Individual,565, 18-Nov-2013
1340,Revenue,CCHD,Social Lettings Agency,Fees - General,Individual,10, 22-Nov-2013
1341,Revenue,CCHD,Social Lettings Agency,Other Supplies & Services,Individual,565, 22-Nov-2013
1342,Revenue,CCHD,Social Lettings Agency,Fees - General,Individual,8.6, 22-Nov-2013
1343,Revenue,CCHD,Social Lettings Agency,Other Supplies & Services,Individual,582, 22-Nov-2013
1344,Revenue,CCHD,Social Lettings Agency,Fees - General,Individual,11.6, 01-Nov-2013
1345,Revenue,CCHD,Social Lettings Agency,Other Supplies & Services,Individual,655.41, 01-Nov-2013
1346,Revenue,CCHD,Social Lettings Agency,Fees - General,Individual,11.6, 29-Nov-2013
1347,Revenue,CCHD,Social Lettings Agency,Other Supplies & Services,Individual,655.41, 29-Nov-2013
1348,Revenue,CCHD,Social Lettings Agency,Other Supplies & Services,Individual,850, 12-Nov-2013
1349,Revenue,CCHD,Tenancy Start Up Scheme,Other Supplies & Services,Individual,1300, 19-Nov-2013
1350,Revenue,CCHD,Social Lettings Agency,Fees - General,Individual,11.2, 20-Nov-2013
1351,Revenue,CCHD,Social Lettings Agency,Other Supplies & Services,Individual,632.81, 20-Nov-2013
1352,Revenue,CCHD,Social Lettings Agency,Fees - General,Individual,10, 08-Nov-2013
1353,Revenue,CCHD,Social Lettings Agency,Other Supplies & Services,Individual,565, 08-Nov-2013
1354,Revenue,CCHD,Social Lettings Agency,Fees - General,Individual,10, 01-Nov-2013
1355,Revenue,CCHD,Social Lettings Agency,Other Supplies & Services,Individual,565, 01-Nov-2013
1356,Revenue,CCHD,Social Lettings Agency,Fees - General,Individual,10, 29-Nov-2013
1357,Revenue,CCHD,Social Lettings Agency,Other Supplies & Services,Individual,565, 29-Nov-2013
1358,Revenue,CCHD,Social Lettings Agency,Fees - General,Individual,8.7, 15-Nov-2013
1359,Revenue,CCHD,Social Lettings Agency,Other Supplies & Services,Individual,622.8, 15-Nov-2013
1360,Revenue,CCHD,Social Lettings Agency,Fees - General,Individual,11.2, 13-Nov-2013
1361,Revenue,CCHD,Social Lettings Agency,Other Supplies & Services,Individual,632.81, 13-Nov-2013
1362,Revenue,CCHD,Homelessness Grant,Other Supplies & Services,Mr Sanj Cohan,850, 04-Nov-2013
1363,Revenue,CCHD,Tenancy Start Up Scheme,Other Supplies & Services,Individual,1300, 13-Nov-2013
1364,Revenue,CCHD,Supported Living - South,Private & Voluntary Home Care,Mrs B Kimber,8641.92, 20-Nov-2013
1365,Revenue,CCHD,Supported Living - South,Private & Voluntary Home Care,Mrs B Kimber,11463.94, 25-Nov-2013
1366,Revenue,CCHD,Day Care - North,Private & Voluntary Day Care,Mrs B Kimber,608.6, 12-Nov-2013
1367,Revenue,CCHD,Purchase of Non-Res Care - North,Private & Voluntary Day Care,Mrs B Kimber,781.95, 12-Nov-2013
1368,Revenue,CCHD,Supported Living - North,Private & Voluntary Home Care,Mrs B Kimber,897.71, 12-Nov-2013
1369,Revenue,CCHD,Supported Living - South,Private & Voluntary Home Care,Mrs B Kimber,1421.88, 22-Nov-2013
1370,Revenue,CCHD,Purchase of Non-Res Care - South,Private & Voluntary Day Care,Mrs B Kimber,1034.1, 20-Nov-2013
1371,Revenue,CCHD,Elderly MH Day Care North,Private & Voluntary Day Care,Mrs B Kimber,503.55, 14-Nov-2013
1372,Revenue,CCHD,Elderly MH Day Care South,Private & Voluntary Day Care,Mrs B Kimber,578.15, 21-Nov-2013
1373,Revenue,CCHD,Home Care - Elderly - South,Other Small Contracts,Mrs B Kimber -  CM2000,6937.65, 08-Nov-2013
1374,Revenue,CCHD,Home Care - Elderly - North,Other Small Contracts,Mrs B Kimber -  CM2000,3292.65, 08-Nov-2013
1375,Revenue,CCHD,Day Care - South,Private & Voluntary Day Care,Mrs B Kimber -  CM2000,522.45, 08-Nov-2013
1376,Revenue,CCHD,Day Care - North,Private & Voluntary Day Care,Mrs B Kimber -  CM2000,97.2, 08-Nov-2013
1377,Revenue,CCHD,Under 65s -MH  Home Care Purch,Other Small Contracts,Mrs B Kimber -  CM2000,64.8, 08-Nov-2013
1378,Revenue,CCHD,Elderly MH Day Care North,Private & Voluntary Day Care,Mrs B Kimber -  CM2000,97.2, 08-Nov-2013
1379,Revenue,CCHD,PWLD Home Care - Under 65 - KH,Private & Voluntary Home Care,Mrs B Kimber -  CM2000,97.2, 08-Nov-2013
1380,Revenue,CCHD,Home Care - Elderly - South,Other Small Contracts,Mrs B Kimber -  CM2000,6613.65, 01-Nov-2013
1381,Revenue,CCHD,Home Care - Elderly - North,Other Small Contracts,Mrs B Kimber -  CM2000,3061.8, 01-Nov-2013
1382,Revenue,CCHD,Day Care - South,Private & Voluntary Day Care,Mrs B Kimber -  CM2000,400.95, 01-Nov-2013
1383,Revenue,CCHD,Day Care - North,Private & Voluntary Day Care,Mrs B Kimber -  CM2000,32.4, 01-Nov-2013
1384,Revenue,CCHD,Under 65s -MH  Home Care Purch,Other Small Contracts,Mrs B Kimber -  CM2000,64.8, 01-Nov-2013
1385,Revenue,CCHD,Elderly MH Day Care North,Private & Voluntary Day Care,Mrs B Kimber -  CM2000,97.2, 01-Nov-2013
1386,Revenue,CCHD,PWLD Home Care - Under 65 - KH,Private & Voluntary Home Care,Mrs B Kimber -  CM2000,97.2, 01-Nov-2013
1387,Revenue,CCHD,Home Care - Elderly - South,Other Small Contracts,Mrs B Kimber -  CM2000,6216.75, 01-Nov-2013
1388,Revenue,CCHD,Home Care - Elderly - North,Other Small Contracts,Mrs B Kimber -  CM2000,2867.4, 01-Nov-2013
1389,Revenue,CCHD,Day Care - South,Private & Voluntary Day Care,Mrs B Kimber -  CM2000,522.45, 01-Nov-2013
1390,Revenue,CCHD,Under 65s -MH  Home Care Purch,Other Small Contracts,Mrs B Kimber -  CM2000,64.8, 01-Nov-2013
1391,Revenue,CCHD,Elderly MH Day Care North,Private & Voluntary Day Care,Mrs B Kimber -  CM2000,97.2, 01-Nov-2013
1392,Revenue,CCHD,PWLD Home Care - Under 65 - KH,Private & Voluntary Home Care,Mrs B Kimber -  CM2000,97.2, 01-Nov-2013
1393,Revenue,CCHD,Home Care - Elderly - South,Other Small Contracts,Mrs B Kimber -  CM2000,7605.9, 20-Nov-2013
1394,Revenue,CCHD,Home Care - Elderly - North,Other Small Contracts,Mrs B Kimber -  CM2000,3203.55, 20-Nov-2013
1395,Revenue,CCHD,Day Care - South,Private & Voluntary Day Care,Mrs B Kimber -  CM2000,522.45, 20-Nov-2013
1396,Revenue,CCHD,Day Care - North,Private & Voluntary Day Care,Mrs B Kimber -  CM2000,36.45, 20-Nov-2013
1397,Revenue,CCHD,Under 65s -MH  Home Care Purch,Other Small Contracts,Mrs B Kimber -  CM2000,32.4, 20-Nov-2013
1398,Revenue,CCHD,Elderly MH Day Care North,Private & Voluntary Day Care,Mrs B Kimber -  CM2000,97.2, 20-Nov-2013
1399,Revenue,CCHD,PWLD Home Care - Under 65 - KH,Private & Voluntary Home Care,Mrs B Kimber -  CM2000,97.2, 20-Nov-2013
1400,Revenue,CCHD,Home Care - Elderly - South,Other Small Contracts,Mrs B Kimber -  CM2000,7703.1, 20-Nov-2013
1401,Revenue,CCHD,Home Care - Elderly - North,Other Small Contracts,Mrs B Kimber -  CM2000,3126.6, 20-Nov-2013
1402,Revenue,CCHD,Day Care - South,Private & Voluntary Day Care,Mrs B Kimber -  CM2000,445.5, 20-Nov-2013
1403,Revenue,CCHD,Day Care - North,Private & Voluntary Day Care,Mrs B Kimber -  CM2000,32.4, 20-Nov-2013
1404,Revenue,CCHD,Under 65s -MH  Home Care Purch,Other Small Contracts,Mrs B Kimber -  CM2000,48.6, 20-Nov-2013
1405,Revenue,CCHD,Elderly MH Day Care North,Private & Voluntary Day Care,Mrs B Kimber -  CM2000,97.2, 20-Nov-2013
1406,Revenue,CCHD,PWLD Home Care - Under 65 - KH,Private & Voluntary Home Care,Mrs B Kimber -  CM2000,97.2, 20-Nov-2013
1407,Revenue,CCHD,Social Lettings Agency,Fees - General,Individual,10, 15-Nov-2013
1408,Revenue,CCHD,Social Lettings Agency,Other Supplies & Services,Individual,565, 15-Nov-2013
1409,Revenue,CCHD,Social Lettings Agency,Fees - General,Individual,10, 14-Nov-2013
1410,Revenue,CCHD,Social Lettings Agency,Other Supplies & Services,Individual,565, 14-Nov-2013
1411,Revenue,CCHD,Social Lettings Agency,Fees - General,Individual,10, 22-Nov-2013
1412,Revenue,CCHD,Social Lettings Agency,Other Supplies & Services,Individual,565, 22-Nov-2013
1413,Revenue,CCHD,Social Lettings Agency,Fees - General,Individual,10, 01-Nov-2013
1414,Revenue,CCHD,Social Lettings Agency,Other Supplies & Services,Individual,565, 01-Nov-2013
1415,Revenue,CCHD,Social Lettings Agency,Fees - General,Individual,10, 29-Nov-2013
1416,Revenue,CCHD,Social Lettings Agency,Other Supplies & Services,Individual,565, 29-Nov-2013
1417,Revenue,CCHD,Supported Living - North,Residential Permanent,Mrs I M Bowerman,1156.32, 11-Nov-2013
1418,Revenue,CCHD,Social Lettings Agency,Fees - General,Individual,10, 12-Nov-2013
1419,Revenue,CCHD,Social Lettings Agency,Other Supplies & Services,Individual,565, 12-Nov-2013
1420,Revenue,CCHD,Supported Living - North,Residential Permanent,Mrs Julie Taylor,757.23, 11-Nov-2013
1421,Revenue,CCHD,Social Lettings Agency,Fees - General,Individual,11.6, 15-Nov-2013
1422,Revenue,CCHD,Social Lettings Agency,Other Supplies & Services,Individual,655.41, 15-Nov-2013
1423,Revenue,CCHD,Social Lettings Agency,Other Supplies & Services,Individual,715, 12-Nov-2013
1424,Revenue,CCHD,Social Lettings Agency,Fees - General,Individual,15.2, 11-Nov-2013
1425,Revenue,CCHD,Social Lettings Agency,Other Supplies & Services,Individual,858.8, 11-Nov-2013
1426,Revenue,CCHD,Younger MH non-res purchasing,Private & Voluntary Day Care,NAS Services Limited,940.68, 14-Nov-2013
1427,Revenue,CCHD,Younger MH non-res purchasing,Private & Voluntary Day Care,NAS Services Limited,620.75, 14-Nov-2013
1428,Revenue,CCHD,Day Care - South,Private & Voluntary Day Care,NAS Services Limited,927.58, 14-Nov-2013
1429,Revenue,CCHD,Day Care - South,Private & Voluntary Day Care,NAS Services Limited,810.92, 14-Nov-2013
1430,Revenue,CCHD,Day Care - North,Private & Voluntary Day Care,NAS Services Limited,669.45, 15-Nov-2013
1431,Revenue,CCHD,Day Care - North,Private & Voluntary Day Care,NAS Services Limited,935.9, 15-Nov-2013
1432,Revenue,CCHD,Bed Purchasing - Under 65s PWLD - South,Fees & Charges Income - General,National Star College FDY Limited,4547.72, 29-Nov-2013
1433,Revenue,CCHD,Home Care - Elderly - South,Other Small Contracts,Network Health & Social Care,1454.86, 07-Nov-2013
1434,Revenue,CCHD,Home Care - Elderly - North,Other Small Contracts,Network Health & Social Care,4205.09, 07-Nov-2013
1435,Revenue,CCHD,Social Lettings Agency,Fees - General,Individual,10, 04-Nov-2013
1436,Revenue,CCHD,Social Lettings Agency,Other Supplies & Services,Individual,565, 04-Nov-2013
1437,Revenue,CCHD,SLA Grants - Support Serv,Other Supplies & Services,NHS South Gloucestershire CCG,15000, 12-Nov-2013
1438,Revenue,CCHD,Bed Purchasing - Under 65s PWLD - South,Residential Permanent,Nightingale Nursing Home,3105.36, 26-Nov-2013
1439,Revenue,CCHD,NTS Grant - Trainee Social Wor,Training Expenses,North Somerset Council,5800, 29-Nov-2013
1440,Revenue,CCHD,Information Systems - Software,Software Support & Maintenance,Northgate Information Solutions UK Limited,20000, 29-Nov-2013
1441,Revenue,CCHD,Bed Purchasing - Under 65s PWLD - South,Residential Permanent,Norwood   Broadway House,4899.44, 26-Nov-2013
1442,Revenue,CCHD,Bed Purchasing - Elderly MH - South,Residential Permanent,Notaro Homes Ltd  Queensmead Court,1857.32, 26-Nov-2013
1443,Revenue,CCHD,Bed Purchasing - Southmead Hospital,Residential Permanent,Notaro Homes Ltd  Queensmead Court,1371.32, 26-Nov-2013
1444,Revenue,CCHD,Bed Purchasing - Elderly - South,Residential Permanent,Nova House Care Home,938.4, 26-Nov-2013
1445,Revenue,CCHD,Home Care - Elderly - South,Other Small Contracts,Nursing Solutions Limited,2484.3, 07-Nov-2013
1446,Revenue,CCHD,Home Care - Elderly - North,Other Small Contracts,Nursing Solutions Limited,393.9, 07-Nov-2013
1447,Revenue,CCHD,Home Care - Elderly - South,Other Small Contracts,Nursing Solutions Limited,2055.3, 07-Nov-2013
1448,Revenue,CCHD,Home Care - Elderly - North,Other Small Contracts,Nursing Solutions Limited,393.9, 07-Nov-2013
1449,Revenue,CCHD,Section 117 Placements MH Younger,Nursing Permanent,Oaklands,6000, 26-Nov-2013
1450,Revenue,CCHD,Home Care - Elderly - South,Other Small Contracts,On the Up,822.18, 12-Nov-2013
1451,Revenue,CCHD,Home Care - Elderly - North,Other Small Contracts,On the Up,92.64, 12-Nov-2013
1452,Revenue,CCHD,Day Care - South,Private & Voluntary Day Care,On the Up,109.44, 12-Nov-2013
1453,Revenue,CCHD,Day Care - North,Private & Voluntary Day Care,On the Up,337.44, 12-Nov-2013
1454,Revenue,CCHD,Younger MH non-res purchasing,Private & Voluntary Day Care,On the Up,36.48, 12-Nov-2013
1455,Revenue,CCHD,Home care - Elderly MH - North,Other Small Contracts,On the Up,34.74, 12-Nov-2013
1456,Revenue,CCHD,Home Care - Elderly - South,Other Small Contracts,On the Up,914.82, 12-Nov-2013
1457,Revenue,CCHD,Home Care - Elderly - North,Other Small Contracts,On the Up,92.64, 12-Nov-2013
1458,Revenue,CCHD,Day Care - South,Private & Voluntary Day Care,On the Up,72.96, 12-Nov-2013
1459,Revenue,CCHD,Day Care - North,Private & Voluntary Day Care,On the Up,332.88, 12-Nov-2013
1460,Revenue,CCHD,Younger MH non-res purchasing,Private & Voluntary Day Care,On the Up,36.48, 12-Nov-2013
1461,Revenue,CCHD,Home care - Elderly MH - North,Other Small Contracts,On the Up,34.74, 12-Nov-2013
1462,Revenue,CCHD,Home Care - Elderly - South,Other Small Contracts,On the Up,856.92, 12-Nov-2013
1463,Revenue,CCHD,Home Care - Elderly - North,Other Small Contracts,On the Up,92.64, 12-Nov-2013
1464,Revenue,CCHD,Day Care - South,Private & Voluntary Day Care,On the Up,77.52, 12-Nov-2013
1465,Revenue,CCHD,Day Care - North,Private & Voluntary Day Care,On the Up,323.76, 12-Nov-2013
1466,Revenue,CCHD,Younger MH non-res purchasing,Private & Voluntary Day Care,On the Up,36.48, 12-Nov-2013
1467,Revenue,CCHD,Home care - Elderly MH - North,Other Small Contracts,On the Up,61.76, 12-Nov-2013
1468,Revenue,CCHD,Home Care - Elderly - South,Other Small Contracts,On the Up,926.4, 19-Nov-2013
1469,Revenue,CCHD,Home Care - Elderly - North,Other Small Contracts,On the Up,96.5, 19-Nov-2013
1470,Revenue,CCHD,Day Care - South,Private & Voluntary Day Care,On the Up,109.44, 19-Nov-2013
1471,Revenue,CCHD,Day Care - North,Private & Voluntary Day Care,On the Up,323.76, 19-Nov-2013
1472,Revenue,CCHD,Younger MH non-res purchasing,Private & Voluntary Day Care,On the Up,36.48, 19-Nov-2013
1473,Revenue,CCHD,Home care - Elderly MH - North,Other Small Contracts,On the Up,61.76, 19-Nov-2013
1474,Revenue,CCHD,Home Care - Elderly - South,Other Small Contracts,On the Up,930.26, 19-Nov-2013
1475,Revenue,CCHD,Home Care - Elderly - North,Other Small Contracts,On the Up,92.64, 19-Nov-2013
1476,Revenue,CCHD,Day Care - South,Private & Voluntary Day Care,On the Up,72.96, 19-Nov-2013
1477,Revenue,CCHD,Day Care - North,Private & Voluntary Day Care,On the Up,208.72, 19-Nov-2013
1478,Revenue,CCHD,Younger MH non-res purchasing,Private & Voluntary Day Care,On the Up,36.48, 19-Nov-2013
1479,Revenue,CCHD,Home care - Elderly MH - North,Other Small Contracts,On the Up,61.76, 19-Nov-2013
1480,Revenue,CCHD,Bed purchasing -S28A  Under 65 - North,Residential Permanent,Orchard End Limited,7452.12, 26-Nov-2013
1481,Revenue,CCHD,Turnberries,"Provisions (Food, etc)",Origin Cafe,592.8, 07-Nov-2013
1482,Revenue,CCHD,Turnberries,"Provisions (Food, etc)",Origin Cafe,592.8, 29-Nov-2013
1483,Revenue,CCHD,Bed Purchasing - Elderly S117- North,Residential Permanent,Osbourne Court,1900, 26-Nov-2013
1484,Revenue,CCHD,Bed purchasing - Elderly S117 - South,Residential Permanent,Osbourne Court,3060, 26-Nov-2013
1485,Revenue,CCHD,Bed Purchasing - Elderly - North,Residential Permanent,Osbourne Court,1414, 26-Nov-2013
1486,Revenue,CCHD,Bed Purchasing - Elderly - North,Residential Permanent,Osbourne Court,505, 26-Nov-2013
1487,Revenue,CCHD,Bed Purchasing - Elderly S117- North,Residential Permanent,Osbourne Court,1900, 26-Nov-2013
1488,Revenue,CCHD,Bed Purchasing - Elderly - North,Residential Permanent,Osbourne Court,2519.28, 26-Nov-2013
1489,Revenue,CCHD,Bed Purchasing - Southmead Hospital,Residential Permanent,Osbourne Court,859.4, 26-Nov-2013
1490,Revenue,CCHD,Bed Purchasing - Under 65s PWLD - South,Residential Permanent,Osprey Court,7636.76, 26-Nov-2013
1491,Revenue,CCHD,Bed purchasing - S28A Under 65 - South,Residential Permanent,Osprey Court,4259.36, 26-Nov-2013
1492,Revenue,CCHD,Bed purchasing - S28A Under 65 - South,Residential Permanent,Osprey Court,6305.32, 26-Nov-2013
1493,Revenue,CCHD,Public Health - Admin,Grants to Voluntary Bodies,Our Place Community Flat,850, 29-Nov-2013
1494,Revenue,CCHD,Bed Purchasing - Southmead Hospital,Nursing Permanent,Palm Court Nursing Home,1503.36, 26-Nov-2013
1495,Revenue,CCHD,Bed Purchasing - Elderly MH - South,Residential Permanent,Park Farm House,1333.44, 26-Nov-2013
1496,Revenue,CCHD,Bed Purchasing - Elderly - South,Residential Permanent,Park Farm House,859.4, 26-Nov-2013
1497,Revenue,CCHD,Bed Purchasing - Elderly MH - South,Residential Permanent,Park Farm House,1593.2, 26-Nov-2013
1498,Revenue,CCHD,Bed Purchasing - Under 65s PWLD - South,Residential Permanent,Park Hall,5552, 26-Nov-2013
1499,Revenue,CCHD,Bed purchasing - Under 65s PWLD - North,Residential Permanent,Park Hall,5131.28, 26-Nov-2013
1500,Revenue,CCHD,Bed Purchasing - Under 65s PWLD - South,Residential Permanent,Park Hall,4940.84, 26-Nov-2013
1501,Revenue,CCHD,Bed purchasing - Elderly PWLD - South,Residential Permanent,Park Hall,2520.96, 26-Nov-2013
1502,Revenue,CCHD,Bed Purchasing - Under 65s PWLD - South,Residential Permanent,Park Hall,3824.16, 26-Nov-2013
1503,Revenue,CCHD,Bed purchasing - Elderly PWLD - North,Residential Permanent,Park Hall,4897.8, 26-Nov-2013
1504,Revenue,CCHD,Bed purchasing - S28A Under 65 - South,Residential Permanent,Park Hall,4614.16, 26-Nov-2013
1505,Revenue,CCHD,Bed Purchasing - Under 65s PWLD - South,Residential Permanent,Park Hall,4917.16, 26-Nov-2013
1506,Revenue,CCHD,Bed purchasing - Under 65s PWLD - North,Residential Permanent,Park Hall,4278.84, 26-Nov-2013
1507,Revenue,CCHD,Bed Purchasing - S28A - Over 65- North,Residential Permanent,Park Hall,5286.8, 26-Nov-2013
1508,Revenue,CCHD,Bed Purchasing - Under 65s PWLD - South,Residential Permanent,Park Hall,10610.92, 26-Nov-2013
1509,Revenue,CCHD,Bed purchasing -S28A  Under 65 - North,Residential Permanent,Park Hall,5844.16, 26-Nov-2013
1510,Revenue,CCHD,Bed purchasing - S28A Under 65 - South,Residential Permanent,Park Hall,5565.72, 26-Nov-2013
1511,Revenue,CCHD,Bed Purchasing - Under 65s PWLD - South,Residential Permanent,Park Hall,7081.64, 26-Nov-2013
1512,Revenue,CCHD,Social Lettings Agency,Fees - General,Individual,10, 27-Nov-2013
1513,Revenue,CCHD,Social Lettings Agency,Other Supplies & Services,Individual,565, 27-Nov-2013
1514,Revenue,CCHD,Bed Purchasing - Under 65s PWLD - South,Residential Permanent,Penleigh House Care Home,4493.52, 26-Nov-2013
1515,Revenue,CCHD,Bed Purchasing - Under 65s PWLD - South,Residential Permanent,Penleigh House Care Home,5224.4, 26-Nov-2013
1516,Revenue,CCHD,Bed purchasing - Elderly PWLD - South,Residential Permanent,Penleigh House Care Home,4258.48, 26-Nov-2013
1517,Revenue,CCHD,Bed purchasing - S28A Under 65 - South,Residential Permanent,Penleigh House Care Home,5417.04, 26-Nov-2013
1518,Revenue,CCHD,Bed Purchasing - Under 65s PWLD - South,Residential Permanent,Penleigh House Care Home,4893.28, 26-Nov-2013
1519,Revenue,CCHD,Training - Adult Services,Training Expenses,Penny McLellan,505.2, 25-Nov-2013
1520,Revenue,CCHD,Occupational Therapy Team,Agency Staff (Operational)/PCT Pay,Piers Meadows Recruitment Limited,475.72, 08-Nov-2013
1521,Revenue,CCHD,Occupational Therapy Team,Agency Staff (Operational)/PCT Pay,Piers Meadows Recruitment Limited,1164.77, 15-Nov-2013
1522,Revenue,CCHD,General Day Care,Operational Staff Pay,Piers Meadows Recruitment Limited,1171.97, 22-Nov-2013
1523,Revenue,CCHD,General Day Care,Operational Staff Pay,Piers Meadows Recruitment Limited,1160.72, 29-Nov-2013
1524,Revenue,CCHD,Supporting People Programme,Grants to Voluntary Bodies,Places for People,1117.67, 01-Nov-2013
1525,Revenue,CCHD,Supporting People Programme,Grants to Voluntary Bodies,Places for People,1117.67, 29-Nov-2013
1526,Revenue,CCHD,Home Care - Elderly - South,Other Small Contracts,Premier Homecare Limited,984.96, 08-Nov-2013
1527,Revenue,CCHD,Home Care - Elderly - North,Other Small Contracts,Premier Homecare Limited,6931.2, 08-Nov-2013
1528,Revenue,CCHD,Home care - Elderly MH - North,Other Small Contracts,Premier Homecare Limited,159.6, 08-Nov-2013
1529,Revenue,CCHD,Elderly MH Day Care North,Private & Voluntary Day Care,Premier Homecare Limited,72.96, 08-Nov-2013
1530,Revenue,CCHD,Home Care - Elderly - South,Other Small Contracts,Premier Homecare Limited,1053.36, 19-Nov-2013
1531,Revenue,CCHD,Home Care - Elderly - North,Other Small Contracts,Premier Homecare Limited,8034.72, 19-Nov-2013
1532,Revenue,CCHD,Home care - Elderly MH - North,Other Small Contracts,Premier Homecare Limited,164.16, 19-Nov-2013
1533,Revenue,CCHD,Elderly MH Day Care North,Private & Voluntary Day Care,Premier Homecare Limited,127.68, 19-Nov-2013
1534,Revenue,CCHD,Home Care - Elderly - South,Other Small Contracts,Premier Homecare Limited,1108.08, 22-Nov-2013
1535,Revenue,CCHD,Home Care - Elderly - North,Other Small Contracts,Premier Homecare Limited,7972.59, 22-Nov-2013
1536,Revenue,CCHD,Home care - Elderly MH - North,Other Small Contracts,Premier Homecare Limited,164.16, 22-Nov-2013
1537,Revenue,CCHD,Elderly MH Day Care North,Private & Voluntary Day Care,Premier Homecare Limited,127.68, 22-Nov-2013
1538,Revenue,CCHD,Home Care - Elderly - South,Other Small Contracts,Prestige Nursing,900.79, 26-Nov-2013
1539,Revenue,CCHD,Home Care - Elderly - North,Other Small Contracts,Prestige Nursing,1004.23, 26-Nov-2013
1540,Revenue,CCHD,Day Care - South,Private & Voluntary Day Care,Prestige Nursing,120.68, 26-Nov-2013
1541,Revenue,CCHD,Day Care - North,Private & Voluntary Day Care,Prestige Nursing,465.48, 26-Nov-2013
1542,Revenue,CCHD,Home Care - Elderly - South,Other Small Contracts,Prestige Nursing,930.96, 19-Nov-2013
1543,Revenue,CCHD,Home Care - Elderly - North,Other Small Contracts,Prestige Nursing,706.84, 19-Nov-2013
1544,Revenue,CCHD,Day Care - South,Private & Voluntary Day Care,Prestige Nursing,120.68, 19-Nov-2013
1545,Revenue,CCHD,Day Care - North,Private & Voluntary Day Care,Prestige Nursing,474.1, 19-Nov-2013
1546,Revenue,CCHD,Bed purchasing - Elderly MH - North,Nursing Permanent,Ravenswood,1269.48, 26-Nov-2013
1547,Revenue,CCHD,Bed Purchasing - Elderly - South,Residential Permanent,Ravenswood,3804.6, 26-Nov-2013
1548,Revenue,CCHD,Bed Purchasing - Elderly - North,Nursing Permanent,Ravenswood,1549.36, 26-Nov-2013
1549,Revenue,CCHD,Bed Purchasing - PWLD S 117 Placements,Residential Permanent,Real Life Options,7979.92, 26-Nov-2013
1550,Revenue,CCHD,Bed Purchasing - Elderly S117- North,Nursing Permanent,Redholme Memory Care Limited,1962.8, 26-Nov-2013
1551,Revenue,CCHD,Supporting People Programme,Grants to Voluntary Bodies,Redland Housing Association Ltd,726.92, 01-Nov-2013
1552,Revenue,CCHD,Supporting People Programme,Grants to Voluntary Bodies,Redland Housing Association Ltd,726.92, 29-Nov-2013
1553,Revenue,CCHD,Bed Purchasing - Elderly - South,Nursing Permanent,Regent House,2224.96, 26-Nov-2013
1554,Revenue,CCHD,Bed Purchasing - Elderly - South,Nursing Permanent,Regent House,1649.08, 26-Nov-2013
1555,Revenue,CCHD,Bed Purchasing - Elderly - South,Nursing Permanent,Regent House,1958.52, 26-Nov-2013
1556,Revenue,CCHD,Bed Purchasing - Elderly MH - South,Nursing Permanent,Regent House,1982.08, 26-Nov-2013
1557,Revenue,CCHD,Bed Purchasing - Elderly - South,Nursing Permanent,Regent House,1699.68, 26-Nov-2013
1558,Revenue,CCHD,Bed Purchasing - Elderly - South,Nursing Permanent,Regent House,1876.36, 26-Nov-2013
1559,Revenue,CCHD,Bed Purchasing - Elderly - South,Nursing Permanent,Regent House,1977.08, 26-Nov-2013
1560,Revenue,CCHD,Bed Purchasing - Elderly - North,Nursing Permanent,Regent House,1869.6, 26-Nov-2013
1561,Revenue,CCHD,Bed Purchasing - Elderly - South,Nursing Permanent,Regent House,1808, 26-Nov-2013
1562,Revenue,CCHD,Bed Purchasing - Elderly - South,Nursing Permanent,Regent House,1649.08, 26-Nov-2013
1563,Revenue,CCHD,Bed Purchasing - Elderly - South,Nursing Permanent,Regent House,1658.28, 26-Nov-2013
1564,Revenue,CCHD,Bed Purchasing - Southmead Hospital,Nursing Permanent,Regent House,1388.52, 26-Nov-2013
1565,Revenue,CCHD,Bed Purchasing - Elderly - South,Nursing Permanent,Regent House,1646.36, 26-Nov-2013
1566,Revenue,CCHD,Bed Purchasing - Elderly MH - South,Nursing Permanent,Regent House,1192.64, 26-Nov-2013
1567,Revenue,CCHD,Bed purchasing - Elderly MH - North,Nursing Permanent,Regent House,1275.76, 26-Nov-2013
1568,Revenue,CCHD,Bed Purchasing - Under 65s PWLD - South,Residential Permanent,Ridgeway House,3450.56, 26-Nov-2013
1569,Revenue,CCHD,Bed Purchasing - Under 65s PWLD - South,Residential Permanent,Riverside House,7115.84, 26-Nov-2013
1570,Revenue,CCHD,Bed Purchasing - Southmead Hospital,Nursing Permanent,Riversway Nursing Home,1673.15, 26-Nov-2013
1571,Revenue,CCHD,Bed Purchasing - Frenchay Hospital,Nursing Permanent,Riversway Nursing Home,2645.64, 26-Nov-2013
1572,Revenue,CCHD,Bed purchasing - Elderly PWLD - South,Residential Permanent,Rockleaze,1408.56, 26-Nov-2013
1573,Revenue,CCHD,Bed Purchasing - LD S28A- Over 65- South,Residential Permanent,Rockleaze,2054.24, 26-Nov-2013
1574,Revenue,CCHD,Bed purchasing - Elderly PWLD - South,Residential Permanent,Rockleaze,2382.32, 26-Nov-2013
1575,Revenue,CCHD,Bed purchasing - Elderly PWLD - South,Residential Permanent,Rockleaze,1408.56, 26-Nov-2013
1576,Revenue,CCHD,Bed Purchasing - Elderly MH - South,Residential Permanent,Ross Healthcare,1292.56, 26-Nov-2013
1577,Revenue,CCHD,Bed Purchasing - Frenchay Hospital,Nursing Permanent,Saffron Gardens,1825.64, 26-Nov-2013
1578,Revenue,CCHD,Bed Purchasing - Elderly S117- North,Nursing Permanent,Saffron Gardens,2540.84, 26-Nov-2013
1579,Revenue,CCHD,Bed Purchasing - Southmead Hospital,Residential Permanent,Saffron Gardens,1248.32, 26-Nov-2013
1580,Revenue,CCHD,Bed Purchasing - Elderly MH - South,Nursing Permanent,Saffron Gardens,2044.68, 26-Nov-2013
1581,Revenue,CCHD,Bed Purchasing - Southmead Hospital,Nursing Permanent,Saffron Gardens,1478, 26-Nov-2013
1582,Revenue,CCHD,South Glos Users in South Glos Homes,Nursing Permanent,Saffron Gardens,658.74, 26-Nov-2013
1583,Revenue,CCHD,Bed Purchasing - Elderly - North,Nursing Permanent,Saffron Gardens,988.72, 26-Nov-2013
1584,Revenue,CCHD,Bed Purchasing - Elderly - South,Nursing Permanent,Saffron Gardens,1873.08, 26-Nov-2013
1585,Revenue,CCHD,Bed Purchasing - Frenchay Hospital,Nursing Permanent,Saffron Gardens,2021.14, 26-Nov-2013
1586,Revenue,CCHD,Bed Purchasing - Frenchay Hospital,Nursing Permanent,Saffron Gardens,602.04, 26-Nov-2013
1587,Revenue,CCHD,Bed Purchasing - Elderly - South,Residential Permanent,Saffron Gardens,1278.28, 26-Nov-2013
1588,Revenue,CCHD,Home Care - Elderly - South,Other Small Contracts,Saga Homecare,2828.91, 08-Nov-2013
1589,Revenue,CCHD,Home Care - Elderly - North,Other Small Contracts,Saga Homecare,8912.61, 08-Nov-2013
1590,Revenue,CCHD,Day Care - South,Private & Voluntary Day Care,Saga Homecare,31.92, 08-Nov-2013
1591,Revenue,CCHD,Day Care - North,Private & Voluntary Day Care,Saga Homecare,267.33, 08-Nov-2013
1592,Revenue,CCHD,Home care - Elderly MH - North,Other Small Contracts,Saga Homecare,115.71, 08-Nov-2013
1593,Revenue,CCHD,Elderly MH Day Care North,Private & Voluntary Day Care,Saga Homecare,19.95, 08-Nov-2013
1594,Revenue,CCHD,Home Care - LD Under 65 - South,Private & Voluntary Home Care,Saga Homecare,255.36, 08-Nov-2013
1595,Revenue,CCHD,PWLD Home Care - Under 65 - KH,Private & Voluntary Home Care,Saga Homecare,442.89, 08-Nov-2013
1596,Revenue,CCHD,Home Care - Elderly - South,Other Small Contracts,Saga Homecare,2816.94, 08-Nov-2013
1597,Revenue,CCHD,Home Care - Elderly - North,Other Small Contracts,Saga Homecare,9028.32, 08-Nov-2013
1598,Revenue,CCHD,Day Care - South,Private & Voluntary Day Care,Saga Homecare,31.92, 08-Nov-2013
1599,Revenue,CCHD,Day Care - North,Private & Voluntary Day Care,Saga Homecare,199.5, 08-Nov-2013
1600,Revenue,CCHD,Home care - Elderly MH - North,Other Small Contracts,Saga Homecare,131.67, 08-Nov-2013
1601,Revenue,CCHD,Elderly MH Day Care North,Private & Voluntary Day Care,Saga Homecare,23.94, 08-Nov-2013
1602,Revenue,CCHD,Home Care - LD Under 65 - South,Private & Voluntary Home Care,Saga Homecare,255.36, 08-Nov-2013
1603,Revenue,CCHD,PWLD Home Care - Under 65 - KH,Private & Voluntary Home Care,Saga Homecare,450.87, 08-Nov-2013
1604,Revenue,CCHD,Home Care - Elderly - South,Other Small Contracts,Saga Homecare,3459.33, 12-Nov-2013
1605,Revenue,CCHD,Home Care - Elderly - North,Other Small Contracts,Saga Homecare,8836.89, 12-Nov-2013
1606,Revenue,CCHD,Day Care - North,Private & Voluntary Day Care,Saga Homecare,287.28, 12-Nov-2013
1607,Revenue,CCHD,Home care - Elderly MH - North,Other Small Contracts,Saga Homecare,55.86, 12-Nov-2013
1608,Revenue,CCHD,PWLD Home Care - Under 65 - KH,Private & Voluntary Home Care,Saga Homecare,450.87, 12-Nov-2013
1609,Revenue,CCHD,Home Care - Elderly - South,Other Small Contracts,Saga Homecare,3527.16, 12-Nov-2013
1610,Revenue,CCHD,Home Care - Elderly - North,Other Small Contracts,Saga Homecare,8737.12, 12-Nov-2013
1611,Revenue,CCHD,Day Care - South,Private & Voluntary Day Care,Saga Homecare,43.89, 12-Nov-2013
1612,Revenue,CCHD,Day Care - North,Private & Voluntary Day Care,Saga Homecare,299.25, 12-Nov-2013
1613,Revenue,CCHD,Home care - Elderly MH - North,Other Small Contracts,Saga Homecare,55.86, 12-Nov-2013
1614,Revenue,CCHD,Home Care - Elderly - South,Other Small Contracts,Saga Homecare,3451.35, 11-Nov-2013
1615,Revenue,CCHD,Home Care - Elderly - North,Other Small Contracts,Saga Homecare,8609.1, 11-Nov-2013
1616,Revenue,CCHD,Day Care - North,Private & Voluntary Day Care,Saga Homecare,275.31, 11-Nov-2013
1617,Revenue,CCHD,Home care - Elderly MH - North,Other Small Contracts,Saga Homecare,55.86, 11-Nov-2013
1618,Revenue,CCHD,PWLD Home Care - Under 65 - KH,Private & Voluntary Home Care,Saga Homecare,115.71, 11-Nov-2013
1619,Revenue,CCHD,Home Care - Elderly - South,Other Small Contracts,Saga Homecare,3471.3, 19-Nov-2013
1620,Revenue,CCHD,Home Care - Elderly - North,Other Small Contracts,Saga Homecare,8609.46, 19-Nov-2013
1621,Revenue,CCHD,Day Care - North,Private & Voluntary Day Care,Saga Homecare,271.32, 19-Nov-2013
1622,Revenue,CCHD,Home care - Elderly MH - North,Other Small Contracts,Saga Homecare,55.86, 19-Nov-2013
1623,Revenue,CCHD,PWLD Home Care - Under 65 - KH,Private & Voluntary Home Care,Saga Homecare,466.83, 19-Nov-2013
1624,Revenue,CCHD,Home Care - Elderly - South,Other Small Contracts,Saga Homecare,3443.37, 28-Nov-2013
1625,Revenue,CCHD,Home Care - Elderly - North,Other Small Contracts,Saga Homecare,8597.49, 28-Nov-2013
1626,Revenue,CCHD,Day Care - South,Private & Voluntary Day Care,Saga Homecare,47.88, 28-Nov-2013
1627,Revenue,CCHD,Day Care - North,Private & Voluntary Day Care,Saga Homecare,279.3, 28-Nov-2013
1628,Revenue,CCHD,Home care - Elderly MH - North,Other Small Contracts,Saga Homecare,63.84, 28-Nov-2013
1629,Revenue,CCHD,PWLD Home Care - Under 65 - KH,Private & Voluntary Home Care,Saga Homecare,470.82, 28-Nov-2013
1630,Revenue,CCHD,Home Care - Elderly - South,Other Small Contracts,Saga Homecare,3539.13, 28-Nov-2013
1631,Revenue,CCHD,Home Care - Elderly - North,Other Small Contracts,Saga Homecare,7987.02, 28-Nov-2013
1632,Revenue,CCHD,Day Care - North,Private & Voluntary Day Care,Saga Homecare,263.34, 28-Nov-2013
1633,Revenue,CCHD,Home care - Elderly MH - North,Other Small Contracts,Saga Homecare,55.86, 28-Nov-2013
1634,Revenue,CCHD,PWLD Home Care - Under 65 - KH,Private & Voluntary Home Care,Saga Homecare,474.81, 28-Nov-2013
1635,Revenue,CCHD,Bed Purchasing - Under 65s PWLD - South,Residential Permanent,Salters Hill Barn,2014.52, 26-Nov-2013
1636,Revenue,CCHD,Bed Purchasing - Southmead Hospital,Residential Permanent,Sanctuary Care Limited,1719.12, 26-Nov-2013
1637,Revenue,CCHD,Bed Purchasing - Southmead Hospital,Residential Permanent,Sanctuary Care Ltd,1270, 26-Nov-2013
1638,Revenue,CCHD,Learning Difficulties PSL,Rent,Individual,1650, 01-Nov-2013
1639,Revenue,CCHD,Learning Difficulties PSL,Rent,Individual,1650, 29-Nov-2013
1640,Revenue,CCHD,Woodleaze,"Provisions (Food, etc)",School Milk Services Limited,884.5, 12-Nov-2013
1641,Revenue,CCHD,Woodleaze,"Provisions (Food, etc)",School Milk Services Limited,780.12, 29-Nov-2013
1642,Revenue,CCHD,Bed purchasing - Under 65s PWLD - North,Residential Permanent,Scope   Accounts Dept,4956.52, 26-Nov-2013
1643,Revenue,CCHD,Bed Purchasing - Under 65s PWLD - South,Residential Permanent,Scope   Accounts Dept,3027.88, 26-Nov-2013
1644,Revenue,CCHD,Swift Dump Code,Residential Permanent,SeeAbility,926.33, 26-Nov-2013
1645,Revenue,CCHD,Day Care - North,Private & Voluntary Day Care,SeeAbility,1879.42, 11-Nov-2013
1646,Revenue,CCHD,Supported Living - North,Private & Voluntary Home Care,SeeAbility,1298.58, 08-Nov-2013
1647,Revenue,CCHD,Supported Living - North,Private & Voluntary Home Care,SeeAbility,7364.61, 08-Nov-2013
1648,Revenue,CCHD,Supported Living - North,Private & Voluntary Home Care,SeeAbility,1213.8, 08-Nov-2013
1649,Revenue,CCHD,Supported Living - North,Private & Voluntary Home Care,SeeAbility,6362.12, 26-Nov-2013
1650,Revenue,CCHD,Day Care - North,Private & Voluntary Day Care,SeeAbility,1942.06, 26-Nov-2013
1651,Revenue,CCHD,Supported Living - North,Private & Voluntary Home Care,SeeAbility,1341.86, 26-Nov-2013
1652,Revenue,CCHD,Supported Living - North,Private & Voluntary Home Care,SeeAbility,7610.1, 26-Nov-2013
1653,Revenue,CCHD,Supported Living - North,Private & Voluntary Home Care,SeeAbility,1254.26, 26-Nov-2013
1654,Revenue,CCHD,Swift Dump Code,Residential Permanent,SeeAbility,926.33, 26-Nov-2013
1655,Revenue,CCHD,Supported Living - South,Private & Voluntary Home Care,Selborne Care Ltd,2687.44, 01-Nov-2013
1656,Revenue,CCHD,Supported Living - South,Private & Voluntary Home Care,Selborne Care Ltd,645.68, 01-Nov-2013
1657,Revenue,CCHD,Purchase of Non-Res Care - North,Private & Voluntary Day Care,Selborne Care Ltd,1892.12, 01-Nov-2013
1658,Revenue,CCHD,Supported Living - South,Private & Voluntary Home Care,Selborne Care Ltd,5128.68, 01-Nov-2013
1659,Revenue,CCHD,Purchase of Non-Res Care - North,Private & Voluntary Day Care,Selborne Care Ltd,901.04, 01-Nov-2013
1660,Revenue,CCHD,Supported Living - South,Private & Voluntary Home Care,Selborne Care Ltd,1162.3, 01-Nov-2013
1661,Revenue,CCHD,Purchase of Non-Res Care - North,Private & Voluntary Day Care,Selborne Care Ltd,830.52, 01-Nov-2013
1662,Revenue,CCHD,Supported Living - North,Private & Voluntary Home Care,Selborne Care Ltd,573.88, 01-Nov-2013
1663,Revenue,CCHD,Supported Living - South,Private & Voluntary Home Care,Selborne Care Ltd,4616.28, 01-Nov-2013
1664,Revenue,CCHD,Purchase of Non-Res Care - North,Private & Voluntary Day Care,Selborne Care Ltd,749.56, 01-Nov-2013
1665,Revenue,CCHD,Supported Living - South,Private & Voluntary Home Care,Selborne Care Ltd,554.56, 15-Nov-2013
1666,Revenue,CCHD,Supported Living - South,Private & Voluntary Home Care,Selborne Care Ltd,1878.73, 01-Nov-2013
1667,Revenue,CCHD,Supported Living (S28a) South,Private & Voluntary Home Care,Selborne Care Ltd,3326.68, 01-Nov-2013
1668,Revenue,CCHD,Supported Living - South,Private & Voluntary Home Care,Selborne Care Ltd,5128.68, 22-Nov-2013
1669,Revenue,CCHD,Purchase of Non-Res Care - North,Private & Voluntary Day Care,Selborne Care Ltd,676.4, 01-Nov-2013
1670,Revenue,CCHD,Bed Purchasing - Under 65s PWLD - South,Residential Permanent,Shaldon House (Positive Care Ltd),2194, 26-Nov-2013
1671,Revenue,CCHD,Public Health - Admin,Grants to Voluntary Bodies,Share the Harmony,705, 29-Nov-2013
1672,Revenue,CCHD,Bed Purchasing - Elderly S117- North,Nursing Permanent,Shaw Healthcare Ltd,1962.68, 26-Nov-2013
1673,Revenue,CCHD,Bed purchasing - Elderly S117 - South,Nursing Permanent,Shaw Healthcare Ltd,1992.16, 26-Nov-2013
1674,Revenue,CCHD,Bed purchasing - Elderly MH - North,Nursing Permanent,Shaw Healthcare Ltd,2064.96, 26-Nov-2013
1675,Revenue,CCHD,Bed purchasing - S28A Under 65 - South,Residential Permanent,Shaw Healthcare Ltd,9822.56, 26-Nov-2013
1676,Revenue,CCHD,Bed purchasing - S28A Under 65 - South,Residential Permanent,Shaw Healthcare Ltd,9651.76, 26-Nov-2013
1677,Revenue,CCHD,Bed purchasing - S28A Under 65 - South,Residential Permanent,Shaw Healthcare Ltd,9651.76, 26-Nov-2013
1678,Revenue,CCHD,Bed Purchasing - Under 65s PWLD - South,Nursing Permanent,Shaw Healthcare Ltd,9754.04, 26-Nov-2013
1679,Revenue,CCHD,Bed Purchasing - Under 65s PWLD - South,Residential Permanent,Shaw Healthcare Ltd,9760.6, 26-Nov-2013
1680,Revenue,CCHD,Bed purchasing - Elderly PWLD - South,Residential Permanent,Shaw Healthcare Ltd,3907.68, 26-Nov-2013
1681,Revenue,CCHD,Bed purchasing - S28A Under 65 - South,Residential Permanent,Shaw Healthcare Ltd,10393.88, 26-Nov-2013
1682,Revenue,CCHD,Bed purchasing - S28A Under 65 - South,Residential Permanent,Shaw Healthcare Ltd,12174.6, 26-Nov-2013
1683,Revenue,CCHD,Bed Purchasing - S28A - Over 65- North,Residential Permanent,Shaw Healthcare Ltd,4238.92, 26-Nov-2013
1684,Revenue,CCHD,Bed Purchasing - S28A - Over 65- North,Residential Permanent,Shaw Healthcare Ltd,4246.2, 26-Nov-2013
1685,Revenue,CCHD,Bed Purchasing - LD S28A- Over 65- South,Residential Permanent,Shaw Healthcare Ltd,4763.2, 26-Nov-2013
1686,Revenue,CCHD,Bed Purchasing - Under 65s PWLD - South,Nursing Permanent,Shaw Healthcare Ltd,10091.08, 26-Nov-2013
1687,Revenue,CCHD,Bed Purchasing - LD S28A- Over 65- South,Residential Permanent,Shaw Healthcare Ltd,4321.32, 26-Nov-2013
1688,Revenue,CCHD,Bed purchasing -S28A  Under 65 - North,Residential Permanent,Shaw Healthcare Ltd,9174, 26-Nov-2013
1689,Revenue,CCHD,Bed Purchasing - S28A - Over 65- North,Residential Permanent,Shaw Healthcare Ltd,8580.2, 26-Nov-2013
1690,Revenue,CCHD,Bed Purchasing - Southmead Hospital,Residential Permanent,Shaw Healthcare Ltd,891.96, 26-Nov-2013
1691,Revenue,CCHD,Bed Purchasing - Elderly - North,Residential Permanent,Shaw Healthcare Ltd,1262, 26-Nov-2013
1692,Revenue,CCHD,Bed Purchasing - Frenchay Hospital,Residential Permanent,Shaw Healthcare Ltd,1119.32, 26-Nov-2013
1693,Revenue,CCHD,Purchase of Non-Res Care - North,Private & Voluntary Day Care,Shaw Healthcare Specialist Services Limited,629.38, 14-Nov-2013
1694,Revenue,CCHD,Supported Living - South,Private & Voluntary Home Care,Silva Care Limited,4415.44, 18-Nov-2013
1695,Revenue,CCHD,Supported Living - South,Private & Voluntary Home Care,Silva Care Limited,4415.44, 22-Nov-2013
1696,Revenue,CCHD,Day Care - North,Private & Voluntary Day Care,Silva Care Limited,1094.21, 19-Nov-2013
1697,Revenue,CCHD,Bed purchasing - Under 65s PWLD - North,Residential Permanent,Small House Homes Limited,17754.92, 26-Nov-2013
1698,Revenue,CCHD,Purchase of Non-Res Care - South,Private & Voluntary Day Care,Smile Independent Living Support Limited,508.78, 22-Nov-2013
1699,Revenue,CCHD,Purchase of Non-Res Care - North,Private & Voluntary Day Care,Smile Independent Living Support Limited,921.6, 14-Nov-2013
1700,Revenue,CCHD,Supported Living - North,Private & Voluntary Home Care,Smile Independent Living Support Limited,595.85, 14-Nov-2013
1701,Revenue,CCHD,Purchase of Non-Res Care - North,Private & Voluntary Day Care,Smile Independent Living Support Limited,550.77, 14-Nov-2013
1702,Revenue,CCHD,Supported Living - North,Private & Voluntary Home Care,Smile Independent Living Support Limited,2738.59, 14-Nov-2013
1703,Revenue,CCHD,Supported Living - North,Private & Voluntary Home Care,Smile Independent Living Support Limited,3362.26, 14-Nov-2013
1704,Revenue,CCHD,Supported Living - North,Private & Voluntary Home Care,Smile Independent Living Support Limited,3261.51, 14-Nov-2013
1705,Revenue,CCHD,Purchase of Non-Res Care - South,Private & Voluntary Day Care,Smile Independent Living Support Limited,773.02, 20-Nov-2013
1706,Revenue,CCHD,Purchase of Non-Res Care - North,Private & Voluntary Day Care,Smile Independent Living Support Limited,1370.59, 14-Nov-2013
1707,Revenue,CCHD,Purchase of Non-Res Care - North,Private & Voluntary Day Care,Smile Independent Living Support Limited,700.15, 14-Nov-2013
1708,Revenue,CCHD,Purchase of Non-Res Care - North,Private & Voluntary Day Care,Smile Independent Living Support Limited,1461.55, 14-Nov-2013
1709,Revenue,CCHD,Purchase of Non-Res Care - North,Private & Voluntary Day Care,Smile Independent Living Support Limited,950.56, 14-Nov-2013
1710,Revenue,CCHD,Purchase of Non-Res Care - North,Private & Voluntary Day Care,Smile Independent Living Support Limited,639.54, 14-Nov-2013
1711,Revenue,CCHD,Public Health - Admin,Grants to Voluntary Bodies,South Gloucestershire Parents and Carers,900, 29-Nov-2013
1712,Revenue,CCHD,Purchase of Non-Res Care - North,Private & Voluntary Day Care,Sports 1st Limited,960, 29-Nov-2013
1713,Revenue,CCHD,Minor Adaptations Service,Premises Maintenance by Contractor,SSE Contracting Limited,37.73, 19-Nov-2013
1714,Revenue,CCHD,Bed Purchasing - Under 65s PWLD - South,Residential Permanent,St Brigas,2055.56, 26-Nov-2013
1715,Revenue,CCHD,Bed Purchasing - Under 65s PWLD - South,Residential Permanent,St Brigas,2972.08, 26-Nov-2013
1716,Revenue,CCHD,Bed Purchasing - Under 65s PWLD - South,Residential Permanent,St Brigas,2003.32, 26-Nov-2013
1717,Revenue,CCHD,Bed Purchasing - Elderly - South,Nursing Permanent,St George Nursing Home,1439.44, 26-Nov-2013
1718,Revenue,CCHD,Bed Purchasing - Frenchay Hospital,Nursing Permanent,St George Nursing Home,2604, 26-Nov-2013
1719,Revenue,CCHD,Bed Purchasing - Southmead Hospital,Nursing Permanent,St George Nursing Home,678.16, 26-Nov-2013
1720,Revenue,CCHD,Bed Purchasing - Elderly - South,Nursing Permanent,St George Nursing Home,2604, 26-Nov-2013
1721,Revenue,CCHD,Bed Purchasing - Southmead Hospital,Nursing Permanent,St George Nursing Home,2628, 26-Nov-2013
1722,Revenue,CCHD,Bed Purchasing - Frenchay Hospital,Nursing Permanent,St George Nursing Home,2130.72, 26-Nov-2013
1723,Revenue,CCHD,Bed Purchasing - Frenchay Hospital,Residential Permanent,St George Nursing Home,1277.14, 26-Nov-2013
1724,Revenue,CCHD,Bed Purchasing - Frenchay Hospital,Nursing Permanent,St George Nursing Home,662.16, 26-Nov-2013
1725,Revenue,CCHD,Bed Purchasing - Frenchay Hospital,Nursing Permanent,St Georges Nursing Home (Wellburn Care Homes),1135.88, 26-Nov-2013
1726,Revenue,CCHD,Bed Purchasing - Elderly - North,Nursing Permanent,St Monicas Trust,1670.26, 26-Nov-2013
1727,Revenue,CCHD,Bed Purchasing - Elderly - North,Nursing Permanent,St Monicas Trust,2790.36, 26-Nov-2013
1728,Revenue,CCHD,Bed Purchasing - Elderly - South,Nursing Respite,St Monicas Trust,503.31, 26-Nov-2013
1729,Revenue,CCHD,Bed Purchasing - Elderly - South,Nursing Permanent,St Roses School,3982.76, 22-Nov-2013
1730,Revenue,CCHD,Bed purchasing - Under 65s PWLD - North,Residential Permanent,St Roses School,573, 26-Nov-2013
1731,Revenue,CCHD,Bed purchasing - Under 65s PWLD - North,Residential Respite,St Roses School,764, 26-Nov-2013
1732,Revenue,CCHD,MH Purchasing - Younger,Nursing Permanent,Stanley House,4311.36, 26-Nov-2013
1733,Revenue,CCHD,Bed Purchasing - Under 65s PWLD - South,Residential Permanent,Stepping Stones Re-Sett. Unit,7484.8, 26-Nov-2013
1734,Revenue,CCHD,MH Purchasing - Younger,Residential Permanent,Summer Lane Care Home Ltd,1876.49, 26-Nov-2013
1735,Revenue,CCHD,Section 117 Placements MH Younger,Private & Voluntary Day Care,Supported Independence Ltd,2268.12, 01-Nov-2013
1736,Revenue,CCHD,Section 117 Placements MH Younger,Private & Voluntary Day Care,Supported Independence Ltd,2640.96, 01-Nov-2013
1737,Revenue,CCHD,Younger MH non-res purchasing,Private & Voluntary Day Care,Supported Independence Ltd,1041.04, 01-Nov-2013
1738,Revenue,CCHD,Section 117 Placements MH Younger,Private & Voluntary Day Care,Supported Independence Ltd,1215.9, 01-Nov-2013
1739,Revenue,CCHD,Supported Living - South,Private & Voluntary Home Care,Supported Independence Ltd,749.88, 15-Nov-2013
1740,Revenue,CCHD,Supported Living - North,Private & Voluntary Home Care,Supported Independence Ltd,700.7, 04-Nov-2013
1741,Revenue,CCHD,Day Care - South,Private & Voluntary Day Care,Supported Independence Ltd,1001, 11-Nov-2013
1742,Revenue,CCHD,Supported Living - South,Private & Voluntary Home Care,Supported Independence Ltd,1341.34, 15-Nov-2013
1743,Revenue,CCHD,Section 117 Placements MH Younger,Private & Voluntary Day Care,Supported Independence Ltd,2272.78, 07-Nov-2013
1744,Revenue,CCHD,Day Care - North,Private & Voluntary Day Care,Supported Independence Ltd,5393.6, 05-Nov-2013
1745,Revenue,CCHD,Section 117 Placements MH Younger,Private & Voluntary Day Care,Supported Independence Ltd,2459.17, 01-Nov-2013
1746,Revenue,CCHD,Supported Living - South,Private & Voluntary Home Care,Supported Independence Ltd,3568.2, 22-Nov-2013
1747,Revenue,CCHD,Day Care - South,Private & Voluntary Day Care,Supported Independence Ltd,2273.22, 05-Nov-2013
1748,Revenue,CCHD,Younger MH non-res purchasing,Private & Voluntary Day Care,Supported Independence Ltd,1041.04, 26-Nov-2013
1749,Revenue,CCHD,Section 117 Placements MH Younger,Private & Voluntary Day Care,Supported Independence Ltd,1331.7, 26-Nov-2013
1750,Revenue,CCHD,Section 117 Placements MH Younger,Private & Voluntary Day Care,Supported Independence Ltd,510.34, 26-Nov-2013
1751,Revenue,CCHD,Section 117 Placements MH Younger,Private & Voluntary Day Care,Supported Independence Ltd,520.75, 26-Nov-2013
1752,Revenue,CCHD,Section 117 Placements MH Younger,Private & Voluntary Day Care,Supported Independence Ltd,602.28, 26-Nov-2013
1753,Revenue,CCHD,Younger MH non-res purchasing,Private & Voluntary Day Care,Supported Independence Ltd,531.17, 26-Nov-2013
1754,Revenue,CCHD,Supported Living - South,Private & Voluntary Home Care,Supported Independence Ltd,3645.4, 26-Nov-2013
1755,Revenue,CCHD,Day Care - South,Private & Voluntary Day Care,Supported Independence Ltd,1121.12, 29-Nov-2013
1756,Revenue,CCHD,Supported Living - South,Private & Voluntary Home Care,Supported Independence Ltd,708.22, 26-Nov-2013
1757,Revenue,CCHD,Supported Living - South,Private & Voluntary Home Care,Supported Independence Ltd,1741.74, 29-Nov-2013
1758,Revenue,CCHD,Supported Living - North,Private & Voluntary Home Care,Supported Independence Ltd,760.76, 27-Nov-2013
1759,Revenue,CCHD,Section 117 Placements MH Younger,Private & Voluntary Day Care,Supported Independence Ltd,2559.73, 26-Nov-2013
1760,Revenue,CCHD,Section 117 Placements MH Younger,Private & Voluntary Day Care,Supported Independence Ltd,2183.89, 26-Nov-2013
1761,Revenue,CCHD,Section 117 Placements MH Younger,Private & Voluntary Day Care,Supported Independence Ltd,803.04, 26-Nov-2013
1762,Revenue,CCHD,Section 117 Placements MH Younger,Private & Voluntary Day Care,Supported Independence Ltd,3654.87, 26-Nov-2013
1763,Revenue,CCHD,Supporting People Programme,Grants to Voluntary Bodies,Supported Independence Ltd,6176.25, 01-Nov-2013
1764,Revenue,CCHD,Supporting People Programme,Grants to Voluntary Bodies,Supported Independence Ltd,2986.92, 01-Nov-2013
1765,Revenue,CCHD,Supporting People Programme,Grants to Voluntary Bodies,Supported Independence Ltd,6176.25, 29-Nov-2013
1766,Revenue,CCHD,Supporting People Programme,Grants to Voluntary Bodies,Supported Independence Ltd,2986.92, 29-Nov-2013
1767,Revenue,CCHD,Supporting People Programme,Grants to Voluntary Bodies,Supported Independent Living Schemes,4638.08, 01-Nov-2013
1768,Revenue,CCHD,Supporting People Programme,Grants to Voluntary Bodies,Supported Independent Living Schemes,6008.83, 01-Nov-2013
1769,Revenue,CCHD,Supporting People Programme,Grants to Voluntary Bodies,Supported Independent Living Schemes,4638.08, 29-Nov-2013
1770,Revenue,CCHD,Supporting People Programme,Grants to Voluntary Bodies,Supported Independent Living Schemes,6008.83, 29-Nov-2013
1771,Revenue,CCHD,Supported Living - South,Private & Voluntary Home Care,Supported Independent Living Schemes,642.96, 22-Nov-2013
1772,Revenue,CCHD,Supported Living - South,Private & Voluntary Home Care,Supporting Options,665.7, 22-Nov-2013
1773,Revenue,CCHD,Day Care - South,Private & Voluntary Day Care,Supporting Options,618.13, 26-Nov-2013
1774,Revenue,CCHD,Supported Living - South,Private & Voluntary Home Care,Supporting Options,1415.46, 22-Nov-2013
1775,Revenue,CCHD,Day Care - South,Private & Voluntary Day Care,Supporting Options,2424.23, 22-Nov-2013
1776,Revenue,CCHD,Telecare,Other Supplies & Services,Telecare Services Association,840, 22-Nov-2013
1777,Revenue,CCHD,Minor Adaptations Service,Operational Equipment,Tewkesbury Saw Co Limited,504, 08-Nov-2013
1778,Revenue,CCHD,Bed Purchasing - Under 65s PWLD - South,Residential Permanent,The Ann Coleman Centre,5968.36, 26-Nov-2013
1779,Revenue,CCHD,Bed Purchasing - Elderly - North,Residential Respite,The Beeches,1000, 26-Nov-2013
1780,Revenue,CCHD,Bed Purchasing - Elderly - North,Residential Respite,The Beeches,714.29, 26-Nov-2013
1781,Revenue,CCHD,Bed Purchasing - Southmead Hospital,Residential Permanent,The Beeches,990.64, 26-Nov-2013
1782,Revenue,CCHD,Bed Purchasing - Southmead Hospital,Residential Permanent,The Beeches,1246, 26-Nov-2013
1783,Revenue,CCHD,Day Care - South,Private & Voluntary Day Care,The Brandon Trust,1788.43, 05-Nov-2013
1784,Revenue,CCHD,Purchase of Non-Res Care - North,Private & Voluntary Day Care,The Brandon Trust,13628.52, 14-Nov-2013
1785,Revenue,CCHD,Purchase of Non-Res Care - North,Private & Voluntary Day Care,The Brandon Trust,9617.34, 14-Nov-2013
1786,Revenue,CCHD,Day Care - North,Private & Voluntary Day Care,The Brandon Trust,757.44, 19-Nov-2013
1787,Revenue,CCHD,Supported Living - South,Private & Voluntary Home Care,The Brandon Trust,820.56, 20-Nov-2013
1788,Revenue,CCHD,Purchase of Non-Res Care - North,Private & Voluntary Day Care,The Brandon Trust,9701.52, 14-Nov-2013
1789,Revenue,CCHD,Purchase of Non-Res Care - South,Private & Voluntary Day Care,The Brandon Trust,15025.78, 19-Nov-2013
1790,Revenue,CCHD,Bed purchasing - Elderly MH - North,Residential Permanent,The Cidermill,1414, 26-Nov-2013
1791,Revenue,CCHD,Bed Purchasing - Elderly - North,Nursing Permanent,The Cidermill,1478, 26-Nov-2013
1792,Revenue,CCHD,Bed purchasing - Elderly MH - North,Residential Permanent,The Cidermill,991.36, 26-Nov-2013
1793,Revenue,CCHD,Bed purchasing - Elderly MH - North,Nursing Permanent,The Cidermill,1208.28, 26-Nov-2013
1794,Revenue,CCHD,Bed Purchasing - Southmead Hospital,Residential Permanent,The Cidermill,932.24, 26-Nov-2013
1795,Revenue,CCHD,Bed purchasing - Under 65s PWLD - North,Residential Permanent,The David Lewis Centre,11618, 26-Nov-2013
1796,Revenue,CCHD,Bed Purchasing - Southmead Hospital,Residential Permanent,The Gables Residential Home,1366.68, 26-Nov-2013
1797,Revenue,CCHD,Bed purchasing - Elderly S117 - South,Residential Permanent,The Gables Residential Home,2214.12, 26-Nov-2013
